﻿Department Family,Entity,Date,Expense Type,Expense Area,Supplier,Transaction Number,Amount,Item Description
BEIS,UKRI - AHRC,01/12/2021,T&S UK - Other Charges,Executive Office,Unspecified,99086870,164.48,T&S UK - Other Charges
BEIS,UKRI - AHRC,02/12/2021,Fees (Including College Members),Operations,Unspecified,99086145,170.00,Fees (Including College Members)
BEIS,UKRI - AHRC,02/12/2021,Fees (Including College Members),Health and Environmental Humanities,Unspecified,99086146,340.00,Fees (Including College Members)
BEIS,UKRI - AHRC,02/12/2021,Fees (Including College Members),Operations,Unspecified,99086147,85.00,Fees (Including College Members)
BEIS,UKRI - AHRC,02/12/2021,Fees (Including College Members),Health and Environmental Humanities,Unspecified,99086148,340.00,Fees (Including College Members)
BEIS,UKRI - AHRC,02/12/2021,Health & Safety (inc. Medicals & Opticians),Operations,Unspecified,99087188,14.99,Health & Safety (inc. Medicals & Opticians)
BEIS,UKRI - AHRC,03/12/2021,Unspecified,SMT,University of St Andrews,99087081,38448.46,Secondments
BEIS,UKRI - AHRC,03/12/2021,T&S UK - Mileage,International Development and Area Studies,Unspecified,99089785,27.00,T&S UK - Mileage
BEIS,UKRI - AHRC,06/12/2021,Fees (Including College Members),Operations,Unspecified,99088797,170.00,Fees (Including College Members)
BEIS,UKRI - AHRC,06/12/2021,Fees (Including College Members),Operations,Unspecified,99088798,170.00,Fees (Including College Members)
BEIS,UKRI - AHRC,06/12/2021,Fees (Including College Members),Operations,Unspecified,99088799,170.00,Fees (Including College Members)
BEIS,UKRI - AHRC,06/12/2021,Fees (Including College Members),Operations,Unspecified,99088800,170.00,Fees (Including College Members)
BEIS,UKRI - AHRC,06/12/2021,Fees (Including College Members),Operations,Unspecified,99088801,170.00,Fees (Including College Members)
BEIS,UKRI - AHRC,06/12/2021,Fees (Including College Members),Infrastructure Fund - CoSTAR,Unspecified,99088802,510.00,Fees (Including College Members)
BEIS,UKRI - AHRC,07/12/2021,Unspecified,Public Engagement,Final Creations LTD T/A Bespoke Awards,99093018,540.00,Legal & Professional Services
BEIS,UKRI - AHRC,07/12/2021,T&S Overseas - Flights,Infrastructure Fund - CoSTAR,Corporate Travel Management (North) Ltd,99093950,1.71,T&S Overseas - Flights
BEIS,UKRI - AHRC,07/12/2021,T&S Overseas - Flights,Infrastructure Fund - CoSTAR,Corporate Travel Management (North) Ltd,99093950,85.98,T&S Overseas - Flights
BEIS,UKRI - AHRC,07/12/2021,T&S UK - Accommodation,AI&Design,Corporate Travel Management (North) Ltd,99093950,0.80,T&S UK - Accommodation
BEIS,UKRI - AHRC,07/12/2021,T&S UK - Accommodation,AI&Design,Corporate Travel Management (North) Ltd,99093950,406.52,T&S UK - Accommodation
BEIS,UKRI - AHRC,07/12/2021,T&S UK - Accommodation,AI&Design,Corporate Travel Management (North) Ltd,99093950,0.16,T&S UK - Accommodation
BEIS,UKRI - AHRC,07/12/2021,T&S UK - Accommodation,Corporate Services,Corporate Travel Management (North) Ltd,99093950,2.00,T&S UK - Accommodation
BEIS,UKRI - AHRC,07/12/2021,T&S UK - Accommodation,Corporate Services,Corporate Travel Management (North) Ltd,99093950,62.74,T&S UK - Accommodation
BEIS,UKRI - AHRC,07/12/2021,T&S UK - Accommodation,Corporate Services,Corporate Travel Management (North) Ltd,99093950,0.40,T&S UK - Accommodation
BEIS,UKRI - AHRC,07/12/2021,T&S UK - Accommodation,Executive Office,Corporate Travel Management (North) Ltd,99093950,0.80,T&S UK - Accommodation
BEIS,UKRI - AHRC,07/12/2021,T&S UK - Accommodation,Executive Office,Corporate Travel Management (North) Ltd,99093950,0.80,T&S UK - Accommodation
BEIS,UKRI - AHRC,07/12/2021,T&S UK - Accommodation,Executive Office,Corporate Travel Management (North) Ltd,99093950,74.00,T&S UK - Accommodation
BEIS,UKRI - AHRC,07/12/2021,T&S UK - Accommodation,Executive Office,Corporate Travel Management (North) Ltd,99093950,0.32,T&S UK - Accommodation
BEIS,UKRI - AHRC,07/12/2021,T&S UK - Accommodation,Infrastruture Roadmap,Corporate Travel Management (North) Ltd,99093950,0.80,T&S UK - Accommodation
BEIS,UKRI - AHRC,07/12/2021,T&S UK - Accommodation,Infrastruture Roadmap,Corporate Travel Management (North) Ltd,99093950,239.44,T&S UK - Accommodation
BEIS,UKRI - AHRC,07/12/2021,T&S UK - Accommodation,Infrastruture Roadmap,Corporate Travel Management (North) Ltd,99093950,0.80,T&S UK - Accommodation
BEIS,UKRI - AHRC,07/12/2021,T&S UK - Accommodation,Infrastruture Roadmap,Corporate Travel Management (North) Ltd,99093950,74.00,T&S UK - Accommodation
BEIS,UKRI - AHRC,07/12/2021,T&S UK - Accommodation,Infrastruture Roadmap,Corporate Travel Management (North) Ltd,99093950,0.80,T&S UK - Accommodation
BEIS,UKRI - AHRC,07/12/2021,T&S UK - Accommodation,Infrastruture Roadmap,Corporate Travel Management (North) Ltd,99093950,65.63,T&S UK - Accommodation
BEIS,UKRI - AHRC,07/12/2021,T&S UK - Accommodation,Infrastruture Roadmap,Corporate Travel Management (North) Ltd,99093950,0.48,T&S UK - Accommodation
BEIS,UKRI - AHRC,07/12/2021,T&S UK - Accommodation,SMT,Corporate Travel Management (North) Ltd,99093950,0.80,T&S UK - Accommodation
BEIS,UKRI - AHRC,07/12/2021,T&S UK - Accommodation,SMT,Corporate Travel Management (North) Ltd,99093950,195.00,T&S UK - Accommodation
BEIS,UKRI - AHRC,07/12/2021,T&S UK - Accommodation,SMT,Corporate Travel Management (North) Ltd,99093950,0.80,T&S UK - Accommodation
BEIS,UKRI - AHRC,07/12/2021,T&S UK - Accommodation,SMT,Corporate Travel Management (North) Ltd,99093950,252.28,T&S UK - Accommodation
BEIS,UKRI - AHRC,07/12/2021,T&S UK - Accommodation,SMT,Corporate Travel Management (North) Ltd,99093950,0.32,T&S UK - Accommodation
BEIS,UKRI - AHRC,07/12/2021,T&S UK - Accommodation,Skills Strategy,Corporate Travel Management (North) Ltd,99093950,0.80,T&S UK - Accommodation
BEIS,UKRI - AHRC,07/12/2021,T&S UK - Accommodation,Skills Strategy,Corporate Travel Management (North) Ltd,99093950,83.38,T&S UK - Accommodation
BEIS,UKRI - AHRC,07/12/2021,T&S UK - Accommodation,Skills Strategy,Corporate Travel Management (North) Ltd,99093950,0.16,T&S UK - Accommodation
BEIS,UKRI - AHRC,07/12/2021,T&S UK - Public Transport,AHRC - Creative Industries,Corporate Travel Management (North) Ltd,99093950,0.25,T&S UK - Public Transport
BEIS,UKRI - AHRC,07/12/2021,T&S UK - Public Transport,AHRC - Creative Industries,Corporate Travel Management (North) Ltd,99093950,19.30,T&S UK - Public Transport
BEIS,UKRI - AHRC,07/12/2021,T&S UK - Public Transport,AHRC - Creative Industries,Corporate Travel Management (North) Ltd,99093950,0.25,T&S UK - Public Transport
BEIS,UKRI - AHRC,07/12/2021,T&S UK - Public Transport,AHRC - Creative Industries,Corporate Travel Management (North) Ltd,99093950,7.70,T&S UK - Public Transport
BEIS,UKRI - AHRC,07/12/2021,T&S UK - Public Transport,AHRC - Creative Industries,Corporate Travel Management (North) Ltd,99093950,0.25,T&S UK - Public Transport
BEIS,UKRI - AHRC,07/12/2021,T&S UK - Public Transport,AHRC - Creative Industries,Corporate Travel Management (North) Ltd,99093950,12.90,T&S UK - Public Transport
BEIS,UKRI - AHRC,07/12/2021,T&S UK - Public Transport,AHRC - Creative Industries,Corporate Travel Management (North) Ltd,99093950,0.25,T&S UK - Public Transport
BEIS,UKRI - AHRC,07/12/2021,T&S UK - Public Transport,AHRC - Creative Industries,Corporate Travel Management (North) Ltd,99093950,193.80,T&S UK - Public Transport
BEIS,UKRI - AHRC,07/12/2021,T&S UK - Public Transport,AI&Design,Corporate Travel Management (North) Ltd,99093950,0.25,T&S UK - Public Transport
BEIS,UKRI - AHRC,07/12/2021,T&S UK - Public Transport,AI&Design,Corporate Travel Management (North) Ltd,99093950,241.80,T&S UK - Public Transport
BEIS,UKRI - AHRC,07/12/2021,T&S UK - Public Transport,Corporate Services,Corporate Travel Management (North) Ltd,99093950,0.25,T&S UK - Public Transport
BEIS,UKRI - AHRC,07/12/2021,T&S UK - Public Transport,Corporate Services,Corporate Travel Management (North) Ltd,99093950,150.60,T&S UK - Public Transport
BEIS,UKRI - AHRC,07/12/2021,T&S UK - Public Transport,Corporate Services,Corporate Travel Management (North) Ltd,99093950,0.25,T&S UK - Public Transport
BEIS,UKRI - AHRC,07/12/2021,T&S UK - Public Transport,Corporate Services,Corporate Travel Management (North) Ltd,99093950,151.60,T&S UK - Public Transport
BEIS,UKRI - AHRC,07/12/2021,T&S UK - Public Transport,Executive Office,Corporate Travel Management (North) Ltd,99093950,0.25,T&S UK - Public Transport
BEIS,UKRI - AHRC,07/12/2021,T&S UK - Public Transport,Executive Office,Corporate Travel Management (North) Ltd,99093950,152.60,T&S UK - Public Transport
BEIS,UKRI - AHRC,07/12/2021,T&S UK - Public Transport,Executive Office,Corporate Travel Management (North) Ltd,99093950,0.25,T&S UK - Public Transport
BEIS,UKRI - AHRC,07/12/2021,T&S UK - Public Transport,Executive Office,Corporate Travel Management (North) Ltd,99093950,68.70,T&S UK - Public Transport
BEIS,UKRI - AHRC,07/12/2021,T&S UK - Public Transport,Executive Office,Corporate Travel Management (North) Ltd,99093950,0.25,T&S UK - Public Transport
BEIS,UKRI - AHRC,07/12/2021,T&S UK - Public Transport,Executive Office,Corporate Travel Management (North) Ltd,99093950,47.80,T&S UK - Public Transport
BEIS,UKRI - AHRC,07/12/2021,T&S UK - Public Transport,FIC- US,Corporate Travel Management (North) Ltd,99093950,0.25,T&S UK - Public Transport
BEIS,UKRI - AHRC,07/12/2021,T&S UK - Public Transport,FIC- US,Corporate Travel Management (North) Ltd,99093950,28.90,T&S UK - Public Transport
BEIS,UKRI - AHRC,07/12/2021,T&S UK - Public Transport,ISCF Creative Clusters,Corporate Travel Management (North) Ltd,99093950,0.25,T&S UK - Public Transport
BEIS,UKRI - AHRC,07/12/2021,T&S UK - Public Transport,ISCF Creative Clusters,Corporate Travel Management (North) Ltd,99093950,159.40,T&S UK - Public Transport
BEIS,UKRI - AHRC,07/12/2021,T&S UK - Public Transport,ISCF Creative Clusters,Corporate Travel Management (North) Ltd,99093950,0.25,T&S UK - Public Transport
BEIS,UKRI - AHRC,07/12/2021,T&S UK - Public Transport,ISCF Creative Clusters,Corporate Travel Management (North) Ltd,99093950,110.30,T&S UK - Public Transport
BEIS,UKRI - AHRC,07/12/2021,T&S UK - Public Transport,ISCF Creative Clusters,Corporate Travel Management (North) Ltd,99093950,0.25,T&S UK - Public Transport
BEIS,UKRI - AHRC,07/12/2021,T&S UK - Public Transport,ISCF Creative Clusters,Corporate Travel Management (North) Ltd,99093950,161.40,T&S UK - Public Transport
BEIS,UKRI - AHRC,07/12/2021,T&S UK - Public Transport,Industrial Strategy Challenge Fund (ISCF) - Creative Clusters,Corporate Travel Management (North) Ltd,99093950,0.12,T&S UK - Public Transport
BEIS,UKRI - AHRC,07/12/2021,T&S UK - Public Transport,Industrial Strategy Challenge Fund (ISCF) - Creative Clusters,Corporate Travel Management (North) Ltd,99093950,12.60,T&S UK - Public Transport
BEIS,UKRI - AHRC,07/12/2021,T&S UK - Public Transport,Industrial Strategy Challenge Fund (ISCF) - Creative Clusters,Corporate Travel Management (North) Ltd,99093950,0.13,T&S UK - Public Transport
BEIS,UKRI - AHRC,07/12/2021,T&S UK - Public Transport,Industrial Strategy Challenge Fund (ISCF) - Creative Clusters,Corporate Travel Management (North) Ltd,99093950,12.60,T&S UK - Public Transport
BEIS,UKRI - AHRC,07/12/2021,T&S UK - Public Transport,Industrial Strategy Challenge Fund (ISCF) - Creative Clusters,Corporate Travel Management (North) Ltd,99093950,0.25,T&S UK - Public Transport
BEIS,UKRI - AHRC,07/12/2021,T&S UK - Public Transport,Industrial Strategy Challenge Fund (ISCF) - Creative Clusters,Corporate Travel Management (North) Ltd,99093950,161.40,T&S UK - Public Transport
BEIS,UKRI - AHRC,07/12/2021,T&S UK - Public Transport,Industrial Strategy Challenge Fund (ISCF) - Creative Clusters,Corporate Travel Management (North) Ltd,99093950,0.25,T&S UK - Public Transport
BEIS,UKRI - AHRC,07/12/2021,T&S UK - Public Transport,Industrial Strategy Challenge Fund (ISCF) - Creative Clusters,Corporate Travel Management (North) Ltd,99093950,161.40,T&S UK - Public Transport
BEIS,UKRI - AHRC,07/12/2021,T&S UK - Public Transport,Industrial Strategy Challenge Fund (ISCF) - Creative Clusters,Corporate Travel Management (North) Ltd,99093950,0.25,T&S UK - Public Transport
BEIS,UKRI - AHRC,07/12/2021,T&S UK - Public Transport,Industrial Strategy Challenge Fund (ISCF) - Creative Clusters,Corporate Travel Management (North) Ltd,99093950,56.80,T&S UK - Public Transport
BEIS,UKRI - AHRC,07/12/2021,T&S UK - Public Transport,Industrial Strategy Challenge Fund (ISCF) - Creative Clusters,Corporate Travel Management (North) Ltd,99093950,0.25,T&S UK - Public Transport
BEIS,UKRI - AHRC,07/12/2021,T&S UK - Public Transport,Industrial Strategy Challenge Fund (ISCF) - Creative Clusters,Corporate Travel Management (North) Ltd,99093950,40.30,T&S UK - Public Transport
BEIS,UKRI - AHRC,07/12/2021,T&S UK - Public Transport,Industrial Strategy Challenge Fund (ISCF) - Creative Clusters,Corporate Travel Management (North) Ltd,99093950,0.25,T&S UK - Public Transport
BEIS,UKRI - AHRC,07/12/2021,T&S UK - Public Transport,Industrial Strategy Challenge Fund (ISCF) - Creative Clusters,Corporate Travel Management (North) Ltd,99093950,39.20,T&S UK - Public Transport
BEIS,UKRI - AHRC,07/12/2021,T&S UK - Public Transport,Industrial Strategy Challenge Fund (ISCF) - Creative Clusters,Corporate Travel Management (North) Ltd,99093950,0.50,T&S UK - Public Transport
BEIS,UKRI - AHRC,07/12/2021,T&S UK - Public Transport,Industrial Strategy Challenge Fund (ISCF) - Creative Clusters,Corporate Travel Management (North) Ltd,99093950,42.10,T&S UK - Public Transport
BEIS,UKRI - AHRC,07/12/2021,T&S UK - Public Transport,Industrial Strategy Challenge Fund (ISCF) - Creative Clusters,Corporate Travel Management (North) Ltd,99093950,62.80,T&S UK - Public Transport
BEIS,UKRI - AHRC,07/12/2021,T&S UK - Public Transport,Industrial Strategy Challenge Fund (ISCF) - Creative Clusters,Corporate Travel Management (North) Ltd,99093950,0.12,T&S UK - Public Transport
BEIS,UKRI - AHRC,07/12/2021,T&S UK - Public Transport,Industrial Strategy Challenge Fund (ISCF) - Creative Clusters,Corporate Travel Management (North) Ltd,99093950,68.70,T&S UK - Public Transport
BEIS,UKRI - AHRC,07/12/2021,T&S UK - Public Transport,Industrial Strategy Challenge Fund (ISCF) - Creative Clusters,Corporate Travel Management (North) Ltd,99093950,0.13,T&S UK - Public Transport
BEIS,UKRI - AHRC,07/12/2021,T&S UK - Public Transport,Industrial Strategy Challenge Fund (ISCF) - Creative Clusters,Corporate Travel Management (North) Ltd,99093950,68.70,T&S UK - Public Transport
BEIS,UKRI - AHRC,07/12/2021,T&S UK - Public Transport,Infrastructure Fund - CoSTAR,Corporate Travel Management (North) Ltd,99093950,0.25,T&S UK - Public Transport
BEIS,UKRI - AHRC,07/12/2021,T&S UK - Public Transport,Infrastructure Fund - CoSTAR,Corporate Travel Management (North) Ltd,99093950,28.90,T&S UK - Public Transport
BEIS,UKRI - AHRC,07/12/2021,T&S UK - Public Transport,Infrastructure Fund - CoSTAR,Corporate Travel Management (North) Ltd,99093950,0.25,T&S UK - Public Transport
BEIS,UKRI - AHRC,07/12/2021,T&S UK - Public Transport,Infrastructure Fund - CoSTAR,Corporate Travel Management (North) Ltd,99093950,120.80,T&S UK - Public Transport
BEIS,UKRI - AHRC,07/12/2021,T&S UK - Public Transport,Infrastruture Roadmap,Corporate Travel Management (North) Ltd,99093950,0.25,T&S UK - Public Transport
BEIS,UKRI - AHRC,07/12/2021,T&S UK - Public Transport,Infrastruture Roadmap,Corporate Travel Management (North) Ltd,99093950,174.20,T&S UK - Public Transport
BEIS,UKRI - AHRC,07/12/2021,T&S UK - Public Transport,Infrastruture Roadmap,Corporate Travel Management (North) Ltd,99093950,0.50,T&S UK - Public Transport
BEIS,UKRI - AHRC,07/12/2021,T&S UK - Public Transport,Infrastruture Roadmap,Corporate Travel Management (North) Ltd,99093950,22.40,T&S UK - Public Transport
BEIS,UKRI - AHRC,07/12/2021,T&S UK - Public Transport,Infrastruture Roadmap,Corporate Travel Management (North) Ltd,99093950,103.30,T&S UK - Public Transport
BEIS,UKRI - AHRC,07/12/2021,T&S UK - Public Transport,Infrastruture Roadmap,Corporate Travel Management (North) Ltd,99093950,0.25,T&S UK - Public Transport
BEIS,UKRI - AHRC,07/12/2021,T&S UK - Public Transport,Infrastruture Roadmap,Corporate Travel Management (North) Ltd,99093950,91.70,T&S UK - Public Transport
BEIS,UKRI - AHRC,07/12/2021,T&S UK - Public Transport,Infrastruture Roadmap,Corporate Travel Management (North) Ltd,99093950,0.25,T&S UK - Public Transport
BEIS,UKRI - AHRC,07/12/2021,T&S UK - Public Transport,Infrastruture Roadmap,Corporate Travel Management (North) Ltd,99093950,408.40,T&S UK - Public Transport
BEIS,UKRI - AHRC,07/12/2021,T&S UK - Public Transport,Infrastruture Roadmap,Corporate Travel Management (North) Ltd,99093950,0.25,T&S UK - Public Transport
BEIS,UKRI - AHRC,07/12/2021,T&S UK - Public Transport,Infrastruture Roadmap,Corporate Travel Management (North) Ltd,99093950,17.40,T&S UK - Public Transport
BEIS,UKRI - AHRC,07/12/2021,T&S UK - Public Transport,Infrastruture Roadmap,Corporate Travel Management (North) Ltd,99093950,0.25,T&S UK - Public Transport
BEIS,UKRI - AHRC,07/12/2021,T&S UK - Public Transport,Infrastruture Roadmap,Corporate Travel Management (North) Ltd,99093950,115.40,T&S UK - Public Transport
BEIS,UKRI - AHRC,07/12/2021,T&S UK - Public Transport,Infrastruture Roadmap,Corporate Travel Management (North) Ltd,99093950,0.25,T&S UK - Public Transport
BEIS,UKRI - AHRC,07/12/2021,T&S UK - Public Transport,Infrastruture Roadmap,Corporate Travel Management (North) Ltd,99093950,31.60,T&S UK - Public Transport
BEIS,UKRI - AHRC,07/12/2021,T&S UK - Public Transport,SMT,Corporate Travel Management (North) Ltd,99093950,0.25,T&S UK - Public Transport
BEIS,UKRI - AHRC,07/12/2021,T&S UK - Public Transport,SMT,Corporate Travel Management (North) Ltd,99093950,82.20,T&S UK - Public Transport
BEIS,UKRI - AHRC,07/12/2021,T&S UK - Public Transport,Skills Strategy,Corporate Travel Management (North) Ltd,99093950,0.25,T&S UK - Public Transport
BEIS,UKRI - AHRC,07/12/2021,T&S UK - Public Transport,Skills Strategy,Corporate Travel Management (North) Ltd,99093950,100.30,T&S UK - Public Transport
BEIS,UKRI - AHRC,08/12/2021,Financial Services,Corporate Services,CCI Credit Management Ltd,99096993,1.32,Financial Services
BEIS,UKRI - AHRC,08/12/2021,Fees (Including College Members),Operations,Unspecified,99097147,170.00,Fees (Including College Members)
BEIS,UKRI - AHRC,08/12/2021,Fees (Including College Members),Operations,Unspecified,99097148,170.00,Fees (Including College Members)
BEIS,UKRI - AHRC,08/12/2021,Fees (Including College Members),Operations,Unspecified,99097149,170.00,Fees (Including College Members)
BEIS,UKRI - AHRC,08/12/2021,Fees (Including College Members),Operations,Unspecified,99097150,170.00,Fees (Including College Members)
BEIS,UKRI - AHRC,08/12/2021,Fees (Including College Members),Operations,Unspecified,99097151,170.00,Fees (Including College Members)
BEIS,UKRI - AHRC,09/12/2021,Health & Safety (inc. Medicals & Opticians),"History, Heritage, Languages and Literature",Unspecified,99082463,14.99,Health & Safety (inc. Medicals & Opticians)
BEIS,UKRI - AHRC,13/12/2021,Unspecified,Infrastruture Roadmap,Alexander Mann Solutions Ltd,99101578,2772.24,Legal & Professional Services
BEIS,UKRI - AHRC,14/12/2021,Unspecified,Infrastruture Roadmap,Alexander Mann Solutions Ltd,99092310,2772.24,Legal & Professional Services
BEIS,UKRI - AHRC,14/12/2021,Unspecified,Balance Sheet,HM Revenue & Customs,99098345,68990.23,NI Payable Salaries
BEIS,UKRI - AHRC,14/12/2021,Unspecified,Balance Sheet,HM Revenue & Customs,99098346,52928.46,PAYE Payable Salaries
BEIS,UKRI - AHRC,14/12/2021,Unspecified,Balance Sheet,HM Revenue & Customs,99098347,6375.00,Student Loans
BEIS,UKRI - AHRC,14/12/2021,Unspecified,Corporate Services,HM Revenue & Customs,99098348,1751.00,Apprenticeship Levy
BEIS,UKRI - AHRC,14/12/2021,Research Grant Expenditure,Commissioned Research,UKRI - Engineering & Physical Sciences Research Council,99102106,300000.00,Research Grant Expenditure
BEIS,UKRI - AHRC,15/12/2021,Overseas - Professional Memberships & Subscriptions,Infrastruture Roadmap,Unspecified,99087024,86243.79,Overseas - Professional Memberships & Subscriptions
BEIS,UKRI - AHRC,15/12/2021,Voluntary Deductions,Balance Sheet,Swindon Office Sports and Social Club,99098349,24.00,Voluntary Deductions
BEIS,UKRI - AHRC,15/12/2021,Union Deductions,Balance Sheet,PCS Union,99098350,56.24,Union Deductions
BEIS,UKRI - AHRC,15/12/2021,Unspecified,Balance Sheet,Unspecified,99098351,10015.47,Ees Pension Deductions - JSS
BEIS,UKRI - AHRC,15/12/2021,Unspecified,Balance Sheet,Unspecified,99098352,44061.15,Ers Pension Deductions - JSS
BEIS,UKRI - AHRC,15/12/2021,Unspecified,Balance Sheet,Scottish Widows,99098353,384.68,Partnership Pension Deductions
BEIS,UKRI - AHRC,15/12/2021,Unspecified,Balance Sheet,Cabinet Office RM Shared Services,99098354,8088.71,Ees Pension Deductions - MyCSP
BEIS,UKRI - AHRC,15/12/2021,Unspecified,Balance Sheet,Cabinet Office RM Shared Services,99098355,42269.29,Ers Pension Deductions - MyCSP
BEIS,UKRI - AHRC,15/12/2021,Nursery Deductions,Balance Sheet,UKRI - Engineering & Physical Sciences Research Council,99098356,1063.00,Nursery Deductions
BEIS,UKRI - AHRC,15/12/2021,Unspecified,Balance Sheet,Unspecified,99098357,173.51,Ees Pension Deductions - MRC
BEIS,UKRI - AHRC,15/12/2021,Unspecified,Balance Sheet,Unspecified,99098358,427.09,Ers Pension Deductions - MRC
BEIS,UKRI - AHRC,15/12/2021,Fees (Including College Members),Operations,Unspecified,99101130,170.00,Fees (Including College Members)
BEIS,UKRI - AHRC,15/12/2021,Fees (Including College Members),Operations,Unspecified,99101131,170.00,Fees (Including College Members)
BEIS,UKRI - AHRC,15/12/2021,Fees (Including College Members),Operations,Unspecified,99101132,230.00,Fees (Including College Members)
BEIS,UKRI - AHRC,15/12/2021,Non-staff travel and subsistance,Public Engagement,Unspecified,99101143,5000.00,Non-staff travel and subsistance
BEIS,UKRI - AHRC,15/12/2021,Non-staff travel and subsistance,Public Engagement,Unspecified,99101144,5000.00,Non-staff travel and subsistance
BEIS,UKRI - AHRC,15/12/2021,Non-staff travel and subsistance,Public Engagement,Unspecified,99101145,5000.00,Non-staff travel and subsistance
BEIS,UKRI - AHRC,15/12/2021,Non-staff travel and subsistance,Public Engagement,Unspecified,99101146,5000.00,Non-staff travel and subsistance
BEIS,UKRI - AHRC,15/12/2021,T&S UK - Other Charges,SMT,Unspecified,99102850,69.49,T&S UK - Other Charges
BEIS,UKRI - AHRC,16/12/2021,Unspecified,Public Engagement,Giggabox Ltd,99098401,194.04,Legal & Professional Services
BEIS,UKRI - AHRC,16/12/2021,Fees (Including College Members),Infrastructure Fund - CoSTAR,Unspecified,99102852,170.00,Fees (Including College Members)
BEIS,UKRI - AHRC,17/12/2021,Research Grant Expenditure,Artificial Intelligence,The Nuffield Foundation,99103962,52000.00,Research Grant Expenditure
BEIS,UKRI - AHRC,17/12/2021,T&S UK - Public Transport,Strategy and Evidence,Unspecified,99104435,7.50,T&S UK - Public Transport
BEIS,UKRI - AHRC,17/12/2021,T&S UK - Subsistence,Strategy and Evidence,Unspecified,99104435,15.00,T&S UK - Subsistence
BEIS,UKRI - AHRC,17/12/2021,T&S UK - Subsistence,Strategy and Evidence,Unspecified,99104435,13.25,T&S UK - Subsistence
BEIS,UKRI - AHRC,20/12/2021,Unspecified,SMT,"Keble College, University of Oxford",99086451,5458.16,Secondments
BEIS,UKRI - AHRC,20/12/2021,Research Grant Expenditure,AHRC - DCMS International Heritage Partnership,University of the Arts London,99096100,73623.75,Research Grant Expenditure
BEIS,UKRI - AHRC,20/12/2021,Research Grant Expenditure,Intergenerational Justice,Nottingham Trent University,99096101,48200.79,Research Grant Expenditure
BEIS,UKRI - AHRC,20/12/2021,Research Grant Expenditure,Design: Strategic Initiatives,University of the Arts London,99096102,11515.95,Research Grant Expenditure
BEIS,UKRI - AHRC,20/12/2021,Research Grant Expenditure,Design: Strategic Initiatives,Brunel University London,99096103,10081.01,Research Grant Expenditure
BEIS,UKRI - AHRC,20/12/2021,Research Grant Expenditure,Design: Strategic Initiatives,Glasgow School of Art,99096104,12169.64,Research Grant Expenditure
BEIS,UKRI - AHRC,20/12/2021,Research Grant Expenditure,Design: Strategic Initiatives,University of Cambridge,99096105,12129.32,Research Grant Expenditure
BEIS,UKRI - AHRC,20/12/2021,Research Grant Expenditure,Design: Strategic Initiatives,De Montfort University,99096106,10026.94,Research Grant Expenditure
BEIS,UKRI - AHRC,20/12/2021,Research Grant Expenditure,Design: Strategic Initiatives,University of Brighton,99096107,12601.25,Research Grant Expenditure
BEIS,UKRI - AHRC,20/12/2021,Research Grant Expenditure,Design: Strategic Initiatives,UNIVERSITY OF ULSTER,99096108,12437.35,Research Grant Expenditure
BEIS,UKRI - AHRC,20/12/2021,Research Grant Expenditure,Investment in Place,University of Glasgow,99096109,50429.80,Research Grant Expenditure
BEIS,UKRI - AHRC,20/12/2021,Research Grant Expenditure,Digital Transformations,University of Oxford,99096110,52424.69,Research Grant Expenditure
BEIS,UKRI - AHRC,20/12/2021,Research Grant Expenditure,Digital Transformations,The British Library,99096112,74791.30,Research Grant Expenditure
BEIS,UKRI - AHRC,20/12/2021,Research Grant Expenditure,Intergenerational Justice,National Museums of Scotland,99096113,125711.09,Research Grant Expenditure
BEIS,UKRI - AHRC,20/12/2021,Research Grant Expenditure,Follow-on Fund,Queen Mary University of London,99096114,48745.46,Research Grant Expenditure
BEIS,UKRI - AHRC,20/12/2021,Research Grant Expenditure,Follow-on Fund,Northumbria University,99096115,50793.65,Research Grant Expenditure
BEIS,UKRI - AHRC,20/12/2021,Research Grant Expenditure,Follow-on Fund,"SOAS, University of London",99096116,48958.01,Research Grant Expenditure
BEIS,UKRI - AHRC,20/12/2021,Research Grant Expenditure,Follow-on Fund,University of Leeds,99096117,48745.39,Research Grant Expenditure
BEIS,UKRI - AHRC,20/12/2021,Research Grant Expenditure,Follow-on Fund,Cardiff University,99096118,48491.83,Research Grant Expenditure
BEIS,UKRI - AHRC,20/12/2021,Research Grant Expenditure,Follow-on Fund,University of Leeds,99096119,48100.79,Research Grant Expenditure
BEIS,UKRI - AHRC,20/12/2021,Research Grant Expenditure,Follow-on Fund,Goldsmiths College University of London,99096120,45296.80,Research Grant Expenditure
BEIS,UKRI - AHRC,20/12/2021,Research Grant Expenditure,Follow-on Fund,University of Leeds,99096121,47533.72,Research Grant Expenditure
BEIS,UKRI - AHRC,20/12/2021,Research Grant Expenditure,Follow-on Fund,University of Essex,99096122,47475.60,Research Grant Expenditure
BEIS,UKRI - AHRC,20/12/2021,Research Grant Expenditure,Follow-on Fund,Lancaster University,99096123,50059.66,Research Grant Expenditure
BEIS,UKRI - AHRC,20/12/2021,Research Grant Expenditure,Follow-on Fund,"SOAS, University of London",99096124,45349.87,Research Grant Expenditure
BEIS,UKRI - AHRC,20/12/2021,Research Grant Expenditure,Follow-on Fund,University of Reading,99096125,43747.13,Research Grant Expenditure
BEIS,UKRI - AHRC,20/12/2021,Research Grant Expenditure,Follow-on Fund,Queen's University Belfast GRANT,99096126,52555.36,Research Grant Expenditure
BEIS,UKRI - AHRC,20/12/2021,Research Grant Expenditure,Follow-on Fund,University of Leicester,99096127,50613.68,Research Grant Expenditure
BEIS,UKRI - AHRC,20/12/2021,Research Grant Expenditure,Follow-on Fund,University of Bradford,99096128,46984.68,Research Grant Expenditure
BEIS,UKRI - AHRC,20/12/2021,Research Grant Expenditure,Digital Transformations,The Natural History Museum,99096129,65526.36,Research Grant Expenditure
BEIS,UKRI - AHRC,20/12/2021,Research Grant Expenditure,Follow-on Fund,University of Leeds,99096130,53726.15,Research Grant Expenditure
BEIS,UKRI - AHRC,20/12/2021,Research Grant Expenditure,Follow-on Fund,University of Liverpool,99096131,44666.40,Research Grant Expenditure
BEIS,UKRI - AHRC,20/12/2021,Research Grant Expenditure,Follow-on Fund,Cardiff University,99096132,44094.17,Research Grant Expenditure
BEIS,UKRI - AHRC,20/12/2021,Research Grant Expenditure,Follow-on Fund,Institute of Development Studies,99096133,48939.16,Research Grant Expenditure
BEIS,UKRI - AHRC,20/12/2021,Research Grant Expenditure,Follow-on Fund,University of Surrey,99096134,42848.98,Research Grant Expenditure
BEIS,UKRI - AHRC,20/12/2021,Research Grant Expenditure,Follow-on Fund,University of Oxford,99096135,47969.18,Research Grant Expenditure
BEIS,UKRI - AHRC,20/12/2021,Research Grant Expenditure,Follow-on Fund,University of Birmingham GRANT,99096136,48142.77,Research Grant Expenditure
BEIS,UKRI - AHRC,20/12/2021,Research Grant Expenditure,Follow-on Fund,University of Edinburgh,99096137,46411.56,Research Grant Expenditure
BEIS,UKRI - AHRC,20/12/2021,Research Grant Expenditure,Follow-on Fund,University of Brighton,99096138,45725.79,Research Grant Expenditure
BEIS,UKRI - AHRC,20/12/2021,Research Grant Expenditure,Public and Stakeholder Engagement,University of Kent,99096139,9891.28,Research Grant Expenditure
BEIS,UKRI - AHRC,20/12/2021,Research Grant Expenditure,Public and Stakeholder Engagement,Lancaster University,99096140,9233.19,Research Grant Expenditure
BEIS,UKRI - AHRC,20/12/2021,Research Grant Expenditure,Public and Stakeholder Engagement,Kingston University,99096141,6054.65,Research Grant Expenditure
BEIS,UKRI - AHRC,20/12/2021,Research Grant Expenditure,Public and Stakeholder Engagement,University of Exeter,99096142,5922.59,Research Grant Expenditure
BEIS,UKRI - AHRC,20/12/2021,Research Grant Expenditure,Public and Stakeholder Engagement,University of Exeter,99096143,9874.34,Research Grant Expenditure
BEIS,UKRI - AHRC,20/12/2021,Research Grant Expenditure,Public and Stakeholder Engagement,Manchester Metropolitan University,99096144,10068.90,Research Grant Expenditure
BEIS,UKRI - AHRC,20/12/2021,Research Grant Expenditure,Follow-on Fund,University of Cambridge,99096145,3571.01,Research Grant Expenditure
BEIS,UKRI - AHRC,20/12/2021,Research Grant Expenditure,COVID-19 (AHRC funded),Bangor University,99096146,22141.99,Research Grant Expenditure
BEIS,UKRI - AHRC,20/12/2021,Research Grant Expenditure,COVID-19 (AHRC funded),Bangor University,99096146,22141.97,Research Grant Expenditure
BEIS,UKRI - AHRC,20/12/2021,Research Grant Expenditure,Follow-on Fund,University of Newcastle Upon Tyne,99096147,19536.30,Research Grant Expenditure
BEIS,UKRI - AHRC,20/12/2021,Research Grant Expenditure,COVID-19 (AHRC funded),University of Oxford,99096148,45312.40,Research Grant Expenditure
BEIS,UKRI - AHRC,20/12/2021,Research Grant Expenditure,COVID-19 (AHRC funded),Bangor University,99096149,85993.46,Research Grant Expenditure
BEIS,UKRI - AHRC,20/12/2021,Research Grant Expenditure,COVID-19 (AHRC funded),University of Huddersfield,99096150,11923.04,Research Grant Expenditure
BEIS,UKRI - AHRC,20/12/2021,Research Grant Expenditure,Towards a National Collection (SPF),University College London,99096151,230876.49,Research Grant Expenditure
BEIS,UKRI - AHRC,20/12/2021,Research Grant Expenditure,Towards a National Collection (SPF),University of the Arts London,99096153,242723.49,Research Grant Expenditure
BEIS,UKRI - AHRC,20/12/2021,Research Grant Expenditure,Towards a National Collection (SPF),Science Museum Group,99096154,220679.77,Research Grant Expenditure
BEIS,UKRI - AHRC,20/12/2021,Research Grant Expenditure,Towards a National Collection (SPF),University of Glasgow,99096155,181469.50,Research Grant Expenditure
BEIS,UKRI - AHRC,20/12/2021,Research Grant Expenditure,Commissioned Research,Goldsmiths College University of London,99096156,19296.79,Research Grant Expenditure
BEIS,UKRI - AHRC,20/12/2021,Research Grant Expenditure,Commissioned Research,Goldsmiths College University of London,99096156,16228.79,Research Grant Expenditure
BEIS,UKRI - AHRC,20/12/2021,Research Grant Expenditure,Follow-on Fund,Cardiff University,99096157,8437.27,Research Grant Expenditure
BEIS,UKRI - AHRC,20/12/2021,Research Grant Expenditure,Funds for International Collaboration (FIC2-06 Ireland),University of Oxford,99096158,23353.98,Research Grant Expenditure
BEIS,UKRI - AHRC,20/12/2021,Research Grant Expenditure,Funds for International Collaboration (FIC2-06 Ireland),University of Glasgow,99096159,26867.46,Research Grant Expenditure
BEIS,UKRI - AHRC,20/12/2021,Research Grant Expenditure,Funds for International Collaboration (FIC2-06 Ireland),Manchester Metropolitan University,99096160,43210.33,Research Grant Expenditure
BEIS,UKRI - AHRC,20/12/2021,Research Grant Expenditure,Funds for International Collaboration (FIC2-06 Ireland),University of Edinburgh,99096161,28509.86,Research Grant Expenditure
BEIS,UKRI - AHRC,20/12/2021,Research Grant Expenditure,Funds for International Collaboration (FIC2-06 Ireland),Loughborough University,99096162,26881.72,Research Grant Expenditure
BEIS,UKRI - AHRC,20/12/2021,Research Grant Expenditure,Funds for International Collaboration (FIC2-06 Ireland),Queen's University Belfast GRANT,99096163,25755.43,Research Grant Expenditure
BEIS,UKRI - AHRC,20/12/2021,Research Grant Expenditure,Funds for International Collaboration (FIC2-06 Ireland),University of East Anglia,99096164,34677.24,Research Grant Expenditure
BEIS,UKRI - AHRC,20/12/2021,Research Grant Expenditure,Funds for International Collaboration (FIC2-06 Ireland),University of Sussex,99096165,31970.95,Research Grant Expenditure
BEIS,UKRI - AHRC,20/12/2021,Research Grant Expenditure,Funds for International Collaboration (FIC2-06 Ireland),University of Brighton,99096166,23049.48,Research Grant Expenditure
BEIS,UKRI - AHRC,20/12/2021,Research Grant Expenditure,Funds for International Collaboration (FIC2-06 Ireland),Cardiff University,99096167,31318.56,Research Grant Expenditure
BEIS,UKRI - AHRC,20/12/2021,Research Grant Expenditure,Funds for International Collaboration (FIC2-06 Ireland),University of Sheffield,99096168,23625.03,Research Grant Expenditure
BEIS,UKRI - AHRC,20/12/2021,Research Grant Expenditure,COVID-19 (AHRC funded),University of Exeter,99096169,25197.70,Research Grant Expenditure
BEIS,UKRI - AHRC,20/12/2021,Research Grant Expenditure,JPI Cultural Heritage,Sheffield Hallam University,99096170,19689.70,Research Grant Expenditure
BEIS,UKRI - AHRC,20/12/2021,Research Grant Expenditure,JPI Cultural Heritage,University of the Highlands and Islands,99096171,12051.10,Research Grant Expenditure
BEIS,UKRI - AHRC,20/12/2021,Research Grant Expenditure,JPI Cultural Heritage,Falmouth University,99096172,19533.62,Research Grant Expenditure
BEIS,UKRI - AHRC,20/12/2021,Research Grant Expenditure,COVID-19 (AHRC funded),University of Exeter,99096173,6262.48,Research Grant Expenditure
BEIS,UKRI - AHRC,20/12/2021,Research Grant Expenditure,JPI Cultural Heritage,"SOAS, University of London",99096174,10206.31,Research Grant Expenditure
BEIS,UKRI - AHRC,20/12/2021,Research Grant Expenditure,JPI Cultural Heritage,Kingston University,99096175,8692.35,Research Grant Expenditure
BEIS,UKRI - AHRC,20/12/2021,Research Grant Expenditure,Networks & Workshops,Manchester Metropolitan University,99096176,4507.51,Research Grant Expenditure
BEIS,UKRI - AHRC,20/12/2021,Research Grant Expenditure,Networks & Workshops,Manchester Metropolitan University,99096176,4507.47,Research Grant Expenditure
BEIS,UKRI - AHRC,20/12/2021,Research Grant Expenditure,COVID-19 (AHRC funded),Queen Mary University of London,99096177,33616.83,Research Grant Expenditure
BEIS,UKRI - AHRC,20/12/2021,Research Grant Expenditure,COVID-19,Nottingham Trent University,99096178,30303.26,Research Grant Expenditure
BEIS,UKRI - AHRC,20/12/2021,Research Grant Expenditure,Networks & Workshops,University of West London,99096179,5975.60,Research Grant Expenditure
BEIS,UKRI - AHRC,20/12/2021,Research Grant Expenditure,COVID-19 (AHRC funded),Queen Mary University of London,99096180,47696.66,Research Grant Expenditure
BEIS,UKRI - AHRC,20/12/2021,Research Grant Expenditure,Research Grants,University of York,99096181,54082.78,Research Grant Expenditure
BEIS,UKRI - AHRC,20/12/2021,Research Grant Expenditure,COVID-19 (AHRC funded),University of Strathclyde,99096182,40002.59,Research Grant Expenditure
BEIS,UKRI - AHRC,20/12/2021,Research Grant Expenditure,Follow-on Fund,University of Portsmouth,99096183,16278.72,Research Grant Expenditure
BEIS,UKRI - AHRC,20/12/2021,Research Grant Expenditure,COVID-19 (AHRC funded),National Centre for Social Research,99096184,19429.88,Research Grant Expenditure
BEIS,UKRI - AHRC,20/12/2021,Research Grant Expenditure,COVID-19 (AHRC funded),University of Exeter,99096185,22401.19,Research Grant Expenditure
BEIS,UKRI - AHRC,20/12/2021,Research Grant Expenditure,COVID-19,University of the West of England,99096186,39571.62,Research Grant Expenditure
BEIS,UKRI - AHRC,20/12/2021,Research Grant Expenditure,COVID-19,Royal College of Art,99096187,53759.95,Research Grant Expenditure
BEIS,UKRI - AHRC,20/12/2021,Research Grant Expenditure,COVID-19 (AHRC funded),University of Edinburgh,99096188,62379.72,Research Grant Expenditure
BEIS,UKRI - AHRC,20/12/2021,Research Grant Expenditure,COVID-19 (AHRC funded),Bournemouth University,99096189,46776.60,Research Grant Expenditure
BEIS,UKRI - AHRC,20/12/2021,Research Grant Expenditure,COVID-19 (AHRC funded),University of Glasgow,99096190,48036.54,Research Grant Expenditure
BEIS,UKRI - AHRC,20/12/2021,Research Grant Expenditure,COVID-19 (AHRC funded),University of Salford,99096191,35767.05,Research Grant Expenditure
BEIS,UKRI - AHRC,20/12/2021,Research Grant Expenditure,COVID-19 (AHRC funded),University of Nottingham,99096192,60854.36,Research Grant Expenditure
BEIS,UKRI - AHRC,20/12/2021,Research Grant Expenditure,COVID-19,The Open University,99096193,10714.87,Research Grant Expenditure
BEIS,UKRI - AHRC,20/12/2021,Research Grant Expenditure,COVID-19,University of Leicester,99096194,49354.69,Research Grant Expenditure
BEIS,UKRI - AHRC,20/12/2021,Research Grant Expenditure,COVID-19 (AHRC funded),Queen Mary University of London,99096195,32518.42,Research Grant Expenditure
BEIS,UKRI - AHRC,20/12/2021,Research Grant Expenditure,COVID-19 (AHRC funded),Birkbeck College,99096196,25351.96,Research Grant Expenditure
BEIS,UKRI - AHRC,20/12/2021,Research Grant Expenditure,COVID-19 (AHRC funded),University of Reading,99096197,17343.61,Research Grant Expenditure
BEIS,UKRI - AHRC,20/12/2021,Research Grant Expenditure,COVID-19 (AHRC funded),University of Southampton GRANT,99096198,28194.09,Research Grant Expenditure
BEIS,UKRI - AHRC,20/12/2021,Research Grant Expenditure,COVID-19,University of Newcastle Upon Tyne,99096199,73971.02,Research Grant Expenditure
BEIS,UKRI - AHRC,20/12/2021,Research Grant Expenditure,COVID-19 (AHRC funded),King's College London,99096200,55598.56,Research Grant Expenditure
BEIS,UKRI - AHRC,20/12/2021,Research Grant Expenditure,Networks & Workshops,National Maritime Museum,99096201,6014.42,Research Grant Expenditure
BEIS,UKRI - AHRC,20/12/2021,Research Grant Expenditure,COVID-19 (AHRC funded),University of Oxford,99096202,101450.28,Research Grant Expenditure
BEIS,UKRI - AHRC,20/12/2021,Research Grant Expenditure,COVID-19,Queen Mary University of London,99096203,83111.17,Research Grant Expenditure
BEIS,UKRI - AHRC,20/12/2021,Research Grant Expenditure,COVID-19,University of Brighton,99096204,32514.90,Research Grant Expenditure
BEIS,UKRI - AHRC,20/12/2021,Research Grant Expenditure,COVID-19,Royal College of Music,99096205,66285.46,Research Grant Expenditure
BEIS,UKRI - AHRC,20/12/2021,Research Grant Expenditure,COVID-19,University College London,99096206,59183.97,Research Grant Expenditure
BEIS,UKRI - AHRC,20/12/2021,Research Grant Expenditure,Research Grants,University of London,99096207,51411.82,Research Grant Expenditure
BEIS,UKRI - AHRC,20/12/2021,Research Grant Expenditure,COVID-19,Northumbria University,99096208,20293.28,Research Grant Expenditure
BEIS,UKRI - AHRC,20/12/2021,Research Grant Expenditure,COVID-19,University of Exeter,99096209,41883.48,Research Grant Expenditure
BEIS,UKRI - AHRC,20/12/2021,Research Grant Expenditure,Networks & Workshops,University of Exeter,99096210,11543.36,Research Grant Expenditure
BEIS,UKRI - AHRC,20/12/2021,Research Grant Expenditure,COVID-19 (AHRC funded),"Royal Holloway, University of London",99096211,32857.01,Research Grant Expenditure
BEIS,UKRI - AHRC,20/12/2021,Research Grant Expenditure,Modern Slavery and Human Rights (SPF),University of Stirling,99096212,114755.35,Research Grant Expenditure
BEIS,UKRI - AHRC,20/12/2021,Research Grant Expenditure,Research Grants,Aberystwyth University,99096213,57341.16,Research Grant Expenditure
BEIS,UKRI - AHRC,20/12/2021,Research Grant Expenditure,COVID-19 (AHRC funded),University of Strathclyde,99096214,12780.19,Research Grant Expenditure
BEIS,UKRI - AHRC,20/12/2021,Research Grant Expenditure,Modern Slavery and Human Rights (SPF),St Marys University,99096215,56196.42,Research Grant Expenditure
BEIS,UKRI - AHRC,20/12/2021,Research Grant Expenditure,Modern Slavery and Human Rights (SPF),King's College London,99096216,87433.53,Research Grant Expenditure
BEIS,UKRI - AHRC,20/12/2021,Research Grant Expenditure,Modern Slavery and Human Rights (SPF),University of Birmingham GRANT,99096217,94128.73,Research Grant Expenditure
BEIS,UKRI - AHRC,20/12/2021,Research Grant Expenditure,Modern Slavery and Human Rights (SPF),University of Bedfordshire,99096218,127335.79,Research Grant Expenditure
BEIS,UKRI - AHRC,20/12/2021,Research Grant Expenditure,COVID-19,UNIVERSITY OF ULSTER,99096219,33535.93,Research Grant Expenditure
BEIS,UKRI - AHRC,20/12/2021,Research Grant Expenditure,COVID-19,University of Glasgow,99096220,44546.61,Research Grant Expenditure
BEIS,UKRI - AHRC,20/12/2021,Research Grant Expenditure,Research Grants,University of Edinburgh,99099221,70556.49,Research Grant Expenditure
BEIS,UKRI - AHRC,20/12/2021,Research Grant Expenditure,Follow-on Fund,University of Nottingham,99099222,25043.43,Research Grant Expenditure
BEIS,UKRI - AHRC,20/12/2021,Capital Grants & Equipment to HEIs,DEDEFI Capital Grants,Historic Environment Scotland (GRANT),99099223,130272.29,Capital Grants & Equipment to HEIs
BEIS,UKRI - AHRC,20/12/2021,Capital Grants & Equipment to HEIs,DEDEFI Capital Grants,University of Durham,99099224,277284.00,Capital Grants & Equipment to HEIs
BEIS,UKRI - AHRC,20/12/2021,Capital Grants & Equipment to HEIs,DEDEFI Capital Grants,Manchester Metropolitan University,99099225,309926.24,Capital Grants & Equipment to HEIs
BEIS,UKRI - AHRC,20/12/2021,Research Grant Expenditure,COVID-19,University of Birmingham GRANT,99099226,37824.48,Research Grant Expenditure
BEIS,UKRI - AHRC,20/12/2021,Research Grant Expenditure,Commissioned Research,University of Oxford,99099227,38605.65,Research Grant Expenditure
BEIS,UKRI - AHRC,20/12/2021,Research Grant Expenditure,Networks & Workshops,University of Birmingham GRANT,99099228,4567.39,Research Grant Expenditure
BEIS,UKRI - AHRC,20/12/2021,Research Grant Expenditure,Research Grants,University of Exeter,99099229,43095.64,Research Grant Expenditure
BEIS,UKRI - AHRC,20/12/2021,Research Grant Expenditure,Networks & Workshops,Liverpool John Moores University,99099230,6026.42,Research Grant Expenditure
BEIS,UKRI - AHRC,20/12/2021,Research Grant Expenditure,Commissioned Research,University of Exeter,99099231,43247.48,Research Grant Expenditure
BEIS,UKRI - AHRC,20/12/2021,Research Grant Expenditure,Research Grants,University of Greenwich,99099232,32647.10,Research Grant Expenditure
BEIS,UKRI - AHRC,20/12/2021,Research Grant Expenditure,Follow-on Fund,"Royal Holloway, University of London",99099233,19722.74,Research Grant Expenditure
BEIS,UKRI - AHRC,20/12/2021,Research Grant Expenditure,Follow-on Fund,"Royal Holloway, University of London",99099233,19722.75,Research Grant Expenditure
BEIS,UKRI - AHRC,20/12/2021,Research Grant Expenditure,Networks & Workshops,The University of Manchester,99099234,4498.28,Research Grant Expenditure
BEIS,UKRI - AHRC,20/12/2021,Research Grant Expenditure,Global Challenges Research Fund (GCRF),The Open University,99099235,10410.00,Research Grant Expenditure
BEIS,UKRI - AHRC,20/12/2021,Research Grant Expenditure,Research Grants,University of London,99099236,50409.49,Research Grant Expenditure
BEIS,UKRI - AHRC,20/12/2021,Research Grant Expenditure,Networks & Workshops,University of Brighton,99099237,4782.17,Research Grant Expenditure
BEIS,UKRI - AHRC,20/12/2021,Research Grant Expenditure,Follow-on Fund,University of Oxford,99099238,20127.92,Research Grant Expenditure
BEIS,UKRI - AHRC,20/12/2021,Research Grant Expenditure,Funds for International Collaboration (FIC 20 US),Nottingham Trent University,99099239,16797.06,Research Grant Expenditure
BEIS,UKRI - AHRC,20/12/2021,Research Grant Expenditure,Funds for International Collaboration (FIC 20 US),University of Leicester,99099240,33592.89,Research Grant Expenditure
BEIS,UKRI - AHRC,20/12/2021,Research Grant Expenditure,Funds for International Collaboration (FIC 20 US),"City, University of London",99099241,14991.21,Research Grant Expenditure
BEIS,UKRI - AHRC,20/12/2021,Research Grant Expenditure,Funds for International Collaboration (FIC 20 US),University of York,99099242,34594.37,Research Grant Expenditure
BEIS,UKRI - AHRC,20/12/2021,Research Grant Expenditure,Funds for International Collaboration (FIC 20 US),University of Reading,99099243,18674.71,Research Grant Expenditure
BEIS,UKRI - AHRC,20/12/2021,Research Grant Expenditure,Funds for International Collaboration (FIC 20 US),University of Oxford,99099244,24328.77,Research Grant Expenditure
BEIS,UKRI - AHRC,20/12/2021,Research Grant Expenditure,Funds for International Collaboration (FIC 20 US),University of Exeter,99099245,23044.36,Research Grant Expenditure
BEIS,UKRI - AHRC,20/12/2021,Research Grant Expenditure,Funds for International Collaboration (FIC 20 US),Goldsmiths College University of London,99099246,11086.78,Research Grant Expenditure
BEIS,UKRI - AHRC,20/12/2021,Research Grant Expenditure,Funds for International Collaboration (FIC 20 US),Lancaster University,99099247,19261.80,Research Grant Expenditure
BEIS,UKRI - AHRC,20/12/2021,Research Grant Expenditure,Funds for International Collaboration (FIC 20 US),Science Museum Group,99099248,21611.53,Research Grant Expenditure
BEIS,UKRI - AHRC,20/12/2021,Research Grant Expenditure,Funds for International Collaboration (FIC 20 US),University of Cambridge,99099249,24543.85,Research Grant Expenditure
BEIS,UKRI - AHRC,20/12/2021,Research Grant Expenditure,Funds for International Collaboration (FIC 20 US),Loughborough University,99099250,6047.06,Research Grant Expenditure
BEIS,UKRI - AHRC,20/12/2021,Research Grant Expenditure,Funds for International Collaboration (FIC 20 US),The Alan Turing Institute,99099251,30224.77,Research Grant Expenditure
BEIS,UKRI - AHRC,20/12/2021,Research Grant Expenditure,Research Grants,University of Brighton,99099252,29974.03,Research Grant Expenditure
BEIS,UKRI - AHRC,20/12/2021,Research Grant Expenditure,Research Grants,University of Reading,99099253,76374.94,Research Grant Expenditure
BEIS,UKRI - AHRC,20/12/2021,Research Grant Expenditure,Networks & Workshops,University of the Arts London,99099254,5297.61,Research Grant Expenditure
BEIS,UKRI - AHRC,20/12/2021,Research Grant Expenditure,COVID-19 (AHRC funded),University of the Arts London,99099255,14022.95,Research Grant Expenditure
BEIS,UKRI - AHRC,20/12/2021,Research Grant Expenditure,Networks & Workshops,University of St Andrews,99099256,2953.10,Research Grant Expenditure
BEIS,UKRI - AHRC,20/12/2021,Research Grant Expenditure,Global Challenges Research Fund (GCRF),University of Leicester,99099257,9753.66,Research Grant Expenditure
BEIS,UKRI - AHRC,20/12/2021,Research Grant Expenditure,Follow-on Fund,University of Leeds,99099258,20450.78,Research Grant Expenditure
BEIS,UKRI - AHRC,20/12/2021,Research Grant Expenditure,Networks & Workshops,University of Kent,99099259,4471.94,Research Grant Expenditure
BEIS,UKRI - AHRC,20/12/2021,Research Grant Expenditure,Networks & Workshops,University of Glasgow,99099260,4129.18,Research Grant Expenditure
BEIS,UKRI - AHRC,20/12/2021,Research Grant Expenditure,Follow-on Fund,University of Chester,99099261,19401.37,Research Grant Expenditure
BEIS,UKRI - AHRC,20/12/2021,Research Grant Expenditure,Networks & Workshops,King's College London,99099262,5824.22,Research Grant Expenditure
BEIS,UKRI - AHRC,20/12/2021,Research Grant Expenditure,Networks & Workshops,The University of Manchester,99099263,4495.54,Research Grant Expenditure
BEIS,UKRI - AHRC,20/12/2021,Research Grant Expenditure,Follow-on Fund,University of Sussex,99099264,44606.32,Research Grant Expenditure
BEIS,UKRI - AHRC,20/12/2021,Research Grant Expenditure,Follow-on Fund,University of Glasgow,99099265,19705.33,Research Grant Expenditure
BEIS,UKRI - AHRC,20/12/2021,Research Grant Expenditure,Global Challenges Research Fund (GCRF),University of Glasgow,99099266,1341.01,Research Grant Expenditure
BEIS,UKRI - AHRC,20/12/2021,Research Grant Expenditure,COVID-19,University of Exeter,99099267,70214.78,Research Grant Expenditure
BEIS,UKRI - AHRC,20/12/2021,Research Grant Expenditure,COVID-19,University of Exeter,99099267,70214.79,Research Grant Expenditure
BEIS,UKRI - AHRC,20/12/2021,Research Grant Expenditure,Networks & Workshops,Goldsmiths College University of London,99099268,4018.96,Research Grant Expenditure
BEIS,UKRI - AHRC,20/12/2021,Research Grant Expenditure,Research Grants,University of Cambridge,99099269,23748.96,Research Grant Expenditure
BEIS,UKRI - AHRC,20/12/2021,Research Grant Expenditure,Follow-on Fund,University of Edinburgh,99099270,20341.64,Research Grant Expenditure
BEIS,UKRI - AHRC,20/12/2021,Research Grant Expenditure,Networks & Workshops,University of Leicester,99099271,3397.12,Research Grant Expenditure
BEIS,UKRI - AHRC,20/12/2021,Research Grant Expenditure,Research Grants,University of Warwick,99099272,13447.90,Research Grant Expenditure
BEIS,UKRI - AHRC,20/12/2021,Research Grant Expenditure,Global Challenges Research Fund (GCRF),Queen's University Belfast GRANT,99099273,15747.30,Research Grant Expenditure
BEIS,UKRI - AHRC,20/12/2021,Research Grant Expenditure,Global Challenges Research Fund (GCRF),University of Salford,99099274,76069.64,Research Grant Expenditure
BEIS,UKRI - AHRC,20/12/2021,Research Grant Expenditure,Global Challenges Research Fund (GCRF),Royal Botanic Gardens Edinburgh,99099276,54440.00,Research Grant Expenditure
BEIS,UKRI - AHRC,20/12/2021,Research Grant Expenditure,Global Challenges Research Fund (GCRF),Nottingham Trent University,99099277,76382.64,Research Grant Expenditure
BEIS,UKRI - AHRC,20/12/2021,Research Grant Expenditure,Global Challenges Research Fund (GCRF),University of Edinburgh,99099278,61563.60,Research Grant Expenditure
BEIS,UKRI - AHRC,20/12/2021,Research Grant Expenditure,Global Challenges Research Fund (GCRF),Queen Mary University of London,99099279,92601.56,Research Grant Expenditure
BEIS,UKRI - AHRC,20/12/2021,Research Grant Expenditure,Global Challenges Research Fund (GCRF),University of Durham,99099280,12766.44,Research Grant Expenditure
BEIS,UKRI - AHRC,20/12/2021,Research Grant Expenditure,Networks & Workshops,University of Bristol GRANT,99099281,5754.34,Research Grant Expenditure
BEIS,UKRI - AHRC,20/12/2021,Research Grant Expenditure,Research Grants,University College London,99099282,65037.72,Research Grant Expenditure
BEIS,UKRI - AHRC,20/12/2021,Research Grant Expenditure,Research Grants,Northumbria University,99099283,59797.10,Research Grant Expenditure
BEIS,UKRI - AHRC,20/12/2021,Research Grant Expenditure,Research Grants,Oxford Brookes University,99099284,66436.40,Research Grant Expenditure
BEIS,UKRI - AHRC,20/12/2021,Research Grant Expenditure,Research Grants,University of Leeds,99099285,19841.33,Research Grant Expenditure
BEIS,UKRI - AHRC,20/12/2021,Research Grant Expenditure,Networks & Workshops,University of Warwick,99099286,3897.46,Research Grant Expenditure
BEIS,UKRI - AHRC,20/12/2021,Research Grant Expenditure,Follow-on Fund,Queen's University Belfast GRANT,99099287,19842.43,Research Grant Expenditure
BEIS,UKRI - AHRC,20/12/2021,Research Grant Expenditure,Follow-on Fund,Queen's University Belfast GRANT,99099287,19842.43,Research Grant Expenditure
BEIS,UKRI - AHRC,20/12/2021,Research Grant Expenditure,Follow-on Fund,Queen's University Belfast GRANT,99099287,19842.43,Research Grant Expenditure
BEIS,UKRI - AHRC,20/12/2021,Research Grant Expenditure,Follow-on Fund,Aston University,99099288,20160.58,Research Grant Expenditure
BEIS,UKRI - AHRC,20/12/2021,Research Grant Expenditure,Research Grants,Lancaster University,99099289,73433.48,Research Grant Expenditure
BEIS,UKRI - AHRC,20/12/2021,Research Grant Expenditure,Research Grants,Northumbria University,99099290,54988.60,Research Grant Expenditure
BEIS,UKRI - AHRC,20/12/2021,Research Grant Expenditure,Research Grants,University College London,99099291,30864.62,Research Grant Expenditure
BEIS,UKRI - AHRC,20/12/2021,Research Grant Expenditure,The Newton Fund Impact Scheme (NFIS),Coventry University,99099292,12535.38,Research Grant Expenditure
BEIS,UKRI - AHRC,20/12/2021,Research Grant Expenditure,Networks & Workshops,University of Glasgow,99099293,5635.92,Research Grant Expenditure
BEIS,UKRI - AHRC,20/12/2021,Research Grant Expenditure,Climate Resilience (SPF w1),University of Hull,99099294,45217.14,Research Grant Expenditure
BEIS,UKRI - AHRC,20/12/2021,Research Grant Expenditure,JPI Cultural Heritage,University College London,99099295,11192.11,Research Grant Expenditure
BEIS,UKRI - AHRC,20/12/2021,Research Grant Expenditure,Climate Resilience (SPF w1),University of Liverpool,99099296,40651.76,Research Grant Expenditure
BEIS,UKRI - AHRC,20/12/2021,Research Grant Expenditure,Research Grants,"City, University of London",99099297,58347.97,Research Grant Expenditure
BEIS,UKRI - AHRC,20/12/2021,Research Grant Expenditure,Research Grants,"City, University of London",99099297,58348.00,Research Grant Expenditure
BEIS,UKRI - AHRC,20/12/2021,Research Grant Expenditure,AHRC - DFG Collaborative Research Grant,University of Stirling,99099298,0.11,Research Grant Expenditure
BEIS,UKRI - AHRC,20/12/2021,Research Grant Expenditure,Climate Resilience (SPF w1),The University of Manchester,99099299,42563.27,Research Grant Expenditure
BEIS,UKRI - AHRC,20/12/2021,Research Grant Expenditure,Research Grants,Birmingham City University,99099300,21042.73,Research Grant Expenditure
BEIS,UKRI - AHRC,20/12/2021,Research Grant Expenditure,AHRC - DFG Collaborative Research Grant,University College London,99099301,25981.17,Research Grant Expenditure
BEIS,UKRI - AHRC,20/12/2021,Research Grant Expenditure,Research Grants,University of Exeter,99099302,54204.38,Research Grant Expenditure
BEIS,UKRI - AHRC,20/12/2021,Research Grant Expenditure,JPI Cultural Heritage,University of Durham,99099303,10828.72,Research Grant Expenditure
BEIS,UKRI - AHRC,20/12/2021,Research Grant Expenditure,Research Grants,Lancaster University,99099304,73340.61,Research Grant Expenditure
BEIS,UKRI - AHRC,20/12/2021,Research Grant Expenditure,Networks & Workshops,University of the Arts London,99099305,5995.30,Research Grant Expenditure
BEIS,UKRI - AHRC,20/12/2021,Research Grant Expenditure,Follow-on Fund,Glasgow School of Art,99099306,26527.14,Research Grant Expenditure
BEIS,UKRI - AHRC,20/12/2021,Research Grant Expenditure,Networks & Workshops,University of Sussex,99099307,8929.97,Research Grant Expenditure
BEIS,UKRI - AHRC,20/12/2021,Research Grant Expenditure,Research Grants,University of Birmingham GRANT,99099308,69144.75,Research Grant Expenditure
BEIS,UKRI - AHRC,20/12/2021,Research Grant Expenditure,Networks & Workshops,University of Stirling,99099309,5192.13,Research Grant Expenditure
BEIS,UKRI - AHRC,20/12/2021,Research Grant Expenditure,Research Grants,Queen Mary University of London,99099310,43061.12,Research Grant Expenditure
BEIS,UKRI - AHRC,20/12/2021,Research Grant Expenditure,Research Grants,The University of Manchester,99099311,67544.11,Research Grant Expenditure
BEIS,UKRI - AHRC,20/12/2021,Research Grant Expenditure,Research Grants,University of Edinburgh,99099312,88594.68,Research Grant Expenditure
BEIS,UKRI - AHRC,20/12/2021,Research Grant Expenditure,JPI Cultural Heritage,University of York,99099313,7376.68,Research Grant Expenditure
BEIS,UKRI - AHRC,20/12/2021,Research Grant Expenditure,Research Grants,National Museums of Scotland,99099314,66577.52,Research Grant Expenditure
BEIS,UKRI - AHRC,20/12/2021,Research Grant Expenditure,Research Grants,Brunel University London,99099315,32851.74,Research Grant Expenditure
BEIS,UKRI - AHRC,20/12/2021,Research Grant Expenditure,Networks & Workshops,University of York,99099316,4017.43,Research Grant Expenditure
BEIS,UKRI - AHRC,20/12/2021,Research Grant Expenditure,Follow-on Fund,University of Derby,99099317,20117.06,Research Grant Expenditure
BEIS,UKRI - AHRC,20/12/2021,Research Grant Expenditure,Follow-on Fund,University of Derby,99099317,20117.06,Research Grant Expenditure
BEIS,UKRI - AHRC,20/12/2021,Research Grant Expenditure,Networks & Workshops,University of Sheffield,99099318,5959.78,Research Grant Expenditure
BEIS,UKRI - AHRC,20/12/2021,Research Grant Expenditure,Research Grants,University of York,99099319,22429.81,Research Grant Expenditure
BEIS,UKRI - AHRC,20/12/2021,Research Grant Expenditure,Towards a National Collection (SPF),Historic Environment Scotland (GRANT),99099320,90312.24,Research Grant Expenditure
BEIS,UKRI - AHRC,20/12/2021,Research Grant Expenditure,Research Grants,University of Wolverhampton,99099321,39838.31,Research Grant Expenditure
BEIS,UKRI - AHRC,20/12/2021,Research Grant Expenditure,RCUK Global Challenges Research Fund (RCUK GCRF),University of Liverpool,99099322,3129.98,Research Grant Expenditure
BEIS,UKRI - AHRC,20/12/2021,Research Grant Expenditure,RCUK Global Challenges Research Fund (RCUK GCRF),University of Stirling,99099323,3000.05,Research Grant Expenditure
BEIS,UKRI - AHRC,20/12/2021,Research Grant Expenditure,RCUK Global Challenges Research Fund (RCUK GCRF),Institute of Development Studies,99099324,2340.01,Research Grant Expenditure
BEIS,UKRI - AHRC,20/12/2021,Research Grant Expenditure,Networks & Workshops,University of Sussex,99099325,9000.44,Research Grant Expenditure
BEIS,UKRI - AHRC,20/12/2021,Research Grant Expenditure,Research Grants,University of Oxford,99099326,67390.61,Research Grant Expenditure
BEIS,UKRI - AHRC,20/12/2021,Research Grant Expenditure,AHRC - DFG Collaborative Research Grant,University of Glasgow,99099327,10039.99,Research Grant Expenditure
BEIS,UKRI - AHRC,20/12/2021,Research Grant Expenditure,Creative Economy,Loughborough University,99099328,68035.47,Research Grant Expenditure
BEIS,UKRI - AHRC,20/12/2021,Research Grant Expenditure,Networks & Workshops,Queen Mary University of London,99099329,7263.02,Research Grant Expenditure
BEIS,UKRI - AHRC,20/12/2021,Research Grant Expenditure,Research Grants,University of Birmingham GRANT,99099330,19611.78,Research Grant Expenditure
BEIS,UKRI - AHRC,20/12/2021,Research Grant Expenditure,Research Grants,University of Cambridge,99099331,86288.11,Research Grant Expenditure
BEIS,UKRI - AHRC,20/12/2021,Research Grant Expenditure,Research Grants,University of Sheffield,99099332,42611.76,Research Grant Expenditure
BEIS,UKRI - AHRC,20/12/2021,Research Grant Expenditure,Research Grants,University of York,99099333,31360.30,Research Grant Expenditure
BEIS,UKRI - AHRC,20/12/2021,Research Grant Expenditure,Follow-on Fund,The University of Manchester,99099334,20142.76,Research Grant Expenditure
BEIS,UKRI - AHRC,20/12/2021,Research Grant Expenditure,Research Grants,"Royal Holloway, University of London",99099335,54400.31,Research Grant Expenditure
BEIS,UKRI - AHRC,20/12/2021,Research Grant Expenditure,Research Grants,The University of Manchester,99099336,65805.78,Research Grant Expenditure
BEIS,UKRI - AHRC,20/12/2021,Research Grant Expenditure,Networks & Workshops,University of Birmingham GRANT,99099337,4486.71,Research Grant Expenditure
BEIS,UKRI - AHRC,20/12/2021,Research Grant Expenditure,Research Grants,The University of Manchester,99099338,28841.51,Research Grant Expenditure
BEIS,UKRI - AHRC,20/12/2021,Research Grant Expenditure,Modern Slavery and Human Rights (SPF),British Institute Of International And Comparative Law,99099339,217933.71,Research Grant Expenditure
BEIS,UKRI - AHRC,20/12/2021,Research Grant Expenditure,Networks & Workshops,Coventry University,99099340,5355.20,Research Grant Expenditure
BEIS,UKRI - AHRC,20/12/2021,Research Grant Expenditure,Research Grants,National Museums of Scotland,99099341,63608.63,Research Grant Expenditure
BEIS,UKRI - AHRC,20/12/2021,Research Grant Expenditure,Follow-on Fund,University of Reading,99099342,19912.24,Research Grant Expenditure
BEIS,UKRI - AHRC,20/12/2021,Research Grant Expenditure,Commissioned Research,University of Newcastle Upon Tyne,99099343,60929.42,Research Grant Expenditure
BEIS,UKRI - AHRC,20/12/2021,Research Grant Expenditure,Funds for International Collaboration (FIC 20 US),University College London,99099344,36234.42,Research Grant Expenditure
BEIS,UKRI - AHRC,20/12/2021,Research Grant Expenditure,Funds for International Collaboration (FIC 20 US),University of Nottingham,99099345,48256.94,Research Grant Expenditure
BEIS,UKRI - AHRC,20/12/2021,Research Grant Expenditure,Towards a National Collection (SPF),The British Library,99099346,41962.17,Research Grant Expenditure
BEIS,UKRI - AHRC,20/12/2021,Research Grant Expenditure,Towards a National Collection (SPF),The National Archives,99099347,43980.65,Research Grant Expenditure
BEIS,UKRI - AHRC,20/12/2021,Research Grant Expenditure,Research Grants,University of Huddersfield,99099348,16658.01,Research Grant Expenditure
BEIS,UKRI - AHRC,20/12/2021,Research Grant Expenditure,Networks & Workshops,"Royal Holloway, University of London",99099349,5740.86,Research Grant Expenditure
BEIS,UKRI - AHRC,20/12/2021,Research Grant Expenditure,Research Grants,University of Edinburgh,99099350,25145.76,Research Grant Expenditure
BEIS,UKRI - AHRC,20/12/2021,Research Grant Expenditure,Research Grants,University of Newcastle Upon Tyne,99099351,53096.40,Research Grant Expenditure
BEIS,UKRI - AHRC,20/12/2021,Research Grant Expenditure,Networks & Workshops,University of Leicester,99099352,8254.46,Research Grant Expenditure
BEIS,UKRI - AHRC,20/12/2021,Research Grant Expenditure,Research Grants,University of Nottingham,99099353,43597.81,Research Grant Expenditure
BEIS,UKRI - AHRC,20/12/2021,Research Grant Expenditure,Research Grants,University of Salford,99099354,17356.65,Research Grant Expenditure
BEIS,UKRI - AHRC,20/12/2021,Research Grant Expenditure,RCUK Global Challenges Research Fund (RCUK GCRF),University of Exeter,99099355,16050.98,Research Grant Expenditure
BEIS,UKRI - AHRC,20/12/2021,Research Grant Expenditure,RCUK Global Challenges Research Fund (RCUK GCRF),University of Lincoln,99099356,6470.00,Research Grant Expenditure
BEIS,UKRI - AHRC,20/12/2021,Research Grant Expenditure,RCUK Global Challenges Research Fund (RCUK GCRF),University of Birmingham GRANT,99099357,7222.03,Research Grant Expenditure
BEIS,UKRI - AHRC,20/12/2021,Research Grant Expenditure,RCUK Global Challenges Research Fund (RCUK GCRF),UNIVERSITY OF ULSTER,99099358,9999.98,Research Grant Expenditure
BEIS,UKRI - AHRC,20/12/2021,Research Grant Expenditure,RCUK Global Challenges Research Fund (RCUK GCRF),University of Bath,99099359,15233.00,Research Grant Expenditure
BEIS,UKRI - AHRC,20/12/2021,Research Grant Expenditure,RCUK Global Challenges Research Fund (RCUK GCRF),Aberystwyth University,99099360,12552.00,Research Grant Expenditure
BEIS,UKRI - AHRC,20/12/2021,Research Grant Expenditure,RCUK Global Challenges Research Fund (RCUK GCRF),Keele University,99099361,15046.00,Research Grant Expenditure
BEIS,UKRI - AHRC,20/12/2021,Research Grant Expenditure,RCUK Global Challenges Research Fund (RCUK GCRF),University of Bristol GRANT,99099362,10814.00,Research Grant Expenditure
BEIS,UKRI - AHRC,20/12/2021,Research Grant Expenditure,Research Grants,UNIVERSITY OF ULSTER,99099363,16562.32,Research Grant Expenditure
BEIS,UKRI - AHRC,20/12/2021,Research Grant Expenditure,RCUK Global Challenges Research Fund (RCUK GCRF),University of Birmingham GRANT,99099364,6723.01,Research Grant Expenditure
BEIS,UKRI - AHRC,20/12/2021,Research Grant Expenditure,Research Grants,University of Oxford,99099365,57151.37,Research Grant Expenditure
BEIS,UKRI - AHRC,20/12/2021,Research Grant Expenditure,Networks & Workshops,University of Edinburgh,99099366,4983.46,Research Grant Expenditure
BEIS,UKRI - AHRC,20/12/2021,Research Grant Expenditure,DFID Collaborative Humanitarian Protection Research Programme (CHPRP),Queen's University Belfast GRANT,99099367,56727.24,Research Grant Expenditure
BEIS,UKRI - AHRC,20/12/2021,Research Grant Expenditure,DFID Collaborative Humanitarian Protection Research Programme (CHPRP),London School of Economics and Political Science,99099368,65804.80,Research Grant Expenditure
BEIS,UKRI - AHRC,20/12/2021,Research Grant Expenditure,DFID Collaborative Humanitarian Protection Research Programme (CHPRP),University of Warwick,99099369,57375.33,Research Grant Expenditure
BEIS,UKRI - AHRC,20/12/2021,Research Grant Expenditure,DFID Collaborative Humanitarian Protection Research Programme (CHPRP),University of Bath,99099370,86797.82,Research Grant Expenditure
BEIS,UKRI - AHRC,20/12/2021,Research Grant Expenditure,DFID Collaborative Humanitarian Protection Research Programme (CHPRP),Institute of Development Studies,99099371,65576.46,Research Grant Expenditure
BEIS,UKRI - AHRC,20/12/2021,Research Grant Expenditure,DFID Collaborative Humanitarian Protection Research Programme (CHPRP),University of Durham,99099372,50308.32,Research Grant Expenditure
BEIS,UKRI - AHRC,20/12/2021,Research Grant Expenditure,DFID Collaborative Humanitarian Protection Research Programme (CHPRP),University of Oxford,99099373,70154.02,Research Grant Expenditure
BEIS,UKRI - AHRC,20/12/2021,Research Grant Expenditure,DFID Collaborative Humanitarian Protection Research Programme (CHPRP),University of Portsmouth,99099378,65061.65,Research Grant Expenditure
BEIS,UKRI - AHRC,20/12/2021,Research Grant Expenditure,Research Grants,Oxford Brookes University,99099380,75274.94,Research Grant Expenditure
BEIS,UKRI - AHRC,20/12/2021,Research Grant Expenditure,Research Grants,The British Museum,99099381,18071.42,Research Grant Expenditure
BEIS,UKRI - AHRC,20/12/2021,Research Grant Expenditure,Research Grants,Bangor University,99099382,25054.44,Research Grant Expenditure
BEIS,UKRI - AHRC,20/12/2021,Research Grant Expenditure,Research Grants,University of Glasgow,99099383,59906.61,Research Grant Expenditure
BEIS,UKRI - AHRC,20/12/2021,Research Grant Expenditure,Research Grants,Birmingham City University,99099384,52281.70,Research Grant Expenditure
BEIS,UKRI - AHRC,20/12/2021,Research Grant Expenditure,Research Grants,University of Leicester,99099385,35576.11,Research Grant Expenditure
BEIS,UKRI - AHRC,20/12/2021,Research Grant Expenditure,Research Grants,Cardiff University,99099386,17101.48,Research Grant Expenditure
BEIS,UKRI - AHRC,20/12/2021,Research Grant Expenditure,Networks & Workshops,The University of Manchester,99099387,5092.43,Research Grant Expenditure
BEIS,UKRI - AHRC,20/12/2021,Research Grant Expenditure,Research Grants,Anglia Ruskin University,99099388,84453.55,Research Grant Expenditure
BEIS,UKRI - AHRC,20/12/2021,Research Grant Expenditure,Networks & Workshops,De Montfort University,99099389,6080.76,Research Grant Expenditure
BEIS,UKRI - AHRC,20/12/2021,Research Grant Expenditure,Research Grants,Loughborough University,99099390,40995.03,Research Grant Expenditure
BEIS,UKRI - AHRC,20/12/2021,Research Grant Expenditure,Research Grants,University of Nottingham,99099391,61613.89,Research Grant Expenditure
BEIS,UKRI - AHRC,20/12/2021,Research Grant Expenditure,Research Grants,Cardiff University,99099392,26686.45,Research Grant Expenditure
BEIS,UKRI - AHRC,20/12/2021,Research Grant Expenditure,Networks & Workshops,University of Portsmouth,99099393,6019.16,Research Grant Expenditure
BEIS,UKRI - AHRC,20/12/2021,Research Grant Expenditure,Research Grants,University of East Anglia,99099394,38154.56,Research Grant Expenditure
BEIS,UKRI - AHRC,20/12/2021,Research Grant Expenditure,Research Grants,The University of Manchester,99099395,27333.71,Research Grant Expenditure
BEIS,UKRI - AHRC,20/12/2021,Research Grant Expenditure,Follow-on Fund,Victoria and Albert Museum,99099396,20512.54,Research Grant Expenditure
BEIS,UKRI - AHRC,20/12/2021,Research Grant Expenditure,Research Grants,Loughborough University,99099397,29112.49,Research Grant Expenditure
BEIS,UKRI - AHRC,20/12/2021,Research Grant Expenditure,Landscape Decisions (SPF),University of Reading,99099398,0.02,Research Grant Expenditure
BEIS,UKRI - AHRC,20/12/2021,Research Grant Expenditure,Research Grants,University of Hull,99099399,55079.27,Research Grant Expenditure
BEIS,UKRI - AHRC,20/12/2021,Research Grant Expenditure,Networks & Workshops,University of Leeds,99099400,4663.85,Research Grant Expenditure
BEIS,UKRI - AHRC,20/12/2021,Research Grant Expenditure,Networks & Workshops,University of Exeter,99099401,3993.66,Research Grant Expenditure
BEIS,UKRI - AHRC,20/12/2021,Research Grant Expenditure,Networks & Workshops,University of Leeds,99099402,6073.43,Research Grant Expenditure
BEIS,UKRI - AHRC,20/12/2021,Research Grant Expenditure,Networks & Workshops,University of Hull,99099403,4514.72,Research Grant Expenditure
BEIS,UKRI - AHRC,20/12/2021,Research Grant Expenditure,Networks & Workshops,Leeds Beckett University,99099404,3039.90,Research Grant Expenditure
BEIS,UKRI - AHRC,20/12/2021,Research Grant Expenditure,Networks & Workshops,Leeds Beckett University,99099404,3039.90,Research Grant Expenditure
BEIS,UKRI - AHRC,20/12/2021,Research Grant Expenditure,Research Grants,University of Southampton GRANT,99099405,38595.86,Research Grant Expenditure
BEIS,UKRI - AHRC,20/12/2021,Research Grant Expenditure,Research Grants,University of Bristol GRANT,99099406,69938.47,Research Grant Expenditure
BEIS,UKRI - AHRC,20/12/2021,Research Grant Expenditure,Research Grants,The University of Manchester,99099407,62764.72,Research Grant Expenditure
BEIS,UKRI - AHRC,20/12/2021,Research Grant Expenditure,Research Grants,Keele University,99099408,33544.26,Research Grant Expenditure
BEIS,UKRI - AHRC,20/12/2021,Research Grant Expenditure,RCUK Global Challenges Research Fund (RCUK GCRF),University of Sheffield,99099409,2331.99,Research Grant Expenditure
BEIS,UKRI - AHRC,20/12/2021,Research Grant Expenditure,RCUK Global Challenges Research Fund (RCUK GCRF),University of Bristol GRANT,99099410,12304.01,Research Grant Expenditure
BEIS,UKRI - AHRC,20/12/2021,Research Grant Expenditure,Research Grants,University of Sussex,99099411,62179.69,Research Grant Expenditure
BEIS,UKRI - AHRC,20/12/2021,Research Grant Expenditure,RCUK Global Challenges Research Fund (RCUK GCRF),The Open University,99099412,5390.99,Research Grant Expenditure
BEIS,UKRI - AHRC,20/12/2021,Research Grant Expenditure,Networks & Workshops,University of Birmingham GRANT,99099413,5191.87,Research Grant Expenditure
BEIS,UKRI - AHRC,20/12/2021,Research Grant Expenditure,RCUK Global Challenges Research Fund (RCUK GCRF),University of Exeter,99099414,1443.99,Research Grant Expenditure
BEIS,UKRI - AHRC,20/12/2021,Research Grant Expenditure,Research Grants,University of Stirling,99099415,68877.94,Research Grant Expenditure
BEIS,UKRI - AHRC,20/12/2021,Research Grant Expenditure,Research Grants,University of Durham,99099416,63129.22,Research Grant Expenditure
BEIS,UKRI - AHRC,20/12/2021,Research Grant Expenditure,Commissioned Research,University of Nottingham,99099417,76835.93,Research Grant Expenditure
BEIS,UKRI - AHRC,20/12/2021,Research Grant Expenditure,Research Grants,University of Sussex,99099418,12462.28,Research Grant Expenditure
BEIS,UKRI - AHRC,20/12/2021,Research Grant Expenditure,Research Grants,Liverpool John Moores University,99099419,24652.02,Research Grant Expenditure
BEIS,UKRI - AHRC,20/12/2021,Research Grant Expenditure,Research Grants,University of Kent,99099420,22224.94,Research Grant Expenditure
BEIS,UKRI - AHRC,20/12/2021,Research Grant Expenditure,Research Grants,University of Sheffield,99099421,66177.63,Research Grant Expenditure
BEIS,UKRI - AHRC,20/12/2021,Research Grant Expenditure,Research Grants,University of Stirling,99099422,61476.97,Research Grant Expenditure
BEIS,UKRI - AHRC,20/12/2021,Research Grant Expenditure,Research Grants,University of Leicester,99099423,43407.43,Research Grant Expenditure
BEIS,UKRI - AHRC,20/12/2021,Research Grant Expenditure,Research Grants,University of Leeds,99099424,41947.59,Research Grant Expenditure
BEIS,UKRI - AHRC,20/12/2021,Research Grant Expenditure,Research Grants,The British Museum,99099425,51260.48,Research Grant Expenditure
BEIS,UKRI - AHRC,20/12/2021,Research Grant Expenditure,Research Grants,Manchester Metropolitan University,99099426,63108.29,Research Grant Expenditure
BEIS,UKRI - AHRC,20/12/2021,Research Grant Expenditure,Research Grants,University of Leicester,99099427,76633.43,Research Grant Expenditure
BEIS,UKRI - AHRC,20/12/2021,Research Grant Expenditure,Research Grants,University College London,99099428,32486.43,Research Grant Expenditure
BEIS,UKRI - AHRC,20/12/2021,Research Grant Expenditure,Research Grants,University of Newcastle Upon Tyne,99099429,70267.36,Research Grant Expenditure
BEIS,UKRI - AHRC,20/12/2021,Research Grant Expenditure,Research Grants,University of Oxford,99099430,55896.63,Research Grant Expenditure
BEIS,UKRI - AHRC,20/12/2021,Research Grant Expenditure,Research Grants,University of York,99099431,55350.38,Research Grant Expenditure
BEIS,UKRI - AHRC,20/12/2021,Research Grant Expenditure,Research Grants,University of Leeds,99099432,49581.46,Research Grant Expenditure
BEIS,UKRI - AHRC,20/12/2021,Research Grant Expenditure,Research Grants,University of Birmingham GRANT,99099433,20969.76,Research Grant Expenditure
BEIS,UKRI - AHRC,20/12/2021,Research Grant Expenditure,Research Grants,University of Newcastle Upon Tyne,99099434,62228.59,Research Grant Expenditure
BEIS,UKRI - AHRC,20/12/2021,Research Grant Expenditure,Research Grants,Royal College of Music,99099435,63882.55,Research Grant Expenditure
BEIS,UKRI - AHRC,20/12/2021,Research Grant Expenditure,Networks & Workshops,University of Nottingham,99099436,4112.62,Research Grant Expenditure
BEIS,UKRI - AHRC,20/12/2021,Research Grant Expenditure,Networks & Workshops,University of Nottingham,99099436,4079.57,Research Grant Expenditure
BEIS,UKRI - AHRC,20/12/2021,Research Grant Expenditure,Networks & Workshops,University of Nottingham,99099436,4112.62,Research Grant Expenditure
BEIS,UKRI - AHRC,20/12/2021,Research Grant Expenditure,Networks & Workshops,University of Nottingham,99099436,4079.57,Research Grant Expenditure
BEIS,UKRI - AHRC,20/12/2021,Research Grant Expenditure,Networks & Workshops,University of Nottingham,99099436,4112.64,Research Grant Expenditure
BEIS,UKRI - AHRC,20/12/2021,Research Grant Expenditure,Networks & Workshops,University of Nottingham,99099436,4112.62,Research Grant Expenditure
BEIS,UKRI - AHRC,20/12/2021,Research Grant Expenditure,Research Grants,The University of Manchester,99099437,16928.05,Research Grant Expenditure
BEIS,UKRI - AHRC,20/12/2021,Research Grant Expenditure,Cultural Values Project,University of Leeds,99099438,102449.58,Research Grant Expenditure
BEIS,UKRI - AHRC,20/12/2021,Research Grant Expenditure,Living with Machines (SPF),The Alan Turing Institute,99099439,401932.88,Research Grant Expenditure
BEIS,UKRI - AHRC,20/12/2021,Research Grant Expenditure,Research Grants,University of Reading,99099440,65283.92,Research Grant Expenditure
BEIS,UKRI - AHRC,20/12/2021,Research Grant Expenditure,Newton Programme,University of Oxford,99099441,25971.00,Research Grant Expenditure
BEIS,UKRI - AHRC,20/12/2021,Research Grant Expenditure,Newton Programme,University of Oxford,99099441,25971.00,Research Grant Expenditure
BEIS,UKRI - AHRC,20/12/2021,Research Grant Expenditure,Research Grants,University of Glasgow,99099442,58180.40,Research Grant Expenditure
BEIS,UKRI - AHRC,20/12/2021,Research Grant Expenditure,Research Grants,University of Oxford,99099443,45821.29,Research Grant Expenditure
BEIS,UKRI - AHRC,20/12/2021,Research Grant Expenditure,Research Grants,University of Oxford,99099444,31830.66,Research Grant Expenditure
BEIS,UKRI - AHRC,20/12/2021,Research Grant Expenditure,Research Grants,University of Newcastle Upon Tyne,99099445,66587.34,Research Grant Expenditure
BEIS,UKRI - AHRC,20/12/2021,Research Grant Expenditure,Research Grants,University of Southampton GRANT,99099446,55582.93,Research Grant Expenditure
BEIS,UKRI - AHRC,20/12/2021,Research Grant Expenditure,JPI Cultural Heritage,University of Leeds,99099447,8555.26,Research Grant Expenditure
BEIS,UKRI - AHRC,20/12/2021,Research Grant Expenditure,Research Grants,The University of Manchester,99099448,60973.76,Research Grant Expenditure
BEIS,UKRI - AHRC,20/12/2021,Research Grant Expenditure,Research Grants,University of Liverpool,99099449,70793.00,Research Grant Expenditure
BEIS,UKRI - AHRC,20/12/2021,Research Grant Expenditure,Research Grants,King's College London,99099450,67614.92,Research Grant Expenditure
BEIS,UKRI - AHRC,20/12/2021,Research Grant Expenditure,Research Grants,University of Cambridge,99099451,53029.47,Research Grant Expenditure
BEIS,UKRI - AHRC,20/12/2021,Research Grant Expenditure,Research Grants,University of Oxford,99099452,55925.10,Research Grant Expenditure
BEIS,UKRI - AHRC,20/12/2021,Research Grant Expenditure,Research Grants,University of Exeter,99099453,31179.43,Research Grant Expenditure
BEIS,UKRI - AHRC,20/12/2021,Research Grant Expenditure,Research Grants,University of York,99099454,64235.32,Research Grant Expenditure
BEIS,UKRI - AHRC,20/12/2021,Research Grant Expenditure,Research Grants,Cardiff University,99099455,46878.81,Research Grant Expenditure
BEIS,UKRI - AHRC,20/12/2021,Research Grant Expenditure,Research Grants,Lancaster University,99099456,51662.00,Research Grant Expenditure
BEIS,UKRI - AHRC,20/12/2021,Research Grant Expenditure,Research Grants,Manchester Metropolitan University,99099457,44509.76,Research Grant Expenditure
BEIS,UKRI - AHRC,20/12/2021,Research Grant Expenditure,Research Grants,University of Bristol GRANT,99099458,65594.70,Research Grant Expenditure
BEIS,UKRI - AHRC,20/12/2021,Research Grant Expenditure,Research Grants,University of Oxford,99099459,63514.34,Research Grant Expenditure
BEIS,UKRI - AHRC,20/12/2021,Research Grant Expenditure,Research Grants,Guildhall School of Music & Drama,99099460,69990.93,Research Grant Expenditure
BEIS,UKRI - AHRC,20/12/2021,Research Grant Expenditure,Research Grants,University College London,99099461,49134.96,Research Grant Expenditure
BEIS,UKRI - AHRC,20/12/2021,Research Grant Expenditure,Research Grants,University of Oxford,99099462,72886.95,Research Grant Expenditure
BEIS,UKRI - AHRC,20/12/2021,Research Grant Expenditure,Research Grants,Birmingham City University,99099463,14583.82,Research Grant Expenditure
BEIS,UKRI - AHRC,20/12/2021,Research Grant Expenditure,Research Grants,The University of Manchester,99099464,78150.66,Research Grant Expenditure
BEIS,UKRI - AHRC,20/12/2021,Research Grant Expenditure,Networks & Workshops,Birmingham City University,99099465,3235.70,Research Grant Expenditure
BEIS,UKRI - AHRC,20/12/2021,Research Grant Expenditure,RCUK Global Challenges Research Fund (RCUK GCRF),London School of Economics and Political Science,99099466,25795.86,Research Grant Expenditure
BEIS,UKRI - AHRC,20/12/2021,Research Grant Expenditure,Research Grants,University of the Arts London,99099467,51749.67,Research Grant Expenditure
BEIS,UKRI - AHRC,20/12/2021,Research Grant Expenditure,Research Grants,University of Kent,99099468,43334.43,Research Grant Expenditure
BEIS,UKRI - AHRC,20/12/2021,Research Grant Expenditure,Research Grants,University of Exeter,99099469,40199.74,Research Grant Expenditure
BEIS,UKRI - AHRC,20/12/2021,Research Grant Expenditure,Industrial Strategy Challenge Fund (ISCF) - Creative Clusters,University of the West of England,99099470,423930.20,Research Grant Expenditure
BEIS,UKRI - AHRC,20/12/2021,Research Grant Expenditure,Industrial Strategy Challenge Fund (ISCF) - Creative Clusters,Abertay University,99099471,394561.84,Research Grant Expenditure
BEIS,UKRI - AHRC,20/12/2021,Research Grant Expenditure,Industrial Strategy Challenge Fund (ISCF) - Creative Clusters,UNIVERSITY OF ULSTER,99099472,422741.19,Research Grant Expenditure
BEIS,UKRI - AHRC,20/12/2021,Research Grant Expenditure,Industrial Strategy Challenge Fund (ISCF) - Creative Clusters,University of York,99099473,416493.41,Research Grant Expenditure
BEIS,UKRI - AHRC,20/12/2021,Research Grant Expenditure,Industrial Strategy Challenge Fund (ISCF) - Creative Clusters,University of Leeds,99099474,415172.63,Research Grant Expenditure
BEIS,UKRI - AHRC,20/12/2021,Research Grant Expenditure,Industrial Strategy Challenge Fund (ISCF) - Creative Clusters,University of the Arts London,99099475,418404.40,Research Grant Expenditure
BEIS,UKRI - AHRC,20/12/2021,Research Grant Expenditure,Industrial Strategy Challenge Fund (ISCF) - Creative Clusters,Cardiff University,99099476,405416.63,Research Grant Expenditure
BEIS,UKRI - AHRC,20/12/2021,Research Grant Expenditure,Industrial Strategy Challenge Fund (ISCF) - Creative Clusters,University of Edinburgh,99099477,421913.11,Research Grant Expenditure
BEIS,UKRI - AHRC,20/12/2021,Research Grant Expenditure,Industrial Strategy Challenge Fund (ISCF) - Creative Clusters,"Royal Holloway, University of London",99099478,527689.74,Research Grant Expenditure
BEIS,UKRI - AHRC,20/12/2021,Research Grant Expenditure,Research Grants,Museum of London Archaeology,99099479,18192.19,Research Grant Expenditure
BEIS,UKRI - AHRC,20/12/2021,Research Grant Expenditure,Research Grants,University of Oxford,99099480,42020.88,Research Grant Expenditure
BEIS,UKRI - AHRC,20/12/2021,Research Grant Expenditure,Research Grants,University of Leeds,99099481,69240.54,Research Grant Expenditure
BEIS,UKRI - AHRC,20/12/2021,Research Grant Expenditure,Research Grants,University of Newcastle Upon Tyne,99099482,50972.03,Research Grant Expenditure
BEIS,UKRI - AHRC,20/12/2021,Research Grant Expenditure,Research Grants,University of Reading,99099483,67123.20,Research Grant Expenditure
BEIS,UKRI - AHRC,20/12/2021,Research Grant Expenditure,Industrial Strategy Challenge Fund (ISCF) - Creative Clusters,NESTA,99099484,314484.55,Research Grant Expenditure
BEIS,UKRI - AHRC,20/12/2021,Research Grant Expenditure,Research Grants,University of Reading,99099485,48293.25,Research Grant Expenditure
BEIS,UKRI - AHRC,20/12/2021,Research Grant Expenditure,Research Grants,University of East Anglia,99099486,35291.62,Research Grant Expenditure
BEIS,UKRI - AHRC,20/12/2021,Research Grant Expenditure,Research Grants,The University of Manchester,99099487,67947.16,Research Grant Expenditure
BEIS,UKRI - AHRC,20/12/2021,Research Grant Expenditure,Newton Programme,University of Bedfordshire,99099488,17458.81,Research Grant Expenditure
BEIS,UKRI - AHRC,20/12/2021,Research Grant Expenditure,Newton Programme,Imperial College London,99099489,16004.26,Research Grant Expenditure
BEIS,UKRI - AHRC,20/12/2021,Research Grant Expenditure,Global Challenges Research Fund (GCRF),University of Liverpool,99099490,12211.99,Research Grant Expenditure
BEIS,UKRI - AHRC,20/12/2021,Research Grant Expenditure,Research Grants,University College London,99099491,34654.19,Research Grant Expenditure
BEIS,UKRI - AHRC,20/12/2021,Research Grant Expenditure,Research Grants,University of Glasgow,99099492,34505.57,Research Grant Expenditure
BEIS,UKRI - AHRC,20/12/2021,Research Grant Expenditure,RCUK Global Challenges Research Fund (RCUK GCRF),University of Huddersfield,99099493,16392.98,Research Grant Expenditure
BEIS,UKRI - AHRC,20/12/2021,Research Grant Expenditure,RCUK Global Challenges Research Fund (RCUK GCRF),Goldsmiths College University of London,99099494,332100.17,Research Grant Expenditure
BEIS,UKRI - AHRC,20/12/2021,Research Grant Expenditure,Research Grants,University of Glasgow,99099495,41406.86,Research Grant Expenditure
BEIS,UKRI - AHRC,20/12/2021,Research Grant Expenditure,Research Grants,University of Strathclyde,99099496,2754.75,Research Grant Expenditure
BEIS,UKRI - AHRC,20/12/2021,Research Grant Expenditure,Research Grants,University of Strathclyde,99099496,2754.74,Research Grant Expenditure
BEIS,UKRI - AHRC,20/12/2021,Research Grant Expenditure,Research Grants,University of Strathclyde,99099496,2754.75,Research Grant Expenditure
BEIS,UKRI - AHRC,20/12/2021,Research Grant Expenditure,Research Grants,University of Aberdeen,99099497,25640.05,Research Grant Expenditure
BEIS,UKRI - AHRC,20/12/2021,Research Grant Expenditure,Research Grants,University of Aberdeen,99099497,25640.06,Research Grant Expenditure
BEIS,UKRI - AHRC,20/12/2021,Research Grant Expenditure,Research Grants,University of Aberdeen,99099497,25640.06,Research Grant Expenditure
BEIS,UKRI - AHRC,20/12/2021,Research Grant Expenditure,Research Grants,University of Birmingham GRANT,99099498,24417.47,Research Grant Expenditure
BEIS,UKRI - AHRC,20/12/2021,Research Grant Expenditure,JPI Cultural Heritage,University of Lincoln,99099499,9901.46,Research Grant Expenditure
BEIS,UKRI - AHRC,20/12/2021,Research Grant Expenditure,Research Grants,Lancaster University,99099500,47764.89,Research Grant Expenditure
BEIS,UKRI - AHRC,20/12/2021,Research Grant Expenditure,Commissioned Research,Manchester Metropolitan University,99099505,33753.66,Research Grant Expenditure
BEIS,UKRI - AHRC,20/12/2021,Research Grant Expenditure,Global Challenges Research Fund (GCRF),Queen Mary University of London,99099506,-0.19,Research Grant Expenditure
BEIS,UKRI - AHRC,20/12/2021,Capital Grants & Equipment to HEIs,DEDEFI Capital Grants,University of Kent,99099507,-3137.89,Capital Grants & Equipment to HEIs
BEIS,UKRI - AHRC,20/12/2021,Research Grant Expenditure,DEDEFI Capital Grants,University of Kent,99099507,71.09,Research Grant Expenditure
BEIS,UKRI - AHRC,20/12/2021,Capital Grants & Equipment to HEIs,DEDEFI Capital Grants,The British Library,99099508,4982.75,Capital Grants & Equipment to HEIs
BEIS,UKRI - AHRC,20/12/2021,Research Grant Expenditure,DEDEFI Capital Grants,The British Library,99099508,-5038.48,Research Grant Expenditure
BEIS,UKRI - AHRC,20/12/2021,Capital Grants & Equipment to HEIs,DEDEFI Capital Grants,University of Glasgow,99099509,-28250.10,Capital Grants & Equipment to HEIs
BEIS,UKRI - AHRC,20/12/2021,Capital Grants & Equipment to HEIs,DEDEFI Capital Grants,The University of Manchester,99099511,-1019.59,Capital Grants & Equipment to HEIs
BEIS,UKRI - AHRC,20/12/2021,Capital Grants & Equipment to HEIs,DEDEFI Capital Grants,Birkbeck College,99099512,8181.55,Capital Grants & Equipment to HEIs
BEIS,UKRI - AHRC,20/12/2021,Capital Grants & Equipment to HEIs,DEDEFI Capital Grants,University of Reading,99099513,-14256.53,Capital Grants & Equipment to HEIs
BEIS,UKRI - AHRC,20/12/2021,Capital Grants & Equipment to HEIs,DEDEFI Capital Grants,University of Cambridge,99099514,-94797.14,Capital Grants & Equipment to HEIs
BEIS,UKRI - AHRC,20/12/2021,Research Grant Expenditure,DEDEFI Capital Grants,University College London,99099515,-488.88,Research Grant Expenditure
BEIS,UKRI - AHRC,20/12/2021,Research Grant Expenditure,Modern Slavery and Human Rights (SPF),University of Nottingham,99099516,-3371.43,Research Grant Expenditure
BEIS,UKRI - AHRC,20/12/2021,Research Grant Expenditure,Modern Slavery and Human Rights (SPF),University of Liverpool,99099517,-18002.32,Research Grant Expenditure
BEIS,UKRI - AHRC,20/12/2021,Research Grant Expenditure,Modern Slavery and Human Rights (SPF),University of Edinburgh,99099518,-113.02,Research Grant Expenditure
BEIS,UKRI - AHRC,20/12/2021,Research Grant Expenditure,Modern Slavery and Human Rights (SPF),Nottingham Trent University,99099519,-1999.64,Research Grant Expenditure
BEIS,UKRI - AHRC,20/12/2021,Research Grant Expenditure,COVID-19 (AHRC funded),The University of Manchester,99099520,45296.51,Research Grant Expenditure
BEIS,UKRI - AHRC,20/12/2021,Research Grant Expenditure,Modern Slavery and Human Rights (SPF),University of Sheffield,99099521,-2860.23,Research Grant Expenditure
BEIS,UKRI - AHRC,20/12/2021,Research Grant Expenditure,Global Challenges Research Fund (GCRF),Cardiff University,99099522,-780.84,Research Grant Expenditure
BEIS,UKRI - AHRC,20/12/2021,Research Grant Expenditure,Global Challenges Research Fund (GCRF),"City, University of London",99099523,-7350.62,Research Grant Expenditure
BEIS,UKRI - AHRC,20/12/2021,Research Grant Expenditure,Newton Programme,Royal College of Art,99099524,-6093.92,Research Grant Expenditure
BEIS,UKRI - AHRC,20/12/2021,Research Grant Expenditure,Funds for International Collaboration (FIC 20 US),University of Sussex,99099525,-7132.80,Research Grant Expenditure
BEIS,UKRI - AHRC,20/12/2021,Research Grant Expenditure,Towards a National Collection (SPF),The National Archives,99099526,-10593.04,Research Grant Expenditure
BEIS,UKRI - AHRC,20/12/2021,Research Grant Expenditure,Global Challenges Research Fund (GCRF),Cardiff University,99099527,-47247.13,Research Grant Expenditure
BEIS,UKRI - AHRC,20/12/2021,Research Grant Expenditure,Global Challenges Research Fund (GCRF),University of Exeter,99099528,-12563.34,Research Grant Expenditure
BEIS,UKRI - AHRC,20/12/2021,Research Grant Expenditure,Global Challenges Research Fund (GCRF),University of Essex,99099529,-10438.36,Research Grant Expenditure
BEIS,UKRI - AHRC,20/12/2021,Research Grant Expenditure,Follow-on Fund,University of Surrey,99099530,-3717.84,Research Grant Expenditure
BEIS,UKRI - AHRC,20/12/2021,Research Grant Expenditure,Global Challenges Research Fund (GCRF),University of Durham,99099531,-17423.65,Research Grant Expenditure
BEIS,UKRI - AHRC,20/12/2021,Research Grant Expenditure,Global Challenges Research Fund (GCRF),University of Cambridge,99099532,-13241.89,Research Grant Expenditure
BEIS,UKRI - AHRC,20/12/2021,Research Grant Expenditure,Global Challenges Research Fund (GCRF),University of Birmingham GRANT,99099533,-3984.98,Research Grant Expenditure
BEIS,UKRI - AHRC,20/12/2021,Research Grant Expenditure,Global Challenges Research Fund (GCRF),University of Birmingham GRANT,99099534,-12299.26,Research Grant Expenditure
BEIS,UKRI - AHRC,20/12/2021,Research Grant Expenditure,Global Challenges Research Fund (GCRF),Aberystwyth University,99099535,-6041.66,Research Grant Expenditure
BEIS,UKRI - AHRC,20/12/2021,Research Grant Expenditure,Global Challenges Research Fund (GCRF),Keele University,99099536,-911.54,Research Grant Expenditure
BEIS,UKRI - AHRC,20/12/2021,Research Grant Expenditure,Global Challenges Research Fund (GCRF),University of Bristol GRANT,99099537,-0.28,Research Grant Expenditure
BEIS,UKRI - AHRC,20/12/2021,Research Grant Expenditure,RCUK Global Challenges Research Fund (RCUK GCRF),University College London,99099538,-256.09,Research Grant Expenditure
BEIS,UKRI - AHRC,20/12/2021,Research Grant Expenditure,Networks & Workshops,University of Exeter,99099539,-0.01,Research Grant Expenditure
BEIS,UKRI - AHRC,20/12/2021,Research Grant Expenditure,Newton Programme,University of Liverpool,99099540,-27796.17,Research Grant Expenditure
BEIS,UKRI - AHRC,20/12/2021,Research Grant Expenditure,Networks & Workshops,University of Leeds,99099541,-6566.22,Research Grant Expenditure
BEIS,UKRI - AHRC,20/12/2021,Research Grant Expenditure,Global Challenges Research Fund (GCRF),"SOAS, University of London",99099542,-28808.48,Research Grant Expenditure
BEIS,UKRI - AHRC,20/12/2021,Research Grant Expenditure,Networks & Workshops,University of East Anglia,99099543,-10008.53,Research Grant Expenditure
BEIS,UKRI - AHRC,20/12/2021,Research Grant Expenditure,Global Challenges Research Fund (GCRF),University of Edinburgh,99099544,-6233.88,Research Grant Expenditure
BEIS,UKRI - AHRC,20/12/2021,Research Grant Expenditure,Networks & Workshops,Loughborough University,99099545,-8483.56,Research Grant Expenditure
BEIS,UKRI - AHRC,20/12/2021,Research Grant Expenditure,Networks & Workshops,Liverpool John Moores University,99099546,-3244.65,Research Grant Expenditure
BEIS,UKRI - AHRC,20/12/2021,Research Grant Expenditure,Global Challenges Research Fund (GCRF),Goldsmiths College University of London,99099547,717.91,Research Grant Expenditure
BEIS,UKRI - AHRC,20/12/2021,Research Grant Expenditure,Networks & Workshops,Coventry University,99099548,-204.39,Research Grant Expenditure
BEIS,UKRI - AHRC,20/12/2021,Research Grant Expenditure,Research Grants,University of the Arts London,99099549,33239.39,Research Grant Expenditure
BEIS,UKRI - AHRC,20/12/2021,Research Grant Expenditure,JPI Cultural Heritage,The Open University,99099550,7343.25,Research Grant Expenditure
BEIS,UKRI - AHRC,20/12/2021,Research Grant Expenditure,RCUK Newton Programme,University of Nottingham,99099551,-0.01,Research Grant Expenditure
BEIS,UKRI - AHRC,20/12/2021,Research Grant Expenditure,Networks & Workshops,University of Birmingham GRANT,99099552,-683.04,Research Grant Expenditure
BEIS,UKRI - AHRC,20/12/2021,Research Grant Expenditure,Research Grants,Queen's University Belfast GRANT,99099553,1311.31,Research Grant Expenditure
BEIS,UKRI - AHRC,20/12/2021,Research Grant Expenditure,Research Grants,The University of Manchester,99099554,52346.65,Research Grant Expenditure
BEIS,UKRI - AHRC,20/12/2021,Research Grant Expenditure,Research Grants,The University of Manchester,99099555,4758.74,Research Grant Expenditure
BEIS,UKRI - AHRC,20/12/2021,Research Grant Expenditure,Research Grants,"Royal Holloway, University of London",99099556,27281.89,Research Grant Expenditure
BEIS,UKRI - AHRC,20/12/2021,Research Grant Expenditure,Research Grants,University of Bradford,99099557,3540.38,Research Grant Expenditure
BEIS,UKRI - AHRC,20/12/2021,Research Grant Expenditure,Research Grants,Nottingham Trent University,99099558,210738.88,Research Grant Expenditure
BEIS,UKRI - AHRC,20/12/2021,Research Grant Expenditure,Anti-microbial Resistance (AMR),Lancaster University,99099559,2661.83,Research Grant Expenditure
BEIS,UKRI - AHRC,20/12/2021,Research Grant Expenditure,Research Grants,University College London,99099560,26848.67,Research Grant Expenditure
BEIS,UKRI - AHRC,20/12/2021,Research Grant Expenditure,Research Grants,University of Edinburgh,99099561,5493.67,Research Grant Expenditure
BEIS,UKRI - AHRC,20/12/2021,Research Grant Expenditure,Research Grants,University of Kent,99099562,41295.04,Research Grant Expenditure
BEIS,UKRI - AHRC,20/12/2021,Research Grant Expenditure,Research Grants,Aberystwyth University,99099563,49215.82,Research Grant Expenditure
BEIS,UKRI - AHRC,20/12/2021,Research Grant Expenditure,Research Grants,University of Glasgow,99099564,59801.67,Research Grant Expenditure
BEIS,UKRI - AHRC,20/12/2021,Research Grant Expenditure,Research Grants,"SOAS, University of London",99099565,59825.93,Research Grant Expenditure
BEIS,UKRI - AHRC,20/12/2021,Research Grant Expenditure,Open World Research Initiative (OWRI).,University of Cambridge,99099566,138555.17,Research Grant Expenditure
BEIS,UKRI - AHRC,20/12/2021,Research Grant Expenditure,Research Grants,University of Birmingham GRANT,99099567,-7790.52,Research Grant Expenditure
BEIS,UKRI - AHRC,20/12/2021,Capital Grants & Equipment to HEIs,DEDEFI Capital Grants,University of Kent,99099570,-21836.02,Capital Grants & Equipment to HEIs
BEIS,UKRI - AHRC,20/12/2021,Research Grant Expenditure,DEDEFI Capital Grants,University of Kent,99099570,-14.22,Research Grant Expenditure
BEIS,UKRI - AHRC,20/12/2021,Research Grant Expenditure,Modern Slavery and Human Rights (SPF),Nottingham Trent University,99099571,-17285.56,Research Grant Expenditure
BEIS,UKRI - AHRC,20/12/2021,Fellowships,Mobilising Cultural and Natural Assets,University College London,99099573,74927.45,Fellowships
BEIS,UKRI - AHRC,20/12/2021,Fellowships,Research Fellowships,University of the West of England,99099574,25181.34,Fellowships
BEIS,UKRI - AHRC,20/12/2021,Fellowships,Research Fellowships,University of Warwick,99099575,21997.45,Fellowships
BEIS,UKRI - AHRC,20/12/2021,Fellowships,Public and Stakeholder Engagement,Royal Northern College of Music,99099576,1260.12,Fellowships
BEIS,UKRI - AHRC,20/12/2021,Fellowships,Public and Stakeholder Engagement,Bath Spa University,99099577,1260.12,Fellowships
BEIS,UKRI - AHRC,20/12/2021,Fellowships,Public and Stakeholder Engagement,University of West London,99099578,1260.12,Fellowships
BEIS,UKRI - AHRC,20/12/2021,Fellowships,Public and Stakeholder Engagement,University of Edinburgh,99099579,1260.12,Fellowships
BEIS,UKRI - AHRC,20/12/2021,Fellowships,Public and Stakeholder Engagement,Royal College of Music,99099580,1260.12,Fellowships
BEIS,UKRI - AHRC,20/12/2021,Fellowships,Public and Stakeholder Engagement,Birmingham City University,99099581,1260.12,Fellowships
BEIS,UKRI - AHRC,20/12/2021,Fellowships,Public and Stakeholder Engagement,University of Oxford,99099582,1260.12,Fellowships
BEIS,UKRI - AHRC,20/12/2021,Fellowships,Research Fellowships,University of St Andrews,99099583,27664.91,Fellowships
BEIS,UKRI - AHRC,20/12/2021,Fellowships,Research Fellowships,University of Sheffield,99099584,21101.84,Fellowships
BEIS,UKRI - AHRC,20/12/2021,Fellowships,Research Fellowships,University of Warwick,99099585,45657.95,Fellowships
BEIS,UKRI - AHRC,20/12/2021,Fellowships,Research Fellowships,Nottingham Trent University,99099586,31840.55,Fellowships
BEIS,UKRI - AHRC,20/12/2021,Fellowships,Research Fellowships,University of York,99099587,30571.77,Fellowships
BEIS,UKRI - AHRC,20/12/2021,Fellowships,Commissioned Research,Manchester Metropolitan University,99099588,25152.35,Fellowships
BEIS,UKRI - AHRC,20/12/2021,Fellowships,Commissioned Research,University of Liverpool,99099589,25132.46,Fellowships
BEIS,UKRI - AHRC,20/12/2021,Fellowships,Commissioned Research,"Royal Holloway, University of London",99099590,25167.20,Fellowships
BEIS,UKRI - AHRC,20/12/2021,Fellowships,Commissioned Research,University for the Creative Arts,99099591,25107.49,Fellowships
BEIS,UKRI - AHRC,20/12/2021,Fellowships,Commissioned Research,University of Exeter,99099592,25033.64,Fellowships
BEIS,UKRI - AHRC,20/12/2021,Fellowships,Commissioned Research,University of Strathclyde,99099593,24785.60,Fellowships
BEIS,UKRI - AHRC,20/12/2021,Fellowships,Commissioned Research,University of Birmingham GRANT,99099594,25194.89,Fellowships
BEIS,UKRI - AHRC,20/12/2021,Fellowships,Commissioned Research,University of Edinburgh,99099595,15121.75,Fellowships
BEIS,UKRI - AHRC,20/12/2021,Fellowships,Commissioned Research,The Open University,99099596,7614.18,Fellowships
BEIS,UKRI - AHRC,20/12/2021,Fellowships,Commissioned Research,The Open University,99099596,47288.42,Fellowships
BEIS,UKRI - AHRC,20/12/2021,Fellowships,Research Fellowships,Birmingham City University,99099597,21196.90,Fellowships
BEIS,UKRI - AHRC,20/12/2021,Fellowships,Research Fellowships,Newman University,99099598,20837.28,Fellowships
BEIS,UKRI - AHRC,20/12/2021,Fellowships,Research Fellowships,University of East Anglia,99099599,23038.37,Fellowships
BEIS,UKRI - AHRC,20/12/2021,Fellowships,Research Fellowships,University of Southampton GRANT,99099600,41057.82,Fellowships
BEIS,UKRI - AHRC,20/12/2021,Fellowships,Research Fellowships,University of Glasgow,99099601,46626.54,Fellowships
BEIS,UKRI - AHRC,20/12/2021,Fellowships,Research Fellowships,Northumbria University,99099602,32042.27,Fellowships
BEIS,UKRI - AHRC,20/12/2021,Fellowships,Research Fellowships,University of Greenwich,99099603,29075.83,Fellowships
BEIS,UKRI - AHRC,20/12/2021,Fellowships,Research Fellowships,University of Southampton GRANT,99099604,25197.86,Fellowships
BEIS,UKRI - AHRC,20/12/2021,Fellowships,Research Fellowships,Middlesex University,99099605,24024.90,Fellowships
BEIS,UKRI - AHRC,20/12/2021,Fellowships,Research Fellowships,Manchester Metropolitan University,99099606,21380.86,Fellowships
BEIS,UKRI - AHRC,20/12/2021,Fellowships,Research Fellowships,University of Sussex,99099607,30741.25,Fellowships
BEIS,UKRI - AHRC,20/12/2021,Fellowships,Research Fellowships,University of Glasgow,99099608,26700.13,Fellowships
BEIS,UKRI - AHRC,20/12/2021,Fellowships,Research Fellowships,University of Bristol GRANT,99099609,28183.33,Fellowships
BEIS,UKRI - AHRC,20/12/2021,Fellowships,Research Fellowships,University of St Andrews,99099610,22502.96,Fellowships
BEIS,UKRI - AHRC,20/12/2021,Fellowships,Research Fellowships,University of Bristol GRANT,99099611,28796.60,Fellowships
BEIS,UKRI - AHRC,20/12/2021,Fellowships,Research Fellowships,University of Bristol GRANT,99099611,28796.60,Fellowships
BEIS,UKRI - AHRC,20/12/2021,Fellowships,Research Fellowships,University of Bristol GRANT,99099611,28796.60,Fellowships
BEIS,UKRI - AHRC,20/12/2021,Fellowships,Research Fellowships,University of Bristol GRANT,99099612,27479.59,Fellowships
BEIS,UKRI - AHRC,20/12/2021,Fellowships,Research Fellowships,Cardiff University,99099613,33756.56,Fellowships
BEIS,UKRI - AHRC,20/12/2021,Fellowships,Research Fellowships,University of South Wales,99099614,22204.61,Fellowships
BEIS,UKRI - AHRC,20/12/2021,Fellowships,Research Fellowships,University of Sheffield,99099615,26562.49,Fellowships
BEIS,UKRI - AHRC,20/12/2021,Fellowships,Research Fellowships,The University of Manchester,99099616,42413.69,Fellowships
BEIS,UKRI - AHRC,20/12/2021,Fellowships,Commissioned Research,University of Bristol GRANT,99099617,26624.69,Fellowships
BEIS,UKRI - AHRC,20/12/2021,Fellowships,Commissioned Research,University of Newcastle Upon Tyne,99099618,24813.98,Fellowships
BEIS,UKRI - AHRC,20/12/2021,Fellowships,Commissioned Research,Aston University,99099619,18274.63,Fellowships
BEIS,UKRI - AHRC,20/12/2021,Fellowships,Commissioned Research,University of Leicester,99099620,33375.88,Fellowships
BEIS,UKRI - AHRC,20/12/2021,Fellowships,Research Fellowships,University of Liverpool,99099621,18653.97,Fellowships
BEIS,UKRI - AHRC,20/12/2021,Fellowships,Research Fellowships,University of Edinburgh,99099622,27422.50,Fellowships
BEIS,UKRI - AHRC,20/12/2021,Fellowships,Research Fellowships,Bangor University,99099623,28486.33,Fellowships
BEIS,UKRI - AHRC,20/12/2021,Fellowships,Research Fellowships,Goldsmiths College University of London,99099624,24490.98,Fellowships
BEIS,UKRI - AHRC,20/12/2021,Fellowships,Research Fellowships,University of Warwick,99099625,34186.62,Fellowships
BEIS,UKRI - AHRC,20/12/2021,Fellowships,Research Fellowships,University of the Arts London,99099626,26550.81,Fellowships
BEIS,UKRI - AHRC,20/12/2021,Fellowships,Research Fellowships,University of Leeds,99099627,30814.91,Fellowships
BEIS,UKRI - AHRC,20/12/2021,Fellowships,Research Fellowships,University of Central Lancashire,99099628,11636.85,Fellowships
BEIS,UKRI - AHRC,20/12/2021,Fellowships,Research Fellowships,University of Leeds,99099629,22321.91,Fellowships
BEIS,UKRI - AHRC,20/12/2021,Fellowships,Research Fellowships,University of East Anglia,99099630,33246.80,Fellowships
BEIS,UKRI - AHRC,20/12/2021,Fellowships,Research Fellowships,University of Leeds,99099631,42331.93,Fellowships
BEIS,UKRI - AHRC,20/12/2021,Fellowships,Research Fellowships,Edge Hill University College,99099632,20673.59,Fellowships
BEIS,UKRI - AHRC,20/12/2021,Fellowships,Research Fellowships,University of Nottingham,99099633,23729.49,Fellowships
BEIS,UKRI - AHRC,20/12/2021,Fellowships,Research Fellowships,University of Birmingham GRANT,99099635,23297.68,Fellowships
BEIS,UKRI - AHRC,20/12/2021,Fellowships,Research Fellowships,University of Birmingham GRANT,99099636,19833.74,Fellowships
BEIS,UKRI - AHRC,20/12/2021,Fellowships,Research Fellowships,The University of Manchester,99099637,27296.57,Fellowships
BEIS,UKRI - AHRC,20/12/2021,Fellowships,Research Fellowships,University of Durham,99099638,28413.38,Fellowships
BEIS,UKRI - AHRC,20/12/2021,Fellowships,Commissioned Research,University of St Andrews,99099639,26075.25,Fellowships
BEIS,UKRI - AHRC,20/12/2021,Fellowships,Research Fellowships,University of Cambridge,99099640,25229.53,Fellowships
BEIS,UKRI - AHRC,20/12/2021,Fellowships,Research Fellowships,University of Durham,99099641,23470.25,Fellowships
BEIS,UKRI - AHRC,20/12/2021,Fellowships,Research Fellowships,University of Brighton,99099642,10895.73,Fellowships
BEIS,UKRI - AHRC,20/12/2021,Fellowships,Commissioned Research,University of Liverpool,99099652,3832.92,Fellowships
BEIS,UKRI - AHRC,20/12/2021,Fellowships,Research Fellowships,Queen's University Belfast GRANT,99099653,24782.82,Fellowships
BEIS,UKRI - AHRC,20/12/2021,Fellowships,NPIF Research Talent (RCUK Innovation Fellowships),Royal Botanic Gardens Edinburgh,99099654,-1812.34,Fellowships
BEIS,UKRI - AHRC,20/12/2021,Fellowships,NPIF Research Talent (RCUK Innovation Fellowships),Glasgow School of Art,99099655,3585.10,Fellowships
BEIS,UKRI - AHRC,20/12/2021,Fellowships,NPIF Research Talent (RCUK Innovation Fellowships),University of Edinburgh,99099656,10199.79,Fellowships
BEIS,UKRI - AHRC,20/12/2021,Fellowships,Research Fellowships,University of Leicester,99099657,23865.03,Fellowships
BEIS,UKRI - AHRC,20/12/2021,Fellowships,Research Fellowships,University of Kent,99099658,21164.90,Fellowships
BEIS,UKRI - AHRC,20/12/2021,Fellowships,Research Fellowships,University of East Anglia,99099659,-3634.85,Fellowships
BEIS,UKRI - AHRC,20/12/2021,Fellowships,Research Fellowships,University of Sussex,99099660,21855.60,Fellowships
BEIS,UKRI - AHRC,20/12/2021,Fellowships,Research Fellowships,University of Cambridge,99099661,422.63,Fellowships
BEIS,UKRI - AHRC,20/12/2021,Fellowships,Research Fellowships,Goldsmiths College University of London,99099662,39130.91,Fellowships
BEIS,UKRI - AHRC,20/12/2021,Fellowships,NPIF Research Talent (RCUK Innovation Fellowships),Royal Botanic Gardens Edinburgh,99099666,31947.68,Fellowships
BEIS,UKRI - AHRC,20/12/2021,Fees (Including College Members),Infrastructure Fund - CoSTAR,Unspecified,99104088,170.00,Fees (Including College Members)
BEIS,UKRI - AHRC,20/12/2021,T&S UK - Public Transport,Industrial Strategy Challenge Fund (ISCF) - Creative Clusters,Unspecified,99106453,25.45,T&S UK - Public Transport
BEIS,UKRI - AHRC,20/12/2021,T&S UK - Public Transport,Industrial Strategy Challenge Fund (ISCF) - Creative Clusters,Unspecified,99106453,72.80,T&S UK - Public Transport
BEIS,UKRI - AHRC,20/12/2021,T&S UK - Public Transport,Strategy and Evidence,Unspecified,99106453,13.20,T&S UK - Public Transport
BEIS,UKRI - AHRC,21/12/2021,Research Grant Expenditure,Commissioned Research,UKRI - Economic & Social Research Council,99064602,-5990.62,Research Grant Expenditure
BEIS,UKRI - AHRC,21/12/2021,Research Grant Expenditure,Commissioned Research,UKRI - Economic & Social Research Council,99064602,-10792.77,Research Grant Expenditure
BEIS,UKRI - AHRC,21/12/2021,Research Grant Expenditure,Urban Living,UKRI - Economic & Social Research Council,99064605,-1814.11,Research Grant Expenditure
BEIS,UKRI - AHRC,21/12/2021,Research Grant Expenditure,Intergenerational Justice,Historic Buildings and Monuments Commission for England T/A Historic England,99096111,126199.45,Research Grant Expenditure
BEIS,UKRI - AHRC,21/12/2021,Research Grant Expenditure,Towards a National Collection (SPF),Historic Buildings and Monuments Commission for England T/A Historic England,99096152,239579.62,Research Grant Expenditure
BEIS,UKRI - AHRC,21/12/2021,Research Grant Expenditure,Global Challenges Research Fund (GCRF),Marondera University of Agricultural Sciences and Technology,99099275,36054.03,Research Grant Expenditure
BEIS,UKRI - AHRC,21/12/2021,Research Grant Expenditure,DFID Collaborative Humanitarian Protection Research Programme (CHPRP),SIPRI,99099374,70291.31,Research Grant Expenditure
BEIS,UKRI - AHRC,21/12/2021,Research Grant Expenditure,DFID Collaborative Humanitarian Protection Research Programme (CHPRP),Global Public Policy Institute,99099375,73519.91,Research Grant Expenditure
BEIS,UKRI - AHRC,21/12/2021,Research Grant Expenditure,DFID Collaborative Humanitarian Protection Research Programme (CHPRP),American University of Beirut,99099376,60939.30,Research Grant Expenditure
BEIS,UKRI - AHRC,21/12/2021,Research Grant Expenditure,DFID Collaborative Humanitarian Protection Research Programme (CHPRP),Geneva Academy of International Humanitarian Law and Human Rights,99099377,60887.21,Research Grant Expenditure
BEIS,UKRI - AHRC,21/12/2021,Research Grant Expenditure,DFID Collaborative Humanitarian Protection Research Programme (CHPRP),"National University of Ireland, Galway",99099379,84795.56,Research Grant Expenditure
BEIS,UKRI - AHRC,21/12/2021,Fellowships,Research Fellowships,Historic Buildings and Monuments Commission for England T/A Historic England,99099634,18591.42,Fellowships
BEIS,UKRI - AHRC,21/12/2021,Research Grant Expenditure,Global Uncertainties Programme,UKRI - Economic & Social Research Council,99102943,10329.18,Research Grant Expenditure
BEIS,UKRI - AHRC,21/12/2021,Research Grant Expenditure,Commissioned Research,UKRI - Economic & Social Research Council,99102945,22548.12,Research Grant Expenditure
BEIS,UKRI - AHRC,21/12/2021,Research Grant Expenditure,Commissioned Research,UKRI - Economic & Social Research Council,99102945,5967.22,Research Grant Expenditure
BEIS,UKRI - AHRC,21/12/2021,Research Grant Expenditure,Commissioned Research,UKRI - Economic & Social Research Council,99102945,6999.69,Research Grant Expenditure
BEIS,UKRI - AHRC,21/12/2021,Research Grant Expenditure,Commissioned Research,UKRI - Economic & Social Research Council,99102945,6892.33,Research Grant Expenditure
BEIS,UKRI - AHRC,21/12/2021,Research Grant Expenditure,Commissioned Research,UKRI - Economic & Social Research Council,99102945,7514.21,Research Grant Expenditure
BEIS,UKRI - AHRC,21/12/2021,Research Grant Expenditure,Commissioned Research,UKRI - Economic & Social Research Council,99102945,6851.55,Research Grant Expenditure
BEIS,UKRI - AHRC,21/12/2021,Research Grant Expenditure,Commissioned Research,UKRI - Economic & Social Research Council,99102945,10792.77,Research Grant Expenditure
BEIS,UKRI - AHRC,21/12/2021,Research Grant Expenditure,Commissioned Research,UKRI - Economic & Social Research Council,99102945,7230.09,Research Grant Expenditure
BEIS,UKRI - AHRC,21/12/2021,Research Grant Expenditure,Commissioned Research,UKRI - Economic & Social Research Council,99102945,11751.14,Research Grant Expenditure
BEIS,UKRI - AHRC,21/12/2021,Research Grant Expenditure,Digital Transformations,UKRI - Economic & Social Research Council,99102952,5403.53,Research Grant Expenditure
BEIS,UKRI - AHRC,21/12/2021,Research Grant Expenditure,Urban Living,UKRI - Economic & Social Research Council,99102953,2182.19,Research Grant Expenditure
BEIS,UKRI - AHRC,21/12/2021,Research Grant Expenditure,Urban Living,UKRI - Economic & Social Research Council,99102953,1814.11,Research Grant Expenditure
BEIS,UKRI - AHRC,21/12/2021,Research Grant Expenditure,Urban Living,UKRI - Economic & Social Research Council,99102953,6707.06,Research Grant Expenditure
BEIS,UKRI - AHRC,21/12/2021,Research Grant Expenditure,Urban Living,UKRI - Economic & Social Research Council,99102953,2591.59,Research Grant Expenditure
BEIS,UKRI - AHRC,21/12/2021,Research Grant Expenditure,Digital Economy,UKRI - Engineering & Physical Sciences Research Council,99103275,22859.77,Research Grant Expenditure
BEIS,UKRI - AHRC,21/12/2021,Unspecified,Infrastruture Roadmap,Alexander Mann Solutions Ltd,99106009,2772.24,Legal & Professional Services
BEIS,UKRI - AHRC,21/12/2021,Non-staff travel and subsistance,Public Engagement,Unspecified,99106476,5000.00,Non-staff travel and subsistance
BEIS,UKRI - AHRC,21/12/2021,Fees (Including College Members),Operations,Unspecified,99106477,170.00,Fees (Including College Members)
BEIS,UKRI - AHRC,21/12/2021,Fees (Including College Members),Operations,Unspecified,99106478,170.00,Fees (Including College Members)
BEIS,UKRI - AHRC,21/12/2021,Fees (Including College Members),Operations,Unspecified,99106479,170.00,Fees (Including College Members)
BEIS,UKRI - AHRC,21/12/2021,Fees (Including College Members),Operations,Unspecified,99106480,170.00,Fees (Including College Members)
BEIS,UKRI - AHRC,22/12/2021,Fees (Including College Members),Operations,Unspecified,99107472,170.00,Fees (Including College Members)
BEIS,UKRI - AHRC,22/12/2021,Fees (Including College Members),Operations,Unspecified,99107473,170.00,Fees (Including College Members)
BEIS,UKRI - AHRC,22/12/2021,Fees (Including College Members),Operations,Unspecified,99107474,170.00,Fees (Including College Members)
BEIS,UKRI - AHRC,22/12/2021,Fees (Including College Members),Operations,Unspecified,99107475,170.00,Fees (Including College Members)
BEIS,UKRI - AHRC,22/12/2021,Fees (Including College Members),Operations,Unspecified,99107476,170.00,Fees (Including College Members)
BEIS,UKRI - AHRC,22/12/2021,Fees (Including College Members),Operations,Unspecified,99107477,230.00,Fees (Including College Members)
BEIS,UKRI - AHRC,22/12/2021,Fees (Including College Members),Operations,Unspecified,99107478,170.00,Fees (Including College Members)
BEIS,UKRI - AHRC,22/12/2021,Fees (Including College Members),Operations,Unspecified,99107479,170.00,Fees (Including College Members)
BEIS,UKRI - AHRC,23/12/2021,Non-staff travel and subsistance,Infrastructure Fund - CoSTAR,Unspecified,99108399,84.00,Non-staff travel and subsistance
BEIS,UKRI - AHRC,23/12/2021,Fees (Including College Members),Executive Office,Unspecified,99108400,500.00,Fees (Including College Members)
BEIS,UKRI - AHRC,23/12/2021,Fees (Including College Members),Executive Office,Unspecified,99108401,500.00,Fees (Including College Members)
BEIS,UKRI - AHRC,24/12/2021,Fees (Including College Members),Executive Office,Unspecified,99108041,500.00,Fees (Including College Members)
BEIS,UKRI - AHRC,24/12/2021,Conferences & Seminars,SMT,Harbour and Jones Ltd T/A Dartmouth House,99108615,16.09,Conferences & Seminars
BEIS,UKRI - AHRC,24/12/2021,GPC Sundry Expenditure,SMT,Harbour and Jones Ltd T/A Dartmouth House,99108615,190.93,GPC Sundry Expenditure
BEIS,UKRI - AHRC,24/12/2021,Meetings & Catering,SMT,Harbour and Jones Ltd T/A Dartmouth House,99108615,32.72,Meetings & Catering
BEIS,UKRI - AHRC,24/12/2021,Non-staff travel and subsistance,SMT,Harbour and Jones Ltd T/A Dartmouth House,99108615,65.44,Non-staff travel and subsistance
BEIS,UKRI - AHRC,24/12/2021,Unspecified,Infrastruture Roadmap,Alexander Mann Solutions Ltd,99108659,2772.24,Legal & Professional Services
BEIS,UKRI - AHRC,30/12/2021,Meetings & Catering,SMT,Harbour and Jones Ltd T/A Dartmouth House,99109346,305.18,Meetings & Catering
BEIS,UKRI - BBSRC,01/12/2021,Fees (Including College Members),Science Group – Admin Function,Unspecified,99085807,170.00,Fees (Including College Members)
BEIS,UKRI - BBSRC,01/12/2021,Fees (Including College Members),Science Group – Admin Function,Unspecified,99085808,170.00,Fees (Including College Members)
BEIS,UKRI - BBSRC,01/12/2021,Fees (Including College Members),Science Group – Admin Function,Unspecified,99085809,170.00,Fees (Including College Members)
BEIS,UKRI - BBSRC,01/12/2021,Fees (Including College Members),Science Group – Admin Function,Unspecified,99085810,230.00,Fees (Including College Members)
BEIS,UKRI - BBSRC,01/12/2021,Fees (Including College Members),Science Group – Admin Function,Unspecified,99085812,170.00,Fees (Including College Members)
BEIS,UKRI - BBSRC,01/12/2021,Fees (Including College Members),Science Group – Admin Function,Unspecified,99085813,170.00,Fees (Including College Members)
BEIS,UKRI - BBSRC,01/12/2021,Fees (Including College Members),Science Group – Admin Function,Unspecified,99085814,170.00,Fees (Including College Members)
BEIS,UKRI - BBSRC,01/12/2021,Fees (Including College Members),Science Group – Admin Function,Unspecified,99085815,170.00,Fees (Including College Members)
BEIS,UKRI - BBSRC,01/12/2021,Fees (Including College Members),Science Group – Admin Function,Unspecified,99085816,170.00,Fees (Including College Members)
BEIS,UKRI - BBSRC,01/12/2021,Fees (Including College Members),Science Group – Admin Function,Unspecified,99085817,170.00,Fees (Including College Members)
BEIS,UKRI - BBSRC,01/12/2021,Fees (Including College Members),Science Group – Admin Function,Unspecified,99085818,170.00,Fees (Including College Members)
BEIS,UKRI - BBSRC,01/12/2021,Fees (Including College Members),Innovation and Skills Group CDSU,Unspecified,99085819,340.00,Fees (Including College Members)
BEIS,UKRI - BBSRC,01/12/2021,Fees (Including College Members),Innovation and Skills Group CDSU,Unspecified,99085820,340.00,Fees (Including College Members)
BEIS,UKRI - BBSRC,01/12/2021,Fees (Including College Members),Innovation and Skills Group CDSU,Unspecified,99085821,340.00,Fees (Including College Members)
BEIS,UKRI - BBSRC,01/12/2021,Fees (Including College Members),Innovation and Skills Group CDSU,Unspecified,99085822,340.00,Fees (Including College Members)
BEIS,UKRI - BBSRC,01/12/2021,Fees (Including College Members),Innovation and Skills Group CDSU,Unspecified,99085823,340.00,Fees (Including College Members)
BEIS,UKRI - BBSRC,01/12/2021,Fees (Including College Members),Innovation and Skills Group CDSU,Unspecified,99085824,340.00,Fees (Including College Members)
BEIS,UKRI - BBSRC,01/12/2021,Fees (Including College Members),Innovation and Skills Group CDSU,Unspecified,99085825,340.00,Fees (Including College Members)
BEIS,UKRI - BBSRC,01/12/2021,Fees (Including College Members),Innovation and Skills Group CDSU,Unspecified,99085826,340.00,Fees (Including College Members)
BEIS,UKRI - BBSRC,01/12/2021,Fees (Including College Members),Innovation and Skills Group CDSU,Unspecified,99085827,340.00,Fees (Including College Members)
BEIS,UKRI - BBSRC,01/12/2021,Fees (Including College Members),Innovation and Skills Group CDSU,Unspecified,99085828,340.00,Fees (Including College Members)
BEIS,UKRI - BBSRC,01/12/2021,Fees (Including College Members),Innovation and Skills Group CDSU,Unspecified,99085829,340.00,Fees (Including College Members)
BEIS,UKRI - BBSRC,01/12/2021,Fees (Including College Members),Innovation and Skills Group CDSU,Unspecified,99085830,340.00,Fees (Including College Members)
BEIS,UKRI - BBSRC,01/12/2021,Fees (Including College Members),Innovation and Skills Group CDSU,Unspecified,99085831,340.00,Fees (Including College Members)
BEIS,UKRI - BBSRC,01/12/2021,Fees (Including College Members),Innovation and Skills Group CDSU,Unspecified,99085832,340.00,Fees (Including College Members)
BEIS,UKRI - BBSRC,01/12/2021,Fees (Including College Members),Innovation and Skills Group CDSU,Unspecified,99085833,340.00,Fees (Including College Members)
BEIS,UKRI - BBSRC,01/12/2021,Fees (Including College Members),Innovation and Skills Group CDSU,Unspecified,99086641,340.00,Fees (Including College Members)
BEIS,UKRI - BBSRC,01/12/2021,T&S UK - Public Transport,Science Group,Unspecified,99086871,9.00,T&S UK - Public Transport
BEIS,UKRI - BBSRC,01/12/2021,T&S UK - Public Transport,Science Group,Unspecified,99086871,20.00,T&S UK - Public Transport
BEIS,UKRI - BBSRC,01/12/2021,T&S UK - Subsistence,Science Group,Unspecified,99086871,3.75,T&S UK - Subsistence
BEIS,UKRI - BBSRC,01/12/2021,T&S UK - Subsistence,Science Group,Unspecified,99086871,40.10,T&S UK - Subsistence
BEIS,UKRI - BBSRC,01/12/2021,T&S UK - Subsistence,Science Group,Unspecified,99086871,17.71,T&S UK - Subsistence
BEIS,UKRI - BBSRC,01/12/2021,T&S UK - Subsistence,Science Group,Unspecified,99086871,3.29,T&S UK - Subsistence
BEIS,UKRI - BBSRC,01/12/2021,T&S UK - Public Transport,Innovation and Skills Group,Unspecified,99086872,227.20,T&S UK - Public Transport
BEIS,UKRI - BBSRC,02/12/2021,Research Institutes - Capital Grants: Minor Works,Rothamsted Research,Rothamsted Research Ltd,99083803,56722.40,Research Institutes - Capital Grants: Minor Works
BEIS,UKRI - BBSRC,02/12/2021,Unspecified,FG - Estates,Powis Hughes Ltd,99086922,2681.59,Legal & Professional Services
BEIS,UKRI - BBSRC,02/12/2021,Unspecified,FG - Estates,Powis Hughes Ltd,99086924,3200.23,Legal & Professional Services
BEIS,UKRI - BBSRC,02/12/2021,Health & Safety (inc. Medicals & Opticians),Science Group,Unspecified,99088262,14.99,Health & Safety (inc. Medicals & Opticians)
BEIS,UKRI - BBSRC,02/12/2021,Health & Safety (inc. Medicals & Opticians),CE - Chief Executive,Unspecified,99088265,14.99,Health & Safety (inc. Medicals & Opticians)
BEIS,UKRI - BBSRC,03/12/2021,T&S UK - Subsistence,CE - CPS,Unspecified,99088762,10.00,T&S UK - Subsistence
BEIS,UKRI - BBSRC,03/12/2021,T&S UK - Parking Tolls Congestion Charges,CE - CPS,Unspecified,99088763,13.50,T&S UK - Parking Tolls Congestion Charges
BEIS,UKRI - BBSRC,03/12/2021,T&S UK - Mileage,CE - CPS,Unspecified,99088764,153.90,T&S UK - Mileage
BEIS,UKRI - BBSRC,03/12/2021,Research Institutes - Competitive Strategic Grant,Rothamsted Research,Rothamsted Research Ltd,99089762,6463.87,Research Institutes - Competitive Strategic Grant
BEIS,UKRI - BBSRC,03/12/2021,Research Institutes - Competitive Strategic Grant,Rothamsted Research,Rothamsted Research Ltd,99089762,27171.64,Research Institutes - Competitive Strategic Grant
BEIS,UKRI - BBSRC,03/12/2021,Research Institutes - Competitive Strategic Grant,Rothamsted Research,Rothamsted Research Ltd,99089762,3757.16,Research Institutes - Competitive Strategic Grant
BEIS,UKRI - BBSRC,03/12/2021,Research Institutes - Competitive Strategic Grant,Rothamsted Research,Rothamsted Research Ltd,99089762,11445.79,Research Institutes - Competitive Strategic Grant
BEIS,UKRI - BBSRC,03/12/2021,Research Institutes - Competitive Strategic Grant,Rothamsted Research,Rothamsted Research Ltd,99089762,411.54,Research Institutes - Competitive Strategic Grant
BEIS,UKRI - BBSRC,06/12/2021,Conferences & Seminars,Science Group,Unspecified,99090025,102.00,Conferences & Seminars
BEIS,UKRI - BBSRC,07/12/2021,Unspecified,FG - Estates,Lambert Smith Hampton Group Ltd T/A Lambert Smith Hampton,99075516,9300.00,Legal & Professional Services
BEIS,UKRI - BBSRC,07/12/2021,T&S UK - Other Charges,Innovation and Skills Group CDSU,Unspecified,99080981,123.98,T&S UK - Other Charges
BEIS,UKRI - BBSRC,07/12/2021,Other Programme Costs,Innovation and Skills Group CDSU,NNFCC Ltd,99081844,7257.60,Other Programme Costs
BEIS,UKRI - BBSRC,07/12/2021,Research Institutes - Capital Grants: Minor Works,Rothamsted Research,Rothamsted Research Ltd,99085565,53245.48,Research Institutes - Capital Grants: Minor Works
BEIS,UKRI - BBSRC,07/12/2021,Unspecified,FG - Estates,CUSHMAN & WAKEFIELD DEBENHAM TIE LEUNG LTD,99088905,30200.84,Legal & Professional Services
BEIS,UKRI - BBSRC,07/12/2021,Fees (Including College Members),Science Group – Admin Function,Unspecified,99089069,170.00,Fees (Including College Members)
BEIS,UKRI - BBSRC,07/12/2021,Fees (Including College Members),Science Group – Admin Function,Unspecified,99089070,170.00,Fees (Including College Members)
BEIS,UKRI - BBSRC,07/12/2021,Fees (Including College Members),Science Group – Admin Function,Unspecified,99089071,170.00,Fees (Including College Members)
BEIS,UKRI - BBSRC,07/12/2021,Fees (Including College Members),Science Group – Admin Function,Unspecified,99089072,170.00,Fees (Including College Members)
BEIS,UKRI - BBSRC,07/12/2021,Fees (Including College Members),Science Group – Admin Function,Unspecified,99089073,170.00,Fees (Including College Members)
BEIS,UKRI - BBSRC,07/12/2021,Fees (Including College Members),Science Group – Admin Function,Unspecified,99089074,170.00,Fees (Including College Members)
BEIS,UKRI - BBSRC,07/12/2021,Fees (Including College Members),Science Group – Admin Function,Unspecified,99089075,170.00,Fees (Including College Members)
BEIS,UKRI - BBSRC,07/12/2021,Fees (Including College Members),Science Group – Admin Function,Unspecified,99089076,170.00,Fees (Including College Members)
BEIS,UKRI - BBSRC,07/12/2021,Fees (Including College Members),Science Group – Admin Function,Unspecified,99089077,170.00,Fees (Including College Members)
BEIS,UKRI - BBSRC,07/12/2021,Fees (Including College Members),Science Group – Admin Function,Unspecified,99089078,170.00,Fees (Including College Members)
BEIS,UKRI - BBSRC,07/12/2021,Fees (Including College Members),Science Group - Delivery Function,Unspecified,99089079,340.00,Fees (Including College Members)
BEIS,UKRI - BBSRC,07/12/2021,Fees (Including College Members),Science Group - Delivery Function,Unspecified,99089080,340.00,Fees (Including College Members)
BEIS,UKRI - BBSRC,07/12/2021,Fees (Including College Members),Science Group - Delivery Function,Unspecified,99089081,340.00,Fees (Including College Members)
BEIS,UKRI - BBSRC,07/12/2021,Fees (Including College Members),Science Group - Delivery Function,Unspecified,99089082,460.00,Fees (Including College Members)
BEIS,UKRI - BBSRC,07/12/2021,Fees (Including College Members),Science Group - Delivery Function,Unspecified,99089083,460.00,Fees (Including College Members)
BEIS,UKRI - BBSRC,07/12/2021,Fees (Including College Members),Science Group - Delivery Function,Unspecified,99089084,340.00,Fees (Including College Members)
BEIS,UKRI - BBSRC,07/12/2021,Research Institutes - Capital Grants: Minor Works,Rothamsted Research,Rothamsted Research Ltd,99093206,-360.00,Research Institutes - Capital Grants: Minor Works
BEIS,UKRI - BBSRC,07/12/2021,T&S UK - Subsistence,CE - IRU,Unspecified,99094007,10.00,T&S UK - Subsistence
BEIS,UKRI - BBSRC,07/12/2021,Health & Safety (inc. Medicals & Opticians),CE - IRU,Unspecified,99094008,14.99,Health & Safety (inc. Medicals & Opticians)
BEIS,UKRI - BBSRC,08/12/2021,Fees (Including College Members),Science Group - Delivery Function,Unspecified,99092779,342.04,Fees (Including College Members)
BEIS,UKRI - BBSRC,08/12/2021,T&S Overseas - Flights,Science Group,Corporate Travel Management (North) Ltd,99094152,7.00,T&S Overseas - Flights
BEIS,UKRI - BBSRC,08/12/2021,T&S Overseas - Flights,Science Group,Corporate Travel Management (North) Ltd,99094152,260.22,T&S Overseas - Flights
BEIS,UKRI - BBSRC,08/12/2021,T&S Overseas - Flights,Science Group – Admin Function,Corporate Travel Management (North) Ltd,99094152,2.50,T&S Overseas - Flights
BEIS,UKRI - BBSRC,08/12/2021,T&S Overseas - Flights,Science Group – Admin Function,Corporate Travel Management (North) Ltd,99094152,1590.57,T&S Overseas - Flights
BEIS,UKRI - BBSRC,08/12/2021,T&S UK - Accommodation,CE - CPS,Corporate Travel Management (North) Ltd,99094152,0.80,T&S UK - Accommodation
BEIS,UKRI - BBSRC,08/12/2021,T&S UK - Accommodation,CE - CPS,Corporate Travel Management (North) Ltd,99094152,0.16,T&S UK - Accommodation
BEIS,UKRI - BBSRC,08/12/2021,T&S UK - Accommodation,CE - Chief Executive,Corporate Travel Management (North) Ltd,99094152,0.80,T&S UK - Accommodation
BEIS,UKRI - BBSRC,08/12/2021,T&S UK - Accommodation,CE - Chief Executive,Corporate Travel Management (North) Ltd,99094152,1.60,T&S UK - Accommodation
BEIS,UKRI - BBSRC,08/12/2021,T&S UK - Accommodation,CE - Chief Executive,Corporate Travel Management (North) Ltd,99094152,135.00,T&S UK - Accommodation
BEIS,UKRI - BBSRC,08/12/2021,T&S UK - Accommodation,CE - Chief Executive,Corporate Travel Management (North) Ltd,99094152,0.48,T&S UK - Accommodation
BEIS,UKRI - BBSRC,08/12/2021,T&S UK - Accommodation,FG - Estates,Corporate Travel Management (North) Ltd,99094152,0.80,T&S UK - Accommodation
BEIS,UKRI - BBSRC,08/12/2021,T&S UK - Accommodation,FG - Estates,Corporate Travel Management (North) Ltd,99094152,111.60,T&S UK - Accommodation
BEIS,UKRI - BBSRC,08/12/2021,T&S UK - Accommodation,FG - Estates,Corporate Travel Management (North) Ltd,99094152,0.16,T&S UK - Accommodation
BEIS,UKRI - BBSRC,08/12/2021,T&S UK - Accommodation,Innovation and Skills Group,Corporate Travel Management (North) Ltd,99094152,0.80,T&S UK - Accommodation
BEIS,UKRI - BBSRC,08/12/2021,T&S UK - Accommodation,Innovation and Skills Group,Corporate Travel Management (North) Ltd,99094152,86.25,T&S UK - Accommodation
BEIS,UKRI - BBSRC,08/12/2021,T&S UK - Accommodation,Innovation and Skills Group,Corporate Travel Management (North) Ltd,99094152,0.16,T&S UK - Accommodation
BEIS,UKRI - BBSRC,08/12/2021,T&S UK - Accommodation,Science Group,Corporate Travel Management (North) Ltd,99094152,2.00,T&S UK - Accommodation
BEIS,UKRI - BBSRC,08/12/2021,T&S UK - Accommodation,Science Group,Corporate Travel Management (North) Ltd,99094152,0.80,T&S UK - Accommodation
BEIS,UKRI - BBSRC,08/12/2021,T&S UK - Accommodation,Science Group,Corporate Travel Management (North) Ltd,99094152,0.80,T&S UK - Accommodation
BEIS,UKRI - BBSRC,08/12/2021,T&S UK - Accommodation,Science Group,Corporate Travel Management (North) Ltd,99094152,208.00,T&S UK - Accommodation
BEIS,UKRI - BBSRC,08/12/2021,T&S UK - Accommodation,Science Group,Corporate Travel Management (North) Ltd,99094152,0.80,T&S UK - Accommodation
BEIS,UKRI - BBSRC,08/12/2021,T&S UK - Accommodation,Science Group,Corporate Travel Management (North) Ltd,99094152,99.00,T&S UK - Accommodation
BEIS,UKRI - BBSRC,08/12/2021,T&S UK - Accommodation,Science Group,Corporate Travel Management (North) Ltd,99094152,0.16,T&S UK - Accommodation
BEIS,UKRI - BBSRC,08/12/2021,T&S UK - Accommodation,Science Group,Corporate Travel Management (North) Ltd,99094152,0.72,T&S UK - Accommodation
BEIS,UKRI - BBSRC,08/12/2021,T&S UK - Accommodation,Science Group – Admin Function,Corporate Travel Management (North) Ltd,99094152,0.80,T&S UK - Accommodation
BEIS,UKRI - BBSRC,08/12/2021,T&S UK - Accommodation,Science Group – Admin Function,Corporate Travel Management (North) Ltd,99094152,75.94,T&S UK - Accommodation
BEIS,UKRI - BBSRC,08/12/2021,T&S UK - Accommodation,Science Group – Admin Function,Corporate Travel Management (North) Ltd,99094152,2.00,T&S UK - Accommodation
BEIS,UKRI - BBSRC,08/12/2021,T&S UK - Accommodation,Science Group – Admin Function,Corporate Travel Management (North) Ltd,99094152,63.50,T&S UK - Accommodation
BEIS,UKRI - BBSRC,08/12/2021,T&S UK - Accommodation,Science Group – Admin Function,Corporate Travel Management (North) Ltd,99094152,0.56,T&S UK - Accommodation
BEIS,UKRI - BBSRC,08/12/2021,T&S UK - Flights,Science Group,Corporate Travel Management (North) Ltd,99094152,2.50,T&S UK - Flights
BEIS,UKRI - BBSRC,08/12/2021,T&S UK - Flights,Science Group,Corporate Travel Management (North) Ltd,99094152,102.98,T&S UK - Flights
BEIS,UKRI - BBSRC,08/12/2021,T&S UK - Public Transport,CE - CPS,Corporate Travel Management (North) Ltd,99094152,0.25,T&S UK - Public Transport
BEIS,UKRI - BBSRC,08/12/2021,T&S UK - Public Transport,CE - CPS,Corporate Travel Management (North) Ltd,99094152,142.10,T&S UK - Public Transport
BEIS,UKRI - BBSRC,08/12/2021,T&S UK - Public Transport,CE - Chief Executive,Corporate Travel Management (North) Ltd,99094152,0.50,T&S UK - Public Transport
BEIS,UKRI - BBSRC,08/12/2021,T&S UK - Public Transport,CE - Chief Executive,Corporate Travel Management (North) Ltd,99094152,33.40,T&S UK - Public Transport
BEIS,UKRI - BBSRC,08/12/2021,T&S UK - Public Transport,CE - Chief Executive,Corporate Travel Management (North) Ltd,99094152,71.70,T&S UK - Public Transport
BEIS,UKRI - BBSRC,08/12/2021,T&S UK - Public Transport,CE - Chief Executive,Corporate Travel Management (North) Ltd,99094152,0.25,T&S UK - Public Transport
BEIS,UKRI - BBSRC,08/12/2021,T&S UK - Public Transport,CE - Chief Executive,Corporate Travel Management (North) Ltd,99094152,46.20,T&S UK - Public Transport
BEIS,UKRI - BBSRC,08/12/2021,T&S UK - Public Transport,CE - Chief Executive,Corporate Travel Management (North) Ltd,99094152,0.25,T&S UK - Public Transport
BEIS,UKRI - BBSRC,08/12/2021,T&S UK - Public Transport,CE - Chief Executive,Corporate Travel Management (North) Ltd,99094152,33.40,T&S UK - Public Transport
BEIS,UKRI - BBSRC,08/12/2021,T&S UK - Public Transport,CE - Chief Executive,Corporate Travel Management (North) Ltd,99094152,2.60,T&S UK - Public Transport
BEIS,UKRI - BBSRC,08/12/2021,T&S UK - Public Transport,CE - Chief Executive,Corporate Travel Management (North) Ltd,99094152,79.60,T&S UK - Public Transport
BEIS,UKRI - BBSRC,08/12/2021,T&S UK - Public Transport,CE - IRU,Corporate Travel Management (North) Ltd,99094152,0.25,T&S UK - Public Transport
BEIS,UKRI - BBSRC,08/12/2021,T&S UK - Public Transport,CE - IRU,Corporate Travel Management (North) Ltd,99094152,33.80,T&S UK - Public Transport
BEIS,UKRI - BBSRC,08/12/2021,T&S UK - Public Transport,CE - IRU,Corporate Travel Management (North) Ltd,99094152,0.50,T&S UK - Public Transport
BEIS,UKRI - BBSRC,08/12/2021,T&S UK - Public Transport,CE - IRU,Corporate Travel Management (North) Ltd,99094152,158.40,T&S UK - Public Transport
BEIS,UKRI - BBSRC,08/12/2021,T&S UK - Public Transport,CIMG - Director,Corporate Travel Management (North) Ltd,99094152,0.25,T&S UK - Public Transport
BEIS,UKRI - BBSRC,08/12/2021,T&S UK - Public Transport,CIMG - Director,Corporate Travel Management (North) Ltd,99094152,108.60,T&S UK - Public Transport
BEIS,UKRI - BBSRC,08/12/2021,T&S UK - Public Transport,Innovation and Skills Group,Corporate Travel Management (North) Ltd,99094152,0.25,T&S UK - Public Transport
BEIS,UKRI - BBSRC,08/12/2021,T&S UK - Public Transport,Innovation and Skills Group,Corporate Travel Management (North) Ltd,99094152,186.80,T&S UK - Public Transport
BEIS,UKRI - BBSRC,08/12/2021,T&S UK - Public Transport,Innovation and Skills Group,Corporate Travel Management (North) Ltd,99094152,0.25,T&S UK - Public Transport
BEIS,UKRI - BBSRC,08/12/2021,T&S UK - Public Transport,Innovation and Skills Group,Corporate Travel Management (North) Ltd,99094152,100.70,T&S UK - Public Transport
BEIS,UKRI - BBSRC,08/12/2021,T&S UK - Public Transport,Innovation and Skills Group,Corporate Travel Management (North) Ltd,99094152,0.25,T&S UK - Public Transport
BEIS,UKRI - BBSRC,08/12/2021,T&S UK - Public Transport,Innovation and Skills Group,Corporate Travel Management (North) Ltd,99094152,77.30,T&S UK - Public Transport
BEIS,UKRI - BBSRC,08/12/2021,T&S UK - Public Transport,Innovation and Skills Group,Corporate Travel Management (North) Ltd,99094152,0.25,T&S UK - Public Transport
BEIS,UKRI - BBSRC,08/12/2021,T&S UK - Public Transport,Innovation and Skills Group,Corporate Travel Management (North) Ltd,99094152,75.30,T&S UK - Public Transport
BEIS,UKRI - BBSRC,08/12/2021,T&S UK - Public Transport,Innovation and Skills Group,Corporate Travel Management (North) Ltd,99094152,0.25,T&S UK - Public Transport
BEIS,UKRI - BBSRC,08/12/2021,T&S UK - Public Transport,Innovation and Skills Group,Corporate Travel Management (North) Ltd,99094152,49.00,T&S UK - Public Transport
BEIS,UKRI - BBSRC,08/12/2021,T&S UK - Public Transport,Science Group,Corporate Travel Management (North) Ltd,99094152,0.25,T&S UK - Public Transport
BEIS,UKRI - BBSRC,08/12/2021,T&S UK - Public Transport,Science Group,Corporate Travel Management (North) Ltd,99094152,151.60,T&S UK - Public Transport
BEIS,UKRI - BBSRC,08/12/2021,T&S UK - Public Transport,Science Group,Corporate Travel Management (North) Ltd,99094152,0.25,T&S UK - Public Transport
BEIS,UKRI - BBSRC,08/12/2021,T&S UK - Public Transport,Science Group,Corporate Travel Management (North) Ltd,99094152,135.80,T&S UK - Public Transport
BEIS,UKRI - BBSRC,08/12/2021,T&S UK - Public Transport,Science Group,Corporate Travel Management (North) Ltd,99094152,0.25,T&S UK - Public Transport
BEIS,UKRI - BBSRC,08/12/2021,T&S UK - Public Transport,Science Group,Corporate Travel Management (North) Ltd,99094152,3.40,T&S UK - Public Transport
BEIS,UKRI - BBSRC,08/12/2021,T&S UK - Public Transport,Science Group,Corporate Travel Management (North) Ltd,99094152,0.25,T&S UK - Public Transport
BEIS,UKRI - BBSRC,08/12/2021,T&S UK - Public Transport,Science Group,Corporate Travel Management (North) Ltd,99094152,149.20,T&S UK - Public Transport
BEIS,UKRI - BBSRC,08/12/2021,T&S UK - Public Transport,Science Group,Corporate Travel Management (North) Ltd,99094152,0.25,T&S UK - Public Transport
BEIS,UKRI - BBSRC,08/12/2021,T&S UK - Public Transport,Science Group,Corporate Travel Management (North) Ltd,99094152,361.65,T&S UK - Public Transport
BEIS,UKRI - BBSRC,08/12/2021,T&S UK - Public Transport,Science Group,Corporate Travel Management (North) Ltd,99094152,0.50,T&S UK - Public Transport
BEIS,UKRI - BBSRC,08/12/2021,T&S UK - Public Transport,Science Group,Corporate Travel Management (North) Ltd,99094152,447.40,T&S UK - Public Transport
BEIS,UKRI - BBSRC,08/12/2021,T&S UK - Public Transport,Science Group,Corporate Travel Management (North) Ltd,99094152,0.25,T&S UK - Public Transport
BEIS,UKRI - BBSRC,08/12/2021,T&S UK - Public Transport,Science Group,Corporate Travel Management (North) Ltd,99094152,165.20,T&S UK - Public Transport
BEIS,UKRI - BBSRC,08/12/2021,T&S UK - Public Transport,Science Group,Corporate Travel Management (North) Ltd,99094152,0.25,T&S UK - Public Transport
BEIS,UKRI - BBSRC,08/12/2021,T&S UK - Public Transport,Science Group,Corporate Travel Management (North) Ltd,99094152,35.90,T&S UK - Public Transport
BEIS,UKRI - BBSRC,08/12/2021,T&S UK - Public Transport,Science Group,Corporate Travel Management (North) Ltd,99094152,0.50,T&S UK - Public Transport
BEIS,UKRI - BBSRC,08/12/2021,T&S UK - Public Transport,Science Group,Corporate Travel Management (North) Ltd,99094152,66.50,T&S UK - Public Transport
BEIS,UKRI - BBSRC,08/12/2021,T&S UK - Public Transport,Science Group,Corporate Travel Management (North) Ltd,99094152,28.50,T&S UK - Public Transport
BEIS,UKRI - BBSRC,08/12/2021,T&S UK - Public Transport,Science Group,Corporate Travel Management (North) Ltd,99094152,0.25,T&S UK - Public Transport
BEIS,UKRI - BBSRC,08/12/2021,T&S UK - Public Transport,Science Group,Corporate Travel Management (North) Ltd,99094152,50.30,T&S UK - Public Transport
BEIS,UKRI - BBSRC,08/12/2021,T&S UK - Public Transport,Science Group,Corporate Travel Management (North) Ltd,99094152,0.25,T&S UK - Public Transport
BEIS,UKRI - BBSRC,08/12/2021,T&S UK - Public Transport,Science Group,Corporate Travel Management (North) Ltd,99094152,58.10,T&S UK - Public Transport
BEIS,UKRI - BBSRC,08/12/2021,T&S UK - Public Transport,Science Group,Corporate Travel Management (North) Ltd,99094152,0.25,T&S UK - Public Transport
BEIS,UKRI - BBSRC,08/12/2021,T&S UK - Public Transport,Science Group,Corporate Travel Management (North) Ltd,99094152,64.80,T&S UK - Public Transport
BEIS,UKRI - BBSRC,08/12/2021,T&S UK - Public Transport,Science Group,Corporate Travel Management (North) Ltd,99094152,0.25,T&S UK - Public Transport
BEIS,UKRI - BBSRC,08/12/2021,T&S UK - Public Transport,Science Group,Corporate Travel Management (North) Ltd,99094152,142.30,T&S UK - Public Transport
BEIS,UKRI - BBSRC,08/12/2021,T&S UK - Public Transport,Science Group,Corporate Travel Management (North) Ltd,99094152,0.25,T&S UK - Public Transport
BEIS,UKRI - BBSRC,08/12/2021,T&S UK - Public Transport,Science Group,Corporate Travel Management (North) Ltd,99094152,41.20,T&S UK - Public Transport
BEIS,UKRI - BBSRC,08/12/2021,T&S UK - Public Transport,Science Group,Corporate Travel Management (North) Ltd,99094152,0.25,T&S UK - Public Transport
BEIS,UKRI - BBSRC,08/12/2021,T&S UK - Public Transport,Science Group,Corporate Travel Management (North) Ltd,99094152,123.40,T&S UK - Public Transport
BEIS,UKRI - BBSRC,08/12/2021,T&S UK - Public Transport,Science Group,Corporate Travel Management (North) Ltd,99094152,0.25,T&S UK - Public Transport
BEIS,UKRI - BBSRC,08/12/2021,T&S UK - Public Transport,Science Group,Corporate Travel Management (North) Ltd,99094152,158.30,T&S UK - Public Transport
BEIS,UKRI - BBSRC,08/12/2021,T&S UK - Public Transport,Science Group – Admin Function,Corporate Travel Management (North) Ltd,99094152,5.00,T&S UK - Public Transport
BEIS,UKRI - BBSRC,08/12/2021,T&S UK - Public Transport,Science Group – Admin Function,Corporate Travel Management (North) Ltd,99094152,-21.60,T&S UK - Public Transport
BEIS,UKRI - BBSRC,08/12/2021,T&S UK - Public Transport,Science Group – Admin Function,Corporate Travel Management (North) Ltd,99094152,0.25,T&S UK - Public Transport
BEIS,UKRI - BBSRC,08/12/2021,T&S UK - Public Transport,Science Group – Admin Function,Corporate Travel Management (North) Ltd,99094152,26.60,T&S UK - Public Transport
BEIS,UKRI - BBSRC,08/12/2021,T&S UK - Public Transport,Science Group – Admin Function,Corporate Travel Management (North) Ltd,99094152,0.25,T&S UK - Public Transport
BEIS,UKRI - BBSRC,08/12/2021,T&S UK - Public Transport,Science Group – Admin Function,Corporate Travel Management (North) Ltd,99094152,189.60,T&S UK - Public Transport
BEIS,UKRI - BBSRC,08/12/2021,Fees (Including College Members),Innovation and Skills Group CDSU,Unspecified,99094154,340.00,Fees (Including College Members)
BEIS,UKRI - BBSRC,08/12/2021,Unspecified,FG - Estates,CKD Galbraith LLP T/A Galbraith,99095251,210.00,Legal & Professional Services
BEIS,UKRI - BBSRC,08/12/2021,Unspecified,FG - Estates,Womble Bond Dickinson LLP,99095442,168.84,Legal & Professional Services
BEIS,UKRI - BBSRC,08/12/2021,Fees (Including College Members),Science Group - Delivery Function,Unspecified,99097153,340.00,Fees (Including College Members)
BEIS,UKRI - BBSRC,08/12/2021,Fees (Including College Members),Science Group - Delivery Function,Unspecified,99097154,340.00,Fees (Including College Members)
BEIS,UKRI - BBSRC,08/12/2021,Fees (Including College Members),Science Group - Delivery Function,Unspecified,99097169,171.10,Fees (Including College Members)
BEIS,UKRI - BBSRC,09/12/2021,Health & Safety (inc. Medicals & Opticians),CE - CPS,Unspecified,99086553,14.99,Health & Safety (inc. Medicals & Opticians)
BEIS,UKRI - BBSRC,09/12/2021,Research Institutes - Capital Grants: Minor Works,Rothamsted Research,Rothamsted Research Ltd,99095809,3172.96,Research Institutes - Capital Grants: Minor Works
BEIS,UKRI - BBSRC,09/12/2021,Research Grant Expenditure,SPF W1 EMBL EBI,EMBL (European Molecular Biology Laboratory),99095813,268942.13,Research Grant Expenditure
BEIS,UKRI - BBSRC,09/12/2021,Research Institutes - Capital Grants: Minor Works,Pirbright,The Pirbright Institute,99097925,44316.12,Research Institutes - Capital Grants: Minor Works
BEIS,UKRI - BBSRC,09/12/2021,Research Institutes - Capital Grants: Minor Works,Pirbright,The Pirbright Institute,99097926,198.00,Research Institutes - Capital Grants: Minor Works
BEIS,UKRI - BBSRC,09/12/2021,Research Institutes - Capital Grants: Minor Works,Pirbright,The Pirbright Institute,99097934,6910.76,Research Institutes - Capital Grants: Minor Works
BEIS,UKRI - BBSRC,09/12/2021,Research Institutes - Capital Grants: Minor Works,Rothamsted Research,Rothamsted Research Ltd,99097935,2556.00,Research Institutes - Capital Grants: Minor Works
BEIS,UKRI - BBSRC,10/12/2021,Research Grant Expenditure,FG - Accounts & Business Planning,University of York,99087373,274999.99,Research Grant Expenditure
BEIS,UKRI - BBSRC,10/12/2021,Research Grant Expenditure,FG - Accounts & Business Planning,University of Stirling,99087374,118999.99,Research Grant Expenditure
BEIS,UKRI - BBSRC,10/12/2021,Research Grant Expenditure,FG - Accounts & Business Planning,John Innes Centre,99087375,321499.99,Research Grant Expenditure
BEIS,UKRI - BBSRC,10/12/2021,Research Grant Expenditure,FG - Accounts & Business Planning,University of Edinburgh,99087376,211999.99,Research Grant Expenditure
BEIS,UKRI - BBSRC,10/12/2021,Research Grant Expenditure,FG - Accounts & Business Planning,University of Glasgow,99087377,112999.99,Research Grant Expenditure
BEIS,UKRI - BBSRC,10/12/2021,Research Grant Expenditure,FG - Accounts & Business Planning,University of Aberdeen,99087378,126499.99,Research Grant Expenditure
BEIS,UKRI - BBSRC,10/12/2021,Research Grant Expenditure,FG - Accounts & Business Planning,University of Nottingham,99087379,169500.00,Research Grant Expenditure
BEIS,UKRI - BBSRC,10/12/2021,Research Grant Expenditure,FG - Accounts & Business Planning,Rothamsted Research Ltd,99087380,462000.00,Research Grant Expenditure
BEIS,UKRI - BBSRC,10/12/2021,Research Grant Expenditure,FG - Accounts & Business Planning,Imperial College London,99087381,40538.20,Research Grant Expenditure
BEIS,UKRI - BBSRC,10/12/2021,Research Grant Expenditure,FG - Accounts & Business Planning,University of Edinburgh,99087382,32851.16,Research Grant Expenditure
BEIS,UKRI - BBSRC,10/12/2021,Research Grant Expenditure,FG - Accounts & Business Planning,University of Edinburgh,99087382,26167.09,Research Grant Expenditure
BEIS,UKRI - BBSRC,10/12/2021,Research Grant Expenditure,FG - Accounts & Business Planning,University of Nottingham,99087384,14571.60,Research Grant Expenditure
BEIS,UKRI - BBSRC,10/12/2021,Research Grant Expenditure,FG - Accounts & Business Planning,University College London,99087385,29206.92,Research Grant Expenditure
BEIS,UKRI - BBSRC,10/12/2021,Research Grant Expenditure,FG - Accounts & Business Planning,University of Cambridge,99087386,132620.43,Research Grant Expenditure
BEIS,UKRI - BBSRC,10/12/2021,Research Grant Expenditure,FG - Accounts & Business Planning,University of Cambridge,99087386,132620.42,Research Grant Expenditure
BEIS,UKRI - BBSRC,10/12/2021,Research Grant Expenditure,FG - Accounts & Business Planning,University of Bristol GRANT,99087387,46916.41,Research Grant Expenditure
BEIS,UKRI - BBSRC,10/12/2021,Research Grant Expenditure,FG - Accounts & Business Planning,University of Bristol GRANT,99087388,67005.46,Research Grant Expenditure
BEIS,UKRI - BBSRC,10/12/2021,Research Grant Expenditure,FG - Accounts & Business Planning,University of Leeds,99087389,41284.40,Research Grant Expenditure
BEIS,UKRI - BBSRC,10/12/2021,Research Grant Expenditure,FG - Accounts & Business Planning,University of Dundee,99087390,83630.76,Research Grant Expenditure
BEIS,UKRI - BBSRC,10/12/2021,Research Grant Expenditure,FG - Accounts & Business Planning,University of Glasgow,99087391,51656.25,Research Grant Expenditure
BEIS,UKRI - BBSRC,10/12/2021,Research Grant Expenditure,FG - Accounts & Business Planning,University of Aberdeen,99087392,21657.99,Research Grant Expenditure
BEIS,UKRI - BBSRC,10/12/2021,Research Grant Expenditure,FG - Accounts & Business Planning,University of Edinburgh,99087393,36131.88,Research Grant Expenditure
BEIS,UKRI - BBSRC,10/12/2021,Research Grant Expenditure,FG - Accounts & Business Planning,University of Oxford,99087394,9961.71,Research Grant Expenditure
BEIS,UKRI - BBSRC,10/12/2021,Research Grant Expenditure,FG - Accounts & Business Planning,University of Southampton GRANT,99087395,25387.65,Research Grant Expenditure
BEIS,UKRI - BBSRC,10/12/2021,Capital Grants & Equipment to HEIs,FG - Accounts & Business Planning,University of Dundee,99087396,101587.25,Capital Grants & Equipment to HEIs
BEIS,UKRI - BBSRC,10/12/2021,Capital Grants & Equipment to HEIs,FG - Accounts & Business Planning,University of Leeds,99087397,57000.50,Capital Grants & Equipment to HEIs
BEIS,UKRI - BBSRC,10/12/2021,Capital Grants & Equipment to HEIs,FG - Accounts & Business Planning,University of Oxford,99087398,165527.50,Capital Grants & Equipment to HEIs
BEIS,UKRI - BBSRC,10/12/2021,Capital Grants & Equipment to HEIs,FG - Accounts & Business Planning,University of Oxford,99087398,165527.50,Capital Grants & Equipment to HEIs
BEIS,UKRI - BBSRC,10/12/2021,Research Grant Expenditure,FG - Accounts & Business Planning,University of Oxford,99087398,0.19,Research Grant Expenditure
BEIS,UKRI - BBSRC,10/12/2021,Research Grant Expenditure,FG - Accounts & Business Planning,University of Oxford,99087398,0.20,Research Grant Expenditure
BEIS,UKRI - BBSRC,10/12/2021,Capital Grants & Equipment to HEIs,FG - Accounts & Business Planning,University of Leicester,99087399,172726.81,Capital Grants & Equipment to HEIs
BEIS,UKRI - BBSRC,10/12/2021,Capital Grants & Equipment to HEIs,FG - Accounts & Business Planning,University of Leicester,99087399,172726.80,Capital Grants & Equipment to HEIs
BEIS,UKRI - BBSRC,10/12/2021,Research Grant Expenditure,FG - Accounts & Business Planning,University of Leicester,99087399,0.02,Research Grant Expenditure
BEIS,UKRI - BBSRC,10/12/2021,Capital Grants & Equipment to HEIs,FG - Accounts & Business Planning,University of Nottingham,99087400,193420.54,Capital Grants & Equipment to HEIs
BEIS,UKRI - BBSRC,10/12/2021,Capital Grants & Equipment to HEIs,FG - Accounts & Business Planning,University of Sheffield,99087401,102807.25,Capital Grants & Equipment to HEIs
BEIS,UKRI - BBSRC,10/12/2021,Capital Grants & Equipment to HEIs,FG - Accounts & Business Planning,SRUC,99087402,56030.39,Capital Grants & Equipment to HEIs
BEIS,UKRI - BBSRC,10/12/2021,Capital Grants & Equipment to HEIs,FG - Accounts & Business Planning,The University of Manchester,99087403,84840.00,Capital Grants & Equipment to HEIs
BEIS,UKRI - BBSRC,10/12/2021,Capital Grants & Equipment to HEIs,FG - Accounts & Business Planning,The University of Manchester,99087403,84840.00,Capital Grants & Equipment to HEIs
BEIS,UKRI - BBSRC,10/12/2021,Capital Grants & Equipment to HEIs,FG - Accounts & Business Planning,University of Edinburgh,99087404,187258.20,Capital Grants & Equipment to HEIs
BEIS,UKRI - BBSRC,10/12/2021,Capital Grants & Equipment to HEIs,FG - Accounts & Business Planning,University of Edinburgh,99087404,187258.20,Capital Grants & Equipment to HEIs
BEIS,UKRI - BBSRC,10/12/2021,Capital Grants & Equipment to HEIs,FG - Accounts & Business Planning,The Pirbright Institute,99087405,108609.00,Capital Grants & Equipment to HEIs
BEIS,UKRI - BBSRC,10/12/2021,Research Grant Expenditure,FG - Accounts & Business Planning,University of Edinburgh,99087406,43346.93,Research Grant Expenditure
BEIS,UKRI - BBSRC,10/12/2021,Research Grant Expenditure,FG - Accounts & Business Planning,The James Hutton Institute,99087407,1890.19,Research Grant Expenditure
BEIS,UKRI - BBSRC,10/12/2021,Research Grant Expenditure,FG - Accounts & Business Planning,University of Sheffield,99087408,16662.16,Research Grant Expenditure
BEIS,UKRI - BBSRC,10/12/2021,Research Grant Expenditure,FG - Accounts & Business Planning,The Rosalind Franklin Institute,99087409,80630.59,Research Grant Expenditure
BEIS,UKRI - BBSRC,10/12/2021,Research Grant Expenditure,FG - Accounts & Business Planning,University of Nottingham,99087410,20636.78,Research Grant Expenditure
BEIS,UKRI - BBSRC,10/12/2021,Research Grant Expenditure,FG - Accounts & Business Planning,Queen Mary University of London,99087411,1973.35,Research Grant Expenditure
BEIS,UKRI - BBSRC,10/12/2021,Research Grant Expenditure,FG - Accounts & Business Planning,Queen Mary University of London,99087411,1973.35,Research Grant Expenditure
BEIS,UKRI - BBSRC,10/12/2021,Research Grant Expenditure,FG - Accounts & Business Planning,University of Exeter,99087412,3095.81,Research Grant Expenditure
BEIS,UKRI - BBSRC,10/12/2021,Research Grant Expenditure,FG - Accounts & Business Planning,University of Nottingham,99087413,3118.81,Research Grant Expenditure
BEIS,UKRI - BBSRC,10/12/2021,Research Grant Expenditure,FG - Accounts & Business Planning,University of Nottingham,99087413,3118.81,Research Grant Expenditure
BEIS,UKRI - BBSRC,10/12/2021,Research Grant Expenditure,FG - Accounts & Business Planning,Cardiff University,99087414,3150.31,Research Grant Expenditure
BEIS,UKRI - BBSRC,10/12/2021,Research Grant Expenditure,FG - Accounts & Business Planning,University College London,99087415,2031.32,Research Grant Expenditure
BEIS,UKRI - BBSRC,10/12/2021,Research Grant Expenditure,FG - Accounts & Business Planning,University of Cambridge,99087416,39135.10,Research Grant Expenditure
BEIS,UKRI - BBSRC,10/12/2021,Research Grant Expenditure,FG - Accounts & Business Planning,University of Newcastle Upon Tyne,99087417,32728.55,Research Grant Expenditure
BEIS,UKRI - BBSRC,10/12/2021,Research Grant Expenditure,FG - Accounts & Business Planning,University of Newcastle Upon Tyne,99087418,36782.94,Research Grant Expenditure
BEIS,UKRI - BBSRC,10/12/2021,Research Grant Expenditure,FG - Accounts & Business Planning,"Royal Holloway, University of London",99087419,24515.38,Research Grant Expenditure
BEIS,UKRI - BBSRC,10/12/2021,Research Grant Expenditure,FG - Accounts & Business Planning,University of Edinburgh,99087420,32756.03,Research Grant Expenditure
BEIS,UKRI - BBSRC,10/12/2021,Research Grant Expenditure,FG - Accounts & Business Planning,John Innes Centre,99087421,51001.99,Research Grant Expenditure
BEIS,UKRI - BBSRC,10/12/2021,Research Grant Expenditure,FG - Accounts & Business Planning,University of Portsmouth,99087422,79549.87,Research Grant Expenditure
BEIS,UKRI - BBSRC,10/12/2021,Capital Grants & Equipment to HEIs,FG - Accounts & Business Planning,University of Exeter,99087423,1875.00,Capital Grants & Equipment to HEIs
BEIS,UKRI - BBSRC,10/12/2021,Research Grant Expenditure,FG - Accounts & Business Planning,University of Exeter,99087423,44578.64,Research Grant Expenditure
BEIS,UKRI - BBSRC,10/12/2021,Research Grant Expenditure,FG - Accounts & Business Planning,University of Edinburgh,99087424,31809.90,Research Grant Expenditure
BEIS,UKRI - BBSRC,10/12/2021,Research Grant Expenditure,FG - Accounts & Business Planning,University of Edinburgh,99087424,31809.90,Research Grant Expenditure
BEIS,UKRI - BBSRC,10/12/2021,Research Grant Expenditure,FG - Accounts & Business Planning,University of Nottingham,99087425,29466.05,Research Grant Expenditure
BEIS,UKRI - BBSRC,10/12/2021,Capital Grants & Equipment to HEIs,FG - Accounts & Business Planning,University of Glasgow,99087426,6689.75,Capital Grants & Equipment to HEIs
BEIS,UKRI - BBSRC,10/12/2021,Research Grant Expenditure,FG - Accounts & Business Planning,University of Glasgow,99087426,26266.81,Research Grant Expenditure
BEIS,UKRI - BBSRC,10/12/2021,Research Grant Expenditure,FG - Accounts & Business Planning,John Innes Centre,99087427,45032.11,Research Grant Expenditure
BEIS,UKRI - BBSRC,10/12/2021,Research Grant Expenditure,FG - Accounts & Business Planning,University of Aberdeen,99087428,40285.30,Research Grant Expenditure
BEIS,UKRI - BBSRC,10/12/2021,Research Grant Expenditure,FG - Accounts & Business Planning,The University of Manchester,99087429,42713.65,Research Grant Expenditure
BEIS,UKRI - BBSRC,10/12/2021,Research Grant Expenditure,FG - Accounts & Business Planning,The University of Manchester,99087429,42713.61,Research Grant Expenditure
BEIS,UKRI - BBSRC,10/12/2021,Research Grant Expenditure,FG - Accounts & Business Planning,Lancaster University,99087430,44779.18,Research Grant Expenditure
BEIS,UKRI - BBSRC,10/12/2021,Research Grant Expenditure,FG - Accounts & Business Planning,Rothamsted Research Ltd,99087431,22447.60,Research Grant Expenditure
BEIS,UKRI - BBSRC,10/12/2021,Research Grant Expenditure,FG - Accounts & Business Planning,King's College London,99087432,52081.52,Research Grant Expenditure
BEIS,UKRI - BBSRC,10/12/2021,Research Grant Expenditure,FG - Accounts & Business Planning,John Innes Centre,99087433,46671.31,Research Grant Expenditure
BEIS,UKRI - BBSRC,10/12/2021,Research Grant Expenditure,FG - Accounts & Business Planning,University of Bristol GRANT,99087434,51487.58,Research Grant Expenditure
BEIS,UKRI - BBSRC,10/12/2021,Research Grant Expenditure,FG - Accounts & Business Planning,University of Cambridge,99087435,40687.92,Research Grant Expenditure
BEIS,UKRI - BBSRC,10/12/2021,Research Grant Expenditure,FG - Accounts & Business Planning,University of Leicester,99087436,52704.77,Research Grant Expenditure
BEIS,UKRI - BBSRC,10/12/2021,Research Grant Expenditure,FG - Accounts & Business Planning,University of Cambridge,99087437,44238.34,Research Grant Expenditure
BEIS,UKRI - BBSRC,10/12/2021,Research Grant Expenditure,FG - Accounts & Business Planning,University of East Anglia,99087438,1654.57,Research Grant Expenditure
BEIS,UKRI - BBSRC,10/12/2021,Research Grant Expenditure,FG - Accounts & Business Planning,The University of Manchester,99087439,40047.26,Research Grant Expenditure
BEIS,UKRI - BBSRC,10/12/2021,Research Grant Expenditure,FG - Accounts & Business Planning,The University of Manchester,99087439,40047.28,Research Grant Expenditure
BEIS,UKRI - BBSRC,10/12/2021,Research Grant Expenditure,FG - Accounts & Business Planning,Imperial College London,99087440,42077.69,Research Grant Expenditure
BEIS,UKRI - BBSRC,10/12/2021,Capital Grants & Equipment to HEIs,FG - Accounts & Business Planning,University of Cambridge,99087441,2743.00,Capital Grants & Equipment to HEIs
BEIS,UKRI - BBSRC,10/12/2021,Research Grant Expenditure,FG - Accounts & Business Planning,University of Cambridge,99087441,43006.32,Research Grant Expenditure
BEIS,UKRI - BBSRC,10/12/2021,Research Grant Expenditure,FG - Accounts & Business Planning,Imperial College London,99087442,50966.62,Research Grant Expenditure
BEIS,UKRI - BBSRC,10/12/2021,Research Grant Expenditure,FG - Accounts & Business Planning,University of Bristol GRANT,99087443,36834.04,Research Grant Expenditure
BEIS,UKRI - BBSRC,10/12/2021,Research Grant Expenditure,FG - Accounts & Business Planning,University of Bristol GRANT,99087443,36834.07,Research Grant Expenditure
BEIS,UKRI - BBSRC,10/12/2021,Research Grant Expenditure,FG - Accounts & Business Planning,University of the West of England,99087444,36061.21,Research Grant Expenditure
BEIS,UKRI - BBSRC,10/12/2021,Research Grant Expenditure,FG - Accounts & Business Planning,Manchester Metropolitan University,99087445,38831.35,Research Grant Expenditure
BEIS,UKRI - BBSRC,10/12/2021,Research Grant Expenditure,FG - Accounts & Business Planning,Manchester Metropolitan University,99087445,38831.37,Research Grant Expenditure
BEIS,UKRI - BBSRC,10/12/2021,Research Grant Expenditure,FG - Accounts & Business Planning,University of York,99087446,25011.44,Research Grant Expenditure
BEIS,UKRI - BBSRC,10/12/2021,Research Grant Expenditure,FG - Accounts & Business Planning,The University of Manchester,99087447,46293.34,Research Grant Expenditure
BEIS,UKRI - BBSRC,10/12/2021,Research Grant Expenditure,FG - Accounts & Business Planning,University of Nottingham,99087448,246939.39,Research Grant Expenditure
BEIS,UKRI - BBSRC,10/12/2021,Research Grant Expenditure,FG - Accounts & Business Planning,University of Exeter,99087449,243537.37,Research Grant Expenditure
BEIS,UKRI - BBSRC,10/12/2021,Capital Grants & Equipment to HEIs,FG - Accounts & Business Planning,UK Centre for Ecology and Hydrology (UKCEH),99087450,54159.10,Capital Grants & Equipment to HEIs
BEIS,UKRI - BBSRC,10/12/2021,Research Grant Expenditure,FG - Accounts & Business Planning,UK Centre for Ecology and Hydrology (UKCEH),99087450,237118.54,Research Grant Expenditure
BEIS,UKRI - BBSRC,10/12/2021,Capital Grants & Equipment to HEIs,FG - Accounts & Business Planning,Aberystwyth University,99087451,32316.13,Capital Grants & Equipment to HEIs
BEIS,UKRI - BBSRC,10/12/2021,Research Grant Expenditure,FG - Accounts & Business Planning,Aberystwyth University,99087451,216321.26,Research Grant Expenditure
BEIS,UKRI - BBSRC,10/12/2021,Research Grant Expenditure,FG - Accounts & Business Planning,University of Exeter,99087452,36893.83,Research Grant Expenditure
BEIS,UKRI - BBSRC,10/12/2021,Research Grant Expenditure,FG - Accounts & Business Planning,The University of Manchester,99087453,237730.67,Research Grant Expenditure
BEIS,UKRI - BBSRC,10/12/2021,Research Grant Expenditure,FG - Accounts & Business Planning,European Bioinformatics Institute,99087454,47087.43,Research Grant Expenditure
BEIS,UKRI - BBSRC,10/12/2021,Capital Grants & Equipment to HEIs,FG - Accounts & Business Planning,University of Sheffield,99087455,19794.25,Capital Grants & Equipment to HEIs
BEIS,UKRI - BBSRC,10/12/2021,Research Grant Expenditure,FG - Accounts & Business Planning,University of Sheffield,99087455,229166.58,Research Grant Expenditure
BEIS,UKRI - BBSRC,10/12/2021,Research Grant Expenditure,FG - Accounts & Business Planning,University of Nottingham,99087456,24730.20,Research Grant Expenditure
BEIS,UKRI - BBSRC,10/12/2021,Research Grant Expenditure,FG - Accounts & Business Planning,University of Edinburgh,99087457,87797.60,Research Grant Expenditure
BEIS,UKRI - BBSRC,10/12/2021,Research Grant Expenditure,FG - Accounts & Business Planning,Liverpool School of Tropical Medicine,99087458,35041.89,Research Grant Expenditure
BEIS,UKRI - BBSRC,10/12/2021,Research Grant Expenditure,FG - Accounts & Business Planning,University of Newcastle Upon Tyne,99087459,32756.99,Research Grant Expenditure
BEIS,UKRI - BBSRC,10/12/2021,Research Grant Expenditure,FG - Accounts & Business Planning,University of Kent,99087460,32775.07,Research Grant Expenditure
BEIS,UKRI - BBSRC,10/12/2021,Research Grant Expenditure,FG - Accounts & Business Planning,University of Glasgow,99087461,72581.52,Research Grant Expenditure
BEIS,UKRI - BBSRC,10/12/2021,Research Grant Expenditure,FG - Accounts & Business Planning,The University of Manchester,99087462,56765.30,Research Grant Expenditure
BEIS,UKRI - BBSRC,10/12/2021,Research Grant Expenditure,FG - Accounts & Business Planning,University of Warwick,99087463,48148.32,Research Grant Expenditure
BEIS,UKRI - BBSRC,10/12/2021,Research Grant Expenditure,FG - Accounts & Business Planning,University of Glasgow,99087464,66534.84,Research Grant Expenditure
BEIS,UKRI - BBSRC,10/12/2021,Research Grant Expenditure,FG - Accounts & Business Planning,University of Dundee,99087465,75812.70,Research Grant Expenditure
BEIS,UKRI - BBSRC,10/12/2021,Research Grant Expenditure,FG - Accounts & Business Planning,Quadram Institute Bioscience,99087466,42026.72,Research Grant Expenditure
BEIS,UKRI - BBSRC,10/12/2021,Capital Grants & Equipment to HEIs,FG - Accounts & Business Planning,University of Dundee,99087467,2555.75,Capital Grants & Equipment to HEIs
BEIS,UKRI - BBSRC,10/12/2021,Capital Grants & Equipment to HEIs,FG - Accounts & Business Planning,University of Dundee,99087467,2555.75,Capital Grants & Equipment to HEIs
BEIS,UKRI - BBSRC,10/12/2021,Research Grant Expenditure,FG - Accounts & Business Planning,University of Dundee,99087467,70602.12,Research Grant Expenditure
BEIS,UKRI - BBSRC,10/12/2021,Research Grant Expenditure,FG - Accounts & Business Planning,University of Dundee,99087467,70602.14,Research Grant Expenditure
BEIS,UKRI - BBSRC,10/12/2021,Research Grant Expenditure,FG - Accounts & Business Planning,University of Surrey,99087468,65557.23,Research Grant Expenditure
BEIS,UKRI - BBSRC,10/12/2021,Research Grant Expenditure,FG - Accounts & Business Planning,Aston University,99087469,36421.15,Research Grant Expenditure
BEIS,UKRI - BBSRC,10/12/2021,Research Grant Expenditure,FG - Accounts & Business Planning,University of Aberdeen,99087470,36805.68,Research Grant Expenditure
BEIS,UKRI - BBSRC,10/12/2021,Research Grant Expenditure,FG - Accounts & Business Planning,National Oceanography Centre (NOC),99087471,8049.69,Research Grant Expenditure
BEIS,UKRI - BBSRC,10/12/2021,Research Grant Expenditure,FG - Accounts & Business Planning,University of Strathclyde,99087472,29277.67,Research Grant Expenditure
BEIS,UKRI - BBSRC,10/12/2021,Research Grant Expenditure,FG - Accounts & Business Planning,University of Leeds,99087473,38157.99,Research Grant Expenditure
BEIS,UKRI - BBSRC,10/12/2021,Capital Grants & Equipment to HEIs,FG - Accounts & Business Planning,University of Kent,99087474,5297.25,Capital Grants & Equipment to HEIs
BEIS,UKRI - BBSRC,10/12/2021,Research Grant Expenditure,FG - Accounts & Business Planning,University of Kent,99087474,48944.03,Research Grant Expenditure
BEIS,UKRI - BBSRC,10/12/2021,Research Grant Expenditure,FG - Accounts & Business Planning,University of Liverpool,99087475,11953.43,Research Grant Expenditure
BEIS,UKRI - BBSRC,10/12/2021,Research Grant Expenditure,FG - Accounts & Business Planning,University of Edinburgh,99087476,46240.15,Research Grant Expenditure
BEIS,UKRI - BBSRC,10/12/2021,Research Grant Expenditure,FG - Accounts & Business Planning,University of Stirling,99087477,27861.34,Research Grant Expenditure
BEIS,UKRI - BBSRC,10/12/2021,Research Grant Expenditure,FG - Accounts & Business Planning,University of Stirling,99087477,27861.32,Research Grant Expenditure
BEIS,UKRI - BBSRC,10/12/2021,Research Grant Expenditure,FG - Accounts & Business Planning,University of Oxford,99087478,54072.04,Research Grant Expenditure
BEIS,UKRI - BBSRC,10/12/2021,Research Grant Expenditure,FG - Accounts & Business Planning,University of Edinburgh,99087479,44578.98,Research Grant Expenditure
BEIS,UKRI - BBSRC,10/12/2021,Research Grant Expenditure,FG - Accounts & Business Planning,University of Liverpool,99087480,50180.81,Research Grant Expenditure
BEIS,UKRI - BBSRC,10/12/2021,Research Grant Expenditure,FG - Accounts & Business Planning,Queen Mary University of London,99087481,35822.05,Research Grant Expenditure
BEIS,UKRI - BBSRC,10/12/2021,Research Grant Expenditure,FG - Accounts & Business Planning,Queen Mary University of London,99087481,35822.00,Research Grant Expenditure
BEIS,UKRI - BBSRC,10/12/2021,Research Grant Expenditure,FG - Accounts & Business Planning,University College London,99087482,40304.81,Research Grant Expenditure
BEIS,UKRI - BBSRC,10/12/2021,Research Grant Expenditure,FG - Accounts & Business Planning,University of Glasgow,99087483,41203.18,Research Grant Expenditure
BEIS,UKRI - BBSRC,10/12/2021,Research Grant Expenditure,FG - Accounts & Business Planning,University of Liverpool,99087484,43623.12,Research Grant Expenditure
BEIS,UKRI - BBSRC,10/12/2021,Research Grant Expenditure,FG - Accounts & Business Planning,University of Liverpool,99087484,43623.11,Research Grant Expenditure
BEIS,UKRI - BBSRC,10/12/2021,Research Grant Expenditure,FG - Accounts & Business Planning,John Innes Centre,99087485,46718.71,Research Grant Expenditure
BEIS,UKRI - BBSRC,10/12/2021,Capital Grants & Equipment to HEIs,FG - Accounts & Business Planning,University of Newcastle Upon Tyne,99087486,3189.75,Capital Grants & Equipment to HEIs
BEIS,UKRI - BBSRC,10/12/2021,Research Grant Expenditure,FG - Accounts & Business Planning,University of Newcastle Upon Tyne,99087486,80655.78,Research Grant Expenditure
BEIS,UKRI - BBSRC,10/12/2021,Research Grant Expenditure,FG - Accounts & Business Planning,Imperial College London,99087487,36817.30,Research Grant Expenditure
BEIS,UKRI - BBSRC,10/12/2021,Research Grant Expenditure,FG - Accounts & Business Planning,The Francis Crick Institute,99087488,69904.41,Research Grant Expenditure
BEIS,UKRI - BBSRC,10/12/2021,Research Grant Expenditure,FG - Accounts & Business Planning,Cardiff University,99087489,47399.24,Research Grant Expenditure
BEIS,UKRI - BBSRC,10/12/2021,Research Grant Expenditure,FG - Accounts & Business Planning,John Innes Centre,99087490,57397.29,Research Grant Expenditure
BEIS,UKRI - BBSRC,10/12/2021,Research Grant Expenditure,FG - Accounts & Business Planning,Imperial College London,99087491,36230.57,Research Grant Expenditure
BEIS,UKRI - BBSRC,10/12/2021,Research Grant Expenditure,FG - Accounts & Business Planning,University of Leeds,99087492,35087.99,Research Grant Expenditure
BEIS,UKRI - BBSRC,10/12/2021,Research Grant Expenditure,FG - Accounts & Business Planning,The Pirbright Institute,99087493,35434.79,Research Grant Expenditure
BEIS,UKRI - BBSRC,10/12/2021,Capital Grants & Equipment to HEIs,FG - Accounts & Business Planning,The University of Manchester,99087494,2437.50,Capital Grants & Equipment to HEIs
BEIS,UKRI - BBSRC,10/12/2021,Research Grant Expenditure,FG - Accounts & Business Planning,The University of Manchester,99087494,46237.12,Research Grant Expenditure
BEIS,UKRI - BBSRC,10/12/2021,Research Grant Expenditure,FG - Accounts & Business Planning,University of Sussex,99087495,47070.93,Research Grant Expenditure
BEIS,UKRI - BBSRC,10/12/2021,Research Grant Expenditure,FG - Accounts & Business Planning,University of Durham,99087496,38091.77,Research Grant Expenditure
BEIS,UKRI - BBSRC,10/12/2021,Research Grant Expenditure,FG - Accounts & Business Planning,Queen Mary University of London,99087497,49279.14,Research Grant Expenditure
BEIS,UKRI - BBSRC,10/12/2021,Research Grant Expenditure,FG - Accounts & Business Planning,Queen Mary University of London,99087497,49279.18,Research Grant Expenditure
BEIS,UKRI - BBSRC,10/12/2021,Research Grant Expenditure,FG - Accounts & Business Planning,The University of Manchester,99087498,74642.58,Research Grant Expenditure
BEIS,UKRI - BBSRC,10/12/2021,Research Grant Expenditure,FG - Accounts & Business Planning,University of Oxford,99087499,82948.15,Research Grant Expenditure
BEIS,UKRI - BBSRC,10/12/2021,Research Grant Expenditure,FG - Accounts & Business Planning,University of Exeter,99087500,42334.47,Research Grant Expenditure
BEIS,UKRI - BBSRC,10/12/2021,Research Grant Expenditure,FG - Accounts & Business Planning,The Pirbright Institute,99087501,30816.85,Research Grant Expenditure
BEIS,UKRI - BBSRC,10/12/2021,Research Grant Expenditure,FG - Accounts & Business Planning,Queen's University Belfast GRANT,99087502,32554.58,Research Grant Expenditure
BEIS,UKRI - BBSRC,10/12/2021,Research Grant Expenditure,FG - Accounts & Business Planning,University College London,99087503,41895.66,Research Grant Expenditure
BEIS,UKRI - BBSRC,10/12/2021,Research Grant Expenditure,FG - Accounts & Business Planning,Brunel University London,99087504,37305.69,Research Grant Expenditure
BEIS,UKRI - BBSRC,10/12/2021,Research Grant Expenditure,FG - Accounts & Business Planning,The University of Manchester,99087505,50971.72,Research Grant Expenditure
BEIS,UKRI - BBSRC,10/12/2021,Research Grant Expenditure,FG - Accounts & Business Planning,University of Oxford,99087506,42032.29,Research Grant Expenditure
BEIS,UKRI - BBSRC,10/12/2021,Research Grant Expenditure,FG - Accounts & Business Planning,University of York,99087507,49257.96,Research Grant Expenditure
BEIS,UKRI - BBSRC,10/12/2021,Research Grant Expenditure,FG - Accounts & Business Planning,University College London,99087508,49205.82,Research Grant Expenditure
BEIS,UKRI - BBSRC,10/12/2021,Research Grant Expenditure,FG - Accounts & Business Planning,University College London,99087509,32368.66,Research Grant Expenditure
BEIS,UKRI - BBSRC,10/12/2021,Capital Grants & Equipment to HEIs,FG - Accounts & Business Planning,University of Cambridge,99087510,4315.75,Capital Grants & Equipment to HEIs
BEIS,UKRI - BBSRC,10/12/2021,Capital Grants & Equipment to HEIs,FG - Accounts & Business Planning,University of Cambridge,99087510,4315.75,Capital Grants & Equipment to HEIs
BEIS,UKRI - BBSRC,10/12/2021,Research Grant Expenditure,FG - Accounts & Business Planning,University of Cambridge,99087510,75213.71,Research Grant Expenditure
BEIS,UKRI - BBSRC,10/12/2021,Research Grant Expenditure,FG - Accounts & Business Planning,University of Cambridge,99087510,75213.73,Research Grant Expenditure
BEIS,UKRI - BBSRC,10/12/2021,Research Grant Expenditure,FG - Accounts & Business Planning,University of Oxford,99087511,53961.42,Research Grant Expenditure
BEIS,UKRI - BBSRC,10/12/2021,Research Grant Expenditure,FG - Accounts & Business Planning,Queen Mary University of London,99087512,38862.57,Research Grant Expenditure
BEIS,UKRI - BBSRC,10/12/2021,Research Grant Expenditure,FG - Accounts & Business Planning,University of Sheffield,99087513,39381.31,Research Grant Expenditure
BEIS,UKRI - BBSRC,10/12/2021,Research Grant Expenditure,FG - Accounts & Business Planning,University of Cambridge,99087514,40432.78,Research Grant Expenditure
BEIS,UKRI - BBSRC,10/12/2021,Research Grant Expenditure,FG - Accounts & Business Planning,University of Leeds,99087515,37468.44,Research Grant Expenditure
BEIS,UKRI - BBSRC,10/12/2021,Research Grant Expenditure,FG - Accounts & Business Planning,University of Essex,99087516,46896.28,Research Grant Expenditure
BEIS,UKRI - BBSRC,10/12/2021,Research Grant Expenditure,FG - Accounts & Business Planning,University of Sheffield,99087517,36204.11,Research Grant Expenditure
BEIS,UKRI - BBSRC,10/12/2021,Research Grant Expenditure,FG - Accounts & Business Planning,University of Sheffield,99087518,38062.20,Research Grant Expenditure
BEIS,UKRI - BBSRC,10/12/2021,Research Grant Expenditure,FG - Accounts & Business Planning,University of Sheffield,99087518,38062.30,Research Grant Expenditure
BEIS,UKRI - BBSRC,10/12/2021,Research Grant Expenditure,FG - Accounts & Business Planning,The University of Manchester,99087519,35965.77,Research Grant Expenditure
BEIS,UKRI - BBSRC,10/12/2021,Research Grant Expenditure,FG - Accounts & Business Planning,London School of Hygiene & Tropical Medicine,99087520,63755.95,Research Grant Expenditure
BEIS,UKRI - BBSRC,10/12/2021,Research Grant Expenditure,FG - Accounts & Business Planning,Queen's University Belfast GRANT,99087521,81401.66,Research Grant Expenditure
BEIS,UKRI - BBSRC,10/12/2021,Research Grant Expenditure,FG - Accounts & Business Planning,King's College London,99087522,37728.78,Research Grant Expenditure
BEIS,UKRI - BBSRC,10/12/2021,Research Grant Expenditure,FG - Accounts & Business Planning,King's College London,99087522,37728.79,Research Grant Expenditure
BEIS,UKRI - BBSRC,10/12/2021,Research Grant Expenditure,FG - Accounts & Business Planning,King's College London,99087522,37728.79,Research Grant Expenditure
BEIS,UKRI - BBSRC,10/12/2021,Research Grant Expenditure,FG - Accounts & Business Planning,Imperial College London,99087523,48123.77,Research Grant Expenditure
BEIS,UKRI - BBSRC,10/12/2021,Research Grant Expenditure,FG - Accounts & Business Planning,University of York,99087524,43260.05,Research Grant Expenditure
BEIS,UKRI - BBSRC,10/12/2021,Research Grant Expenditure,FG - Accounts & Business Planning,University of Edinburgh,99087525,46026.31,Research Grant Expenditure
BEIS,UKRI - BBSRC,10/12/2021,Research Grant Expenditure,FG - Accounts & Business Planning,London School of Hygiene & Tropical Medicine,99087526,37474.70,Research Grant Expenditure
BEIS,UKRI - BBSRC,10/12/2021,Research Grant Expenditure,FG - Accounts & Business Planning,King's College London,99087527,60160.84,Research Grant Expenditure
BEIS,UKRI - BBSRC,10/12/2021,Research Grant Expenditure,FG - Accounts & Business Planning,King's College London,99087528,58370.89,Research Grant Expenditure
BEIS,UKRI - BBSRC,10/12/2021,Capital Grants & Equipment to HEIs,FG - Accounts & Business Planning,Imperial College London,99087529,5977.25,Capital Grants & Equipment to HEIs
BEIS,UKRI - BBSRC,10/12/2021,Research Grant Expenditure,FG - Accounts & Business Planning,Imperial College London,99087529,36132.65,Research Grant Expenditure
BEIS,UKRI - BBSRC,10/12/2021,Capital Grants & Equipment to HEIs,FG - Accounts & Business Planning,Imperial College London,99087530,27132.50,Capital Grants & Equipment to HEIs
BEIS,UKRI - BBSRC,10/12/2021,Research Grant Expenditure,FG - Accounts & Business Planning,Imperial College London,99087530,37339.41,Research Grant Expenditure
BEIS,UKRI - BBSRC,10/12/2021,Research Grant Expenditure,FG - Accounts & Business Planning,University of Cambridge,99087531,20648.05,Research Grant Expenditure
BEIS,UKRI - BBSRC,10/12/2021,Capital Grants & Equipment to HEIs,FG - Accounts & Business Planning,University of Cambridge,99087532,5646.88,Capital Grants & Equipment to HEIs
BEIS,UKRI - BBSRC,10/12/2021,Research Grant Expenditure,FG - Accounts & Business Planning,University of Cambridge,99087532,59240.36,Research Grant Expenditure
BEIS,UKRI - BBSRC,10/12/2021,Research Grant Expenditure,FG - Accounts & Business Planning,University of Cambridge,99087533,41972.07,Research Grant Expenditure
BEIS,UKRI - BBSRC,10/12/2021,Research Grant Expenditure,FG - Accounts & Business Planning,University of Durham,99087534,42018.46,Research Grant Expenditure
BEIS,UKRI - BBSRC,10/12/2021,Research Grant Expenditure,FG - Accounts & Business Planning,The University of Manchester,99087535,33790.92,Research Grant Expenditure
BEIS,UKRI - BBSRC,10/12/2021,Research Grant Expenditure,FG - Accounts & Business Planning,The University of Manchester,99087535,33790.92,Research Grant Expenditure
BEIS,UKRI - BBSRC,10/12/2021,Research Grant Expenditure,FG - Accounts & Business Planning,The University of Manchester,99087535,33790.92,Research Grant Expenditure
BEIS,UKRI - BBSRC,10/12/2021,Capital Grants & Equipment to HEIs,FG - Accounts & Business Planning,University of Reading,99087536,1811.25,Capital Grants & Equipment to HEIs
BEIS,UKRI - BBSRC,10/12/2021,Research Grant Expenditure,FG - Accounts & Business Planning,University of Reading,99087536,311490.44,Research Grant Expenditure
BEIS,UKRI - BBSRC,10/12/2021,Capital Grants & Equipment to HEIs,FG - Accounts & Business Planning,University of Nottingham,99087537,8584.75,Capital Grants & Equipment to HEIs
BEIS,UKRI - BBSRC,10/12/2021,Research Grant Expenditure,FG - Accounts & Business Planning,University of Nottingham,99087537,42745.86,Research Grant Expenditure
BEIS,UKRI - BBSRC,10/12/2021,Research Grant Expenditure,FG - Accounts & Business Planning,University of Sheffield,99087538,280477.07,Research Grant Expenditure
BEIS,UKRI - BBSRC,10/12/2021,Capital Grants & Equipment to HEIs,FG - Accounts & Business Planning,University of Glasgow,99087539,3750.00,Capital Grants & Equipment to HEIs
BEIS,UKRI - BBSRC,10/12/2021,Research Grant Expenditure,FG - Accounts & Business Planning,University of Glasgow,99087539,55613.92,Research Grant Expenditure
BEIS,UKRI - BBSRC,10/12/2021,Research Grant Expenditure,FG - Accounts & Business Planning,University of York,99087540,287706.55,Research Grant Expenditure
BEIS,UKRI - BBSRC,10/12/2021,Research Grant Expenditure,FG - Accounts & Business Planning,University of Glasgow,99087541,65099.42,Research Grant Expenditure
BEIS,UKRI - BBSRC,10/12/2021,Research Grant Expenditure,FG - Accounts & Business Planning,University of Bristol GRANT,99087542,40594.65,Research Grant Expenditure
BEIS,UKRI - BBSRC,10/12/2021,Research Grant Expenditure,FG - Accounts & Business Planning,University of Bristol GRANT,99087542,40594.78,Research Grant Expenditure
BEIS,UKRI - BBSRC,10/12/2021,Research Grant Expenditure,FG - Accounts & Business Planning,National Institute For Agricultural Botany (NIAB),99087543,9505.97,Research Grant Expenditure
BEIS,UKRI - BBSRC,10/12/2021,Research Grant Expenditure,FG - Accounts & Business Planning,European Bioinformatics Institute,99087544,31321.01,Research Grant Expenditure
BEIS,UKRI - BBSRC,10/12/2021,Research Grant Expenditure,FG - Accounts & Business Planning,University of Bristol GRANT,99087545,37729.34,Research Grant Expenditure
BEIS,UKRI - BBSRC,10/12/2021,Capital Grants & Equipment to HEIs,FG - Accounts & Business Planning,University of Exeter,99087546,3750.00,Capital Grants & Equipment to HEIs
BEIS,UKRI - BBSRC,10/12/2021,Research Grant Expenditure,FG - Accounts & Business Planning,University of Exeter,99087546,43666.78,Research Grant Expenditure
BEIS,UKRI - BBSRC,10/12/2021,Research Grant Expenditure,FG - Accounts & Business Planning,Forest Research GRANT,99087547,49170.61,Research Grant Expenditure
BEIS,UKRI - BBSRC,10/12/2021,Research Grant Expenditure,FG - Accounts & Business Planning,University of Nottingham,99087548,37539.17,Research Grant Expenditure
BEIS,UKRI - BBSRC,10/12/2021,Research Grant Expenditure,FG - Accounts & Business Planning,University of Glasgow,99087549,45802.69,Research Grant Expenditure
BEIS,UKRI - BBSRC,10/12/2021,Research Grant Expenditure,FG - Accounts & Business Planning,Heriot Watt University,99087550,10654.98,Research Grant Expenditure
BEIS,UKRI - BBSRC,10/12/2021,Research Grant Expenditure,FG - Accounts & Business Planning,University of Nottingham,99087551,3176.00,Research Grant Expenditure
BEIS,UKRI - BBSRC,10/12/2021,Research Grant Expenditure,FG - Accounts & Business Planning,University of Cambridge,99087552,40669.19,Research Grant Expenditure
BEIS,UKRI - BBSRC,10/12/2021,Research Grant Expenditure,FG - Accounts & Business Planning,University of Nottingham,99087553,60100.31,Research Grant Expenditure
BEIS,UKRI - BBSRC,10/12/2021,Research Grant Expenditure,FG - Accounts & Business Planning,University of York,99087554,12609.83,Research Grant Expenditure
BEIS,UKRI - BBSRC,10/12/2021,Capital Grants & Equipment to HEIs,FG - Accounts & Business Planning,University of Leeds,99087555,23580.25,Capital Grants & Equipment to HEIs
BEIS,UKRI - BBSRC,10/12/2021,Research Grant Expenditure,FG - Accounts & Business Planning,University of Leeds,99087555,211808.63,Research Grant Expenditure
BEIS,UKRI - BBSRC,10/12/2021,Capital Grants & Equipment to HEIs,FG - Accounts & Business Planning,University College London,99087556,7492.50,Capital Grants & Equipment to HEIs
BEIS,UKRI - BBSRC,10/12/2021,Research Grant Expenditure,FG - Accounts & Business Planning,University College London,99087556,117182.49,Research Grant Expenditure
BEIS,UKRI - BBSRC,10/12/2021,Research Grant Expenditure,FG - Accounts & Business Planning,University of Durham,99087557,165913.09,Research Grant Expenditure
BEIS,UKRI - BBSRC,10/12/2021,Research Grant Expenditure,FG - Accounts & Business Planning,University of Bristol GRANT,99087558,153344.61,Research Grant Expenditure
BEIS,UKRI - BBSRC,10/12/2021,Research Grant Expenditure,FG - Accounts & Business Planning,University of Edinburgh,99087559,31748.55,Research Grant Expenditure
BEIS,UKRI - BBSRC,10/12/2021,Research Grant Expenditure,FG - Accounts & Business Planning,University of Edinburgh,99087560,31757.01,Research Grant Expenditure
BEIS,UKRI - BBSRC,10/12/2021,Research Grant Expenditure,FG - Accounts & Business Planning,University of Oxford,99087561,29839.94,Research Grant Expenditure
BEIS,UKRI - BBSRC,10/12/2021,Research Grant Expenditure,FG - Accounts & Business Planning,Rothamsted Research Ltd,99087562,32992.65,Research Grant Expenditure
BEIS,UKRI - BBSRC,10/12/2021,Research Grant Expenditure,FG - Accounts & Business Planning,The University of Manchester,99087563,32396.36,Research Grant Expenditure
BEIS,UKRI - BBSRC,10/12/2021,Research Grant Expenditure,FG - Accounts & Business Planning,University of Liverpool,99087564,25311.02,Research Grant Expenditure
BEIS,UKRI - BBSRC,10/12/2021,Research Grant Expenditure,FG - Accounts & Business Planning,University of Oxford,99087565,33100.64,Research Grant Expenditure
BEIS,UKRI - BBSRC,10/12/2021,Research Grant Expenditure,FG - Accounts & Business Planning,University of Birmingham GRANT,99087566,39966.43,Research Grant Expenditure
BEIS,UKRI - BBSRC,10/12/2021,Research Grant Expenditure,FG - Accounts & Business Planning,University of Liverpool,99087567,26762.84,Research Grant Expenditure
BEIS,UKRI - BBSRC,10/12/2021,Capital Grants & Equipment to HEIs,FG - Accounts & Business Planning,University of Warwick,99087568,11021.88,Capital Grants & Equipment to HEIs
BEIS,UKRI - BBSRC,10/12/2021,Research Grant Expenditure,FG - Accounts & Business Planning,University of Warwick,99087568,39059.58,Research Grant Expenditure
BEIS,UKRI - BBSRC,10/12/2021,Research Grant Expenditure,FG - Accounts & Business Planning,University of East Anglia,99087569,31904.63,Research Grant Expenditure
BEIS,UKRI - BBSRC,10/12/2021,Research Grant Expenditure,FG - Accounts & Business Planning,John Innes Centre,99087570,3839.16,Research Grant Expenditure
BEIS,UKRI - BBSRC,10/12/2021,Research Grant Expenditure,FG - Accounts & Business Planning,University of Glasgow,99087571,32797.93,Research Grant Expenditure
BEIS,UKRI - BBSRC,10/12/2021,Research Grant Expenditure,FG - Accounts & Business Planning,University of Liverpool,99087572,36912.07,Research Grant Expenditure
BEIS,UKRI - BBSRC,10/12/2021,Research Grant Expenditure,FG - Accounts & Business Planning,University of Birmingham GRANT,99087573,31587.98,Research Grant Expenditure
BEIS,UKRI - BBSRC,10/12/2021,Research Grant Expenditure,FG - Accounts & Business Planning,The University of Manchester,99087574,47676.46,Research Grant Expenditure
BEIS,UKRI - BBSRC,10/12/2021,Research Grant Expenditure,FG - Accounts & Business Planning,University of St Andrews,99087575,31878.71,Research Grant Expenditure
BEIS,UKRI - BBSRC,10/12/2021,Research Grant Expenditure,FG - Accounts & Business Planning,University of Warwick,99087576,38342.01,Research Grant Expenditure
BEIS,UKRI - BBSRC,10/12/2021,Research Grant Expenditure,FG - Accounts & Business Planning,Imperial College London,99087577,35178.50,Research Grant Expenditure
BEIS,UKRI - BBSRC,10/12/2021,Research Grant Expenditure,FG - Accounts & Business Planning,University of Cambridge,99087578,33941.58,Research Grant Expenditure
BEIS,UKRI - BBSRC,10/12/2021,Capital Grants & Equipment to HEIs,FG - Accounts & Business Planning,University of Sheffield,99087579,3866.86,Capital Grants & Equipment to HEIs
BEIS,UKRI - BBSRC,10/12/2021,Research Grant Expenditure,FG - Accounts & Business Planning,University of Sheffield,99087579,38614.58,Research Grant Expenditure
BEIS,UKRI - BBSRC,10/12/2021,Research Grant Expenditure,FG - Accounts & Business Planning,University of Kent,99087580,35677.12,Research Grant Expenditure
BEIS,UKRI - BBSRC,10/12/2021,Research Grant Expenditure,FG - Accounts & Business Planning,University of Kent,99087580,35677.12,Research Grant Expenditure
BEIS,UKRI - BBSRC,10/12/2021,Research Grant Expenditure,FG - Accounts & Business Planning,University of Oxford,99087581,38205.62,Research Grant Expenditure
BEIS,UKRI - BBSRC,10/12/2021,Capital Grants & Equipment to HEIs,FG - Accounts & Business Planning,Imperial College London,99087582,4475.00,Capital Grants & Equipment to HEIs
BEIS,UKRI - BBSRC,10/12/2021,Research Grant Expenditure,FG - Accounts & Business Planning,Imperial College London,99087582,58309.58,Research Grant Expenditure
BEIS,UKRI - BBSRC,10/12/2021,Capital Grants & Equipment to HEIs,FG - Accounts & Business Planning,Imperial College London,99087583,11376.25,Capital Grants & Equipment to HEIs
BEIS,UKRI - BBSRC,10/12/2021,Capital Grants & Equipment to HEIs,FG - Accounts & Business Planning,Imperial College London,99087583,11376.25,Capital Grants & Equipment to HEIs
BEIS,UKRI - BBSRC,10/12/2021,Research Grant Expenditure,FG - Accounts & Business Planning,Imperial College London,99087583,45346.95,Research Grant Expenditure
BEIS,UKRI - BBSRC,10/12/2021,Research Grant Expenditure,FG - Accounts & Business Planning,Imperial College London,99087583,45346.95,Research Grant Expenditure
BEIS,UKRI - BBSRC,10/12/2021,Research Grant Expenditure,FG - Accounts & Business Planning,University of Edinburgh,99087584,43279.73,Research Grant Expenditure
BEIS,UKRI - BBSRC,10/12/2021,Research Grant Expenditure,FG - Accounts & Business Planning,University of Edinburgh,99087584,43279.73,Research Grant Expenditure
BEIS,UKRI - BBSRC,10/12/2021,Research Grant Expenditure,FG - Accounts & Business Planning,University of Oxford,99087585,64893.10,Research Grant Expenditure
BEIS,UKRI - BBSRC,10/12/2021,Research Grant Expenditure,FG - Accounts & Business Planning,University of Glasgow,99087586,36803.41,Research Grant Expenditure
BEIS,UKRI - BBSRC,10/12/2021,Research Grant Expenditure,FG - Accounts & Business Planning,University of Oxford,99087587,36538.87,Research Grant Expenditure
BEIS,UKRI - BBSRC,10/12/2021,Capital Grants & Equipment to HEIs,FG - Accounts & Business Planning,University of Bristol GRANT,99087588,2667.00,Capital Grants & Equipment to HEIs
BEIS,UKRI - BBSRC,10/12/2021,Research Grant Expenditure,FG - Accounts & Business Planning,University of Bristol GRANT,99087588,42287.63,Research Grant Expenditure
BEIS,UKRI - BBSRC,10/12/2021,Research Grant Expenditure,FG - Accounts & Business Planning,University of Bristol GRANT,99087589,40491.11,Research Grant Expenditure
BEIS,UKRI - BBSRC,10/12/2021,Research Grant Expenditure,FG - Accounts & Business Planning,University of Sussex,99087590,39243.59,Research Grant Expenditure
BEIS,UKRI - BBSRC,10/12/2021,Research Grant Expenditure,FG - Accounts & Business Planning,University of Leeds,99087591,16426.29,Research Grant Expenditure
BEIS,UKRI - BBSRC,10/12/2021,Research Grant Expenditure,FG - Accounts & Business Planning,University of Newcastle Upon Tyne,99087592,5360.63,Research Grant Expenditure
BEIS,UKRI - BBSRC,10/12/2021,Research Grant Expenditure,FG - Accounts & Business Planning,University of Liverpool,99087593,9853.33,Research Grant Expenditure
BEIS,UKRI - BBSRC,10/12/2021,Research Grant Expenditure,FG - Accounts & Business Planning,University of Edinburgh,99087594,48262.63,Research Grant Expenditure
BEIS,UKRI - BBSRC,10/12/2021,Capital Grants & Equipment to HEIs,FG - Accounts & Business Planning,University of Bristol GRANT,99087595,5178.25,Capital Grants & Equipment to HEIs
BEIS,UKRI - BBSRC,10/12/2021,Research Grant Expenditure,FG - Accounts & Business Planning,University of Bristol GRANT,99087595,38592.63,Research Grant Expenditure
BEIS,UKRI - BBSRC,10/12/2021,Research Grant Expenditure,FG - Accounts & Business Planning,Liverpool School of Tropical Medicine,99087596,38017.95,Research Grant Expenditure
BEIS,UKRI - BBSRC,10/12/2021,Capital Grants & Equipment to HEIs,FG - Accounts & Business Planning,University of Warwick,99087597,3750.00,Capital Grants & Equipment to HEIs
BEIS,UKRI - BBSRC,10/12/2021,Research Grant Expenditure,FG - Accounts & Business Planning,University of Warwick,99087597,39391.33,Research Grant Expenditure
BEIS,UKRI - BBSRC,10/12/2021,Research Grant Expenditure,FG - Accounts & Business Planning,University College London,99087598,22741.65,Research Grant Expenditure
BEIS,UKRI - BBSRC,10/12/2021,Research Grant Expenditure,FG - Accounts & Business Planning,University of Nottingham,99087599,28616.37,Research Grant Expenditure
BEIS,UKRI - BBSRC,10/12/2021,Research Grant Expenditure,FG - Accounts & Business Planning,University of Bristol GRANT,99087600,35710.97,Research Grant Expenditure
BEIS,UKRI - BBSRC,10/12/2021,Research Grant Expenditure,FG - Accounts & Business Planning,University of Cambridge,99087601,46287.96,Research Grant Expenditure
BEIS,UKRI - BBSRC,10/12/2021,Research Grant Expenditure,FG - Accounts & Business Planning,University College London,99087602,35312.52,Research Grant Expenditure
BEIS,UKRI - BBSRC,10/12/2021,Research Grant Expenditure,FG - Accounts & Business Planning,University of Oxford,99087603,45483.44,Research Grant Expenditure
BEIS,UKRI - BBSRC,10/12/2021,Research Grant Expenditure,FG - Accounts & Business Planning,Diamond Light Source Ltd,99087604,1841.06,Research Grant Expenditure
BEIS,UKRI - BBSRC,10/12/2021,Capital Grants & Equipment to HEIs,FG - Accounts & Business Planning,University College London,99087605,5789.63,Capital Grants & Equipment to HEIs
BEIS,UKRI - BBSRC,10/12/2021,Research Grant Expenditure,FG - Accounts & Business Planning,University College London,99087605,41113.82,Research Grant Expenditure
BEIS,UKRI - BBSRC,10/12/2021,Research Grant Expenditure,FG - Accounts & Business Planning,University of Glasgow,99087606,46911.08,Research Grant Expenditure
BEIS,UKRI - BBSRC,10/12/2021,Research Grant Expenditure,FG - Accounts & Business Planning,The University of Manchester,99087607,46808.50,Research Grant Expenditure
BEIS,UKRI - BBSRC,10/12/2021,Research Grant Expenditure,FG - Accounts & Business Planning,University of Glasgow,99087608,37490.13,Research Grant Expenditure
BEIS,UKRI - BBSRC,10/12/2021,Research Grant Expenditure,FG - Accounts & Business Planning,University of Strathclyde,99087609,6050.09,Research Grant Expenditure
BEIS,UKRI - BBSRC,10/12/2021,Research Grant Expenditure,FG - Accounts & Business Planning,University of Leeds,99087610,39814.94,Research Grant Expenditure
BEIS,UKRI - BBSRC,10/12/2021,Research Grant Expenditure,FG - Accounts & Business Planning,University of Edinburgh,99087611,36763.87,Research Grant Expenditure
BEIS,UKRI - BBSRC,10/12/2021,Research Grant Expenditure,FG - Accounts & Business Planning,University of Oxford,99087612,36694.57,Research Grant Expenditure
BEIS,UKRI - BBSRC,10/12/2021,Research Grant Expenditure,FG - Accounts & Business Planning,The James Hutton Institute,99087613,31509.56,Research Grant Expenditure
BEIS,UKRI - BBSRC,10/12/2021,Research Grant Expenditure,FG - Accounts & Business Planning,University of Cambridge,99087614,37464.18,Research Grant Expenditure
BEIS,UKRI - BBSRC,10/12/2021,Research Grant Expenditure,FG - Accounts & Business Planning,University of Glasgow,99087615,40770.59,Research Grant Expenditure
BEIS,UKRI - BBSRC,10/12/2021,Research Grant Expenditure,FG - Accounts & Business Planning,Cardiff University,99087616,36265.32,Research Grant Expenditure
BEIS,UKRI - BBSRC,10/12/2021,Capital Grants & Equipment to HEIs,FG - Accounts & Business Planning,University of Nottingham,99087617,1282.75,Capital Grants & Equipment to HEIs
BEIS,UKRI - BBSRC,10/12/2021,Research Grant Expenditure,FG - Accounts & Business Planning,University of Nottingham,99087617,35395.22,Research Grant Expenditure
BEIS,UKRI - BBSRC,10/12/2021,Research Grant Expenditure,FG - Accounts & Business Planning,University of Exeter,99087618,47426.86,Research Grant Expenditure
BEIS,UKRI - BBSRC,10/12/2021,Research Grant Expenditure,FG - Accounts & Business Planning,The University of Manchester,99087619,53064.73,Research Grant Expenditure
BEIS,UKRI - BBSRC,10/12/2021,Capital Grants & Equipment to HEIs,FG - Accounts & Business Planning,University of York,99087620,15260.21,Capital Grants & Equipment to HEIs
BEIS,UKRI - BBSRC,10/12/2021,Research Grant Expenditure,FG - Accounts & Business Planning,University of York,99087620,37878.58,Research Grant Expenditure
BEIS,UKRI - BBSRC,10/12/2021,Research Grant Expenditure,FG - Accounts & Business Planning,The James Hutton Institute,99087621,4609.50,Research Grant Expenditure
BEIS,UKRI - BBSRC,10/12/2021,Research Grant Expenditure,FG - Accounts & Business Planning,University of Cambridge,99087622,55420.76,Research Grant Expenditure
BEIS,UKRI - BBSRC,10/12/2021,Research Grant Expenditure,FG - Accounts & Business Planning,University of Cambridge,99087623,37128.19,Research Grant Expenditure
BEIS,UKRI - BBSRC,10/12/2021,Research Grant Expenditure,FG - Accounts & Business Planning,Imperial College London,99087624,46816.29,Research Grant Expenditure
BEIS,UKRI - BBSRC,10/12/2021,Research Grant Expenditure,FG - Accounts & Business Planning,University of Cambridge,99087625,93511.64,Research Grant Expenditure
BEIS,UKRI - BBSRC,10/12/2021,Research Grant Expenditure,FG - Accounts & Business Planning,University of Sussex,99087626,36700.63,Research Grant Expenditure
BEIS,UKRI - BBSRC,10/12/2021,Research Grant Expenditure,FG - Accounts & Business Planning,University of Glasgow,99087627,18648.98,Research Grant Expenditure
BEIS,UKRI - BBSRC,10/12/2021,Research Grant Expenditure,FG - Accounts & Business Planning,University of York,99087628,46679.12,Research Grant Expenditure
BEIS,UKRI - BBSRC,10/12/2021,Research Grant Expenditure,FG - Accounts & Business Planning,University College London,99087629,40999.86,Research Grant Expenditure
BEIS,UKRI - BBSRC,10/12/2021,Research Grant Expenditure,FG - Accounts & Business Planning,University of Dundee,99087630,2999.10,Research Grant Expenditure
BEIS,UKRI - BBSRC,10/12/2021,Research Grant Expenditure,FG - Accounts & Business Planning,Lancaster University,99087631,1905.50,Research Grant Expenditure
BEIS,UKRI - BBSRC,10/12/2021,Research Grant Expenditure,FG - Accounts & Business Planning,University of Bristol GRANT,99087632,1890.19,Research Grant Expenditure
